{"text_format":"1","workbook":"xlsx","n_sheets":17,"sheets":["Instructions","Regional","Urban","Gaged Flow","TC 61-100","Region1","Region 2","Region 3","Region 4","Region 5","Region 6","Region 7","TN2","Coefficients","Table 1","P2,2","Update Log"],"not_rendered":{"charts":0,"images":12,"macros":1,"external_links":0,"defined_names":2,"comments":3,"pivot_tables":0},"unopened":[],"bounds":{"document_bytes":16777216,"sheet_cells":100000,"rows_first":2000,"rows_last":500,"rows_between":2000,"halvings":0,"cell_chars":16384,"cell_head_chars":4096},"cells_cut":0,"cells_raw":0,"read":"whole","date_system":"1900"}

{"sheet":"Instructions","index":0,"n_rows":75,"n_cols":3,"rows_kept":75,"cut":false,"hidden":false,"merged":[]}
["Instructions Worksheet"]
[null,"Conversion of drainage area from acres to square miles and flow length from feet to miles is provided."]
[null,"   Conversion from square miles to acres or miles to feet is not an option."]
[null,"Enter Hydrologic Region identification and drainage area.  Stream slope variables are applicable in regions 1 and 4."]
[null,"A macro is used to examine all entered options and to compute and display missing output variables by pressing ctrl-r."]
[null,"If only 1 flow region is used and no urbanization technique is used, the macro is not required."]
[null,"Regional flow results display under the Urban Flow Option when the Urban Flow Option is not used."]
[null,"Gage flow adjustments are calculated after first calculating regional flows if the area is within specified limits."]
[null,"Some cells in this workbook are protected thus preventing data from being entered into them."]
[null,"Some protected cells will be populated with data from other sheets.  User supplied values are entered in"]
[null,"   unprotected cells which are shaded light yellow."]
[null,"Flow region boundary maps may be viewed by clicking on the corresponding named sheet along the bottom of the window."]
[null,"When beginning a job, save this workbook as a working copy.   Unused region maps may be deleted to save space."]
[null,"Sheet \"Table 1\" is from USGS publication 03-4180."]
[null,"Sheet \"Coefficients\" are tabular variable used in the flow calculations."]
[null,"Sheet P2,2 (hidden) are P2,2 values for each county."]
[]
["Regional Worksheet"]
[null,"Regional flows may be computed for a maximum of 3 different contributing regions.  In addition to the regions"]
[null,"   in Kentucky, 2 Tennessee regions are included."]
[null,"Flow length is measured along main channel from the stream crossing to the drainage divide."]
[null,"   'The 10% Point is located on the flow path, 10% of the flow length from the stream crossing."]
[null,"   'The 85% Point is located on the flow path, 85% of the flow length from the stream crossing."]
[null,"   Length is the flow distance between these 2 points.  Slope is determined using these locations."]
[null,"Flow calculations are based on Water-Resources Investigations Report 03-4180 by the USGS."]
[null,"Elevations and flow length are required for the 7 variable urbanized flows but not for the following rural flows:"]
[null,null,"· Regions 2, 3, 5, 6 or 7"]
[null,null,"· Q2 or Q5 in region 1"]
[null,null,"· Q100, Q200 or Q500 in region 4"]
[null,"Rural flows are displayed on rows 13 - 19.  They values shown are not final if multiple regions are used because"]
[null,"   the flows shown are a weighted value based on the drainage area from all of the contributing regions."]
[null,"Design Flow pull-downs are used to select the design flow of choice."]
[null,"The results are copied to the TC 61-100 form.  Unused Design Flows should be manually deleted."]
[]
["Urban Worksheet ( 3 or 7 variable)"]
[null,"The county name is required."]
[null,"Enter BDF values on the Urban worksheet if 3 or 7 variable urbanization technique is used."]
[null,"The 3 or 7 variable urban flow method is selected from a drop down on line 23."]
[null,"Urban flows may be calculated by the 3 or 7 urban factor method.  The 7 factor method is preferred.  Refer to "]
[null,"   USGS publications for a comparison of the 2 methods.  The basin development factor (BDF) is computed "]
[null,"   from entries on the \"Urban\" worksheet (see Drainage Manual for explanation.)  Valid entries are \"0\" or \"1\". "]
[null,"The 7 variable equation requires 4 additional entries. The % storage (ST) and % impervious area (IA)"]
[null,"   are entered on the Urban worksheet.  The 2 year, 2 hour rainfall intensity is extracted from a table"]
[null,"   based on the county name.  The % stream slope, (SL) is calculated from values on the regional worksheet."]
[null,"Urban flow calculations are not currently possible if the drainage area lies in more than one flow region that"]
[null,"   also lies in more than one county."]
[]
["Gaged Flow Worksheet"]
[null,"One or two gaging stations must be entered to use this worksheet.  They are selected from a pulldown menu."]
[null,"The user views the appropriate regional map to determine which, if any gages are near the stream crossing."]
[null,"Gage flow is evaluated by pressing \"Ctrl-q\"."]
[null,"If the drainage area of the site is within 3% of the drainage area of the gaged site, then the weighted flow at the"]
[null,"   gaged site will be used unless it does not exist.  If the drainage area is outside of the 3% limits, then it must"]
[null,"   be no greater than twice the area of the gaged site nor less than half the area of the gaged site in order to be"]
[null,"   used in the gaging station equations.  Enter blank gage numbers if gage stations are not used.  The macro"]
[null,"   has no way to determine if the gage is in the correct county or on the correct stream.  The user must do this."]
[null,"The macro calculates regional flows before applying gage flow results."]
[]
["TC 61-100 Worksheet"]
[null,"The TC 61-100 is automatically populated with design flows computed from the regional regression equations,"]
[null,"the urbanization technique or stream gage data, as applicable.  Those fields are protected.  Yellow shaded"]
[null,"denote user supplied entries.  Urban flows and flows from gage data are computed by macros."]
[null,"The origin of the flows is listed to the right of \"Discharge\".  Qg denotes gage flow, Qu denotes urban flows,"]
[null,"Ouj denotes urban Jefferson County flows, Qr denotes rural regression flows and Qwt denoted weighted flow."]
[]
["Region Worksheets"]
[null,"These worksheets are graphic maps of each hydrologic region.  The view may be enlarged by selecting a different"]
[null,"   zoom value or by typing in a value.  The gage spreadsheet does not select gages from the map.  The user"]
[null,"   is responsible for selecting the correct gage to enter in the gage pull down menu."]
[null,"Regions TN1 and TN2 are denoted as HA1 and HA2, respectively in USGS WRIR 03-4176 for Tennessee."]
[]
["USGS Data Worksheets"]
[null,"These worksheets contain tabular data used by the macro and should not be changed or edited by the user."]
[null,"   Coefficients - Regional flow coefficients"]
[null,"   Table 1 - Gage flow data from USGS publication WRIR 03-4180"]

{"sheet":"Regional","index":1,"n_rows":36,"n_cols":43,"rows_kept":36,"cut":false,"hidden":false,"merged":[[22,49,22,52],[23,24,23,28],[23,4,23,8],[26,19,26,23],[27,14,27,18],[26,24,26,28],[24,0,24,3],[25,0,25,3],[26,0,26,3],[27,0,27,3],[24,9,24,13],[27,4,27,8],[26,4,26,8],[24,4,24,8],[25,4,25,8],[25,24,25,28],[25,9,25,13],[25,14,25,18],[25,19,25,23],[24,19,24,23],[27,19,27,23],[27,24,27,28],[27,9,27,13],[7,19,7,23],[22,0,22,3],[21,0,21,3],[19,24,19,28],[22,4,22,8],[22,9,22,13],[22,14,22,18],[20,0,20,3],[19,4,19,8],[14,19,14,23],[13,19,13,23],[20,19,20,23],[12,14,12,18],[11,9,11,13],[12,9,12,13],[9,4,9,18],[8,9,8,13],[8,14,8,18],[14,9,14,13],[8,19,8,23],[10,0,10,3],[8,0,8,3],[9,0,9,3],[15,24,15,28],[8,4,8,8],[2,9,2,18],[3,0,3,3],[4,0,4,3],[5,9,5,13],[3,4,3,8],[5,4,5,8],[3,9,3,18],[5,14,5,18],[5,0,5,3],[7,0,7,3],[6,0,6,3],[6,4,6,8],[6,9,6,13],[7,4,7,8],[7,9,7,13],[14,4,14,8],[15,4,15,8],[13,14,13,18],[0,27,0,28],[0,2,0,26],[2,19,2,28],[4,19,4,23],[3,19,3,23],[2,0,2,3],[1,0,1,28],[10,24,10,28],[9,19,9,23],[6,14,6,18],[5,24,5,28],[7,14,7,18],[7,24,7,28],[10,14,10,17],[10,19,10,23],[3,24,3,28],[4,14,4,18],[4,24,4,28],[4,4,4,8],[4,9,4,13],[2,4,2,8],[15,9,15,13],[15,19,15,23],[19,19,19,23],[18,19,18,23],[16,4,16,8],[16,9,16,13],[16,19,16,23],[16,14,16,18],[17,9,17,13],[18,4,18,8],[18,14,18,18],[18,9,18,13],[18,24,18,28],[19,14,19,18],[19,0,19,3],[19,9,19,13],[29,19,29,23],[17,4,17,8],[17,14,17,18],[17,19,17,23],[26,14,26,18],[20,4,20,18],[23,19,23,23],[21,24,21,28],[22,19,22,23],[21,4,21,7],[21,9,21,12],[21,14,21,17],[21,19,21,23],[20,24,20,28],[22,24,22,28],[23,9,23,13],[23,14,23,18],[23,0,23,3],[28,0,28,3],[28,4,28,8],[14,0,14,3],[15,0,15,3],[16,0,16,3],[14,14,14,18],[15,14,15,18],[13,4,13,8],[17,24,17,28],[35,0,35,4],[29,9,29,13],[29,14,29,18],[24,14,24,18],[26,9,26,13],[24,24,24,28],[31,0,31,31],[32,0,32,31],[33,0,33,31],[34,0,34,31],[29,4,29,8],[29,0,29,3],[29,24,29,28],[28,24,28,28],[28,9,28,13],[28,14,28,18],[28,19,28,23],[0,0,0,1],[18,0,18,3],[13,9,13,13],[17,0,17,3],[16,24,16,28],[5,19,5,23],[13,24,13,28],[9,24,9,28],[8,24,8,28],[12,19,12,23],[11,14,11,18],[10,4,10,7],[10,9,10,12],[12,24,12,28],[14,24,14,28],[11,19,11,23],[11,24,11,28],[6,24,6,28],[6,19,6,23],[11,0,11,3],[11,4,11,8],[12,0,12,3],[12,4,12,8],[13,0,13,3]]}
[null,null,"REGIONAL FLOW CALCULATIONS",null,null,null,null,null,null,null,null,null,null,null,null,null,null,null,null,null,null,null,null,null,null,null,null,"07.19",null,null,null,null,null,null,null,"Region","Size",null,"Messages"]
["FOR SITES ON RURAL, UNGAGED, UNREGULATED STREAMS"]
["Region",null,null,null,"Drainage",null,null,null,null,"Elevation on longest",null,null,null,null,null,null,null,null,null,"Flow Path",null,null,null,null,null,null,null,null,null,null,null,null,null,null,null,1,0.3,null,"Drainage area less than regression limit."]
["ID",null,null,null,"Area",null,null,null,null,"flow path located:",null,null,null,null,null,null,null,null,null,"Length",null,null,null,null,"Slope"]
[null,null,null,null,"(sq.mi.)",null,null,null,null,"10% from site",null,null,null,null,"85% from site",null,null,null,null,"(miles)",null,null,null,null,"(ft/mile)",null,null,null,null,"Variable Limit Messages",null,null,null,null,null,"Region","Table",null,"Region","Low","High","Low","High"]
[1,null,null,null,0.64,null,null,null,null,856,null,null,null,null,922,null,null,null,null,1.05,null,null,null,null,{"$f":"IF(OR(A6=5,A6=1,A6=4,A6=\"Jefferson\"),IF(J6>O6,\"Ck Elevation order\",IF(O6=0,\"Enter 85% elev.\",IF(J6=0,\"Enter 10% elev.\",IF(J6>O6,\"Check Elevations\",IF(T6=0,\"Enter str.length\",(O6-J6)/(T6*0.75)))))),\"N/A\")","v":83.809523809523796},null,null,null,null,{"$f":"IF(E6=\"\",\"N/A\",IF(E6<VLOOKUP(A6,$AM$7:$AQ$16,2),$AM$3,IF(E6>VLOOKUP(A6,$AM$7:$AQ$16,3),$AM$4,IF(Y6=\"N/A\",#REF!,IF(Y6<VLOOKUP(A6,$AM$7:$AQ$16,4),#REF!,IF(Y6>VLOOKUP(A6,$AM$7:$AQ$16,5),#REF!,#REF!))))))","v":{"$error":"#REF!"}},null,null,null,null,null,null,"Index",null,null,"Area","Area","Slope","Slope"]
[null,null,null,null,null,null,null,null,null,null,null,null,null,null,null,null,null,null,null,null,null,null,null,null,{"$f":"IF(OR(A7=5,A7=1,A7=4,A7=\"Jefferson\"),IF(J7>O7,\"Ck Elevation order\",IF(O7=0,\"Enter 85% elev.\",IF(J7=0,\"Enter 10% elev.\",IF(J7>O7,\"Check Elevations\",IF(T7=0,\"Enter str.length\",(O7-J7)/(T7*0.75)))))),\"N/A\")","v":"N/A"},null,null,null,null,{"$f":"IF(E7=\"\",\"N/A\",IF(E7<VLOOKUP(A7,$AM$7:$AQ$16,2),$AM$3,IF(E7>VLOOKUP(A7,$AM$7:$AQ$16,3),$AM$4,IF(Y7=\"N/A\",#REF!,IF(Y7<VLOOKUP(A7,$AM$7:$AQ$16,4),#REF!,IF(Y7>VLOOKUP(A7,$AM$7:$AQ$16,5),#REF!,#REF!))))))","v":"N/A"}]
[null,null,null,null,null,null,null,null,null,null,null,null,null,null,null,null,null,null,null,null,null,null,null,null,{"$f":"IF(OR(A8=5,A8=1,A8=4,A8=\"Jefferson\"),IF(J8>O8,\"Ck Elevation order\",IF(O8=0,\"Enter 85% elev.\",IF(J8=0,\"Enter 10% elev.\",IF(J8>O8,\"Check Elevations\",IF(T8=0,\"Enter str.length\",(O8-J8)/(T8*0.75)))))),\"N/A\")","v":"N/A"},null,null,null,null,{"$f":"IF(E8=\"\",\"N/A\",IF(E8<VLOOKUP(A8,$AM$7:$AQ$16,2),$AM$3,IF(E8>VLOOKUP(A8,$AM$7:$AQ$16,3),$AM$4,IF(Y8=\"N/A\",#REF!,IF(Y8<VLOOKUP(A8,$AM$7:$AQ$16,4),#REF!,IF(Y8>VLOOKUP(A8,$AM$7:$AQ$16,5),#REF!,#REF!))))))","v":"N/A"},null,null,null,null,null,1,{"$f":"AJ8*4-2","v":2},null,1,0.16,1197,3.49,206]
["SUM",null,null,null,{"$f":"SUM(E6:I8)","v":0.64},null,null,null,null,null,null,null,null,null,null,null,null,null,null,null,null,null,null,null,null,null,null,null,null,null,null,null,null,null,null,2,{"$f":"AJ9*4-2","v":6},null,2,0.09,1232,null,99999]
[null,null,null,null,"Non-Weighted Flows",null,null,null,null,null,null,null,null,null,null,null,null,null,null,null,null,null,null,null,null,null,null,null,null,null,null,null,null,null,null,3,10,null,3,0.59,722,null,99999]
["Return",null,null,null,{"$f":"IF(E6>0,\"Region\",\"\")","v":"Region"},null,null,null,{"$f":"IF(E6=0,\"\",IF(1*ISNUMBER(A6)=0,MID(A6,1,4),A6))","v":1},{"$f":"IF(E7>0,\"Region\",\"\")","v":""},null,null,null,{"$f":"IF(E7=0,\"\",IF(1*ISNUMBER(A7)=0,MID(A7,1,4),A7))","v":""},{"$f":"IF(E8>0,\"Region\",\"\")","v":""},null,null,null,{"$f":"IF(E8=0,\"\",IF(1*ISNUMBER(A8)=0,MID(A8,1,4),A8))","v":""},"Weighted",null,null,null,null,null,null,null,null,null,null,null,null,null,null,null,4,14,null,4,0.26,960,3.6,343]
["Interval",null,null,null,{"$f":"IF(E6=0,\"\",IF(A6=\"Jefferson\",\"Quj\",\"Qr\"))","v":"Qr"},null,null,null,null,{"$f":"IF(E7=0,\"\",IF(A7=\"Jefferson\",\"Quj\",\"Qr\"))","v":""},null,null,null,null,{"$f":"IF(E8=0,\"\",IF(A8=\"Jefferson\",\"Quj\",\"Qr\"))","v":""},null,null,null,null,"Flows",null,null,null,null,null,null,null,null,null,null,null,null,null,null,null,5,18,null,5,0.24,1299,null,99999]
["(yrs)",null,null,null,{"$f":"IF(E6=0,\"\",\"(cfs)\")","v":"(cfs)"},null,null,null,null,{"$f":"IF(E7=0,\"\",\"(cfs)\")","v":""},null,null,null,null,{"$f":"IF(E8=0,\"\",\"(cfs)\")","v":""},null,null,null,null,null,null,null,null,null,null,null,null,null,null,null,null,null,null,null,null,6,22,null,6,0.22,757,null,99999]
[2,null,null,null,{"$f":"IF(E6>0,IF($A$6=\"Jefferson\",442*E6^0.635*Y6^0.128/(13-Urban!K10)^0.337,IF(OR($A$6=0,E9=0),0,IF(MID($A$6,1,1)=\"T\",VLOOKUP($A$14,Coefficients!$A$3:$AN$9,$AK$16)*$E$9^VLOOKUP($A$14,Coefficients!$A$3:$AN$9,$AK$16+1),IF($A$6=1,VLOOKUP($A$14,Coefficients!$A$3:$AB$9,$A$6+1+($A$6-1)*3)*$E$9^VLOOKUP($A$14,Coefficients!$A$3:$AB$9,$A$6+2+($A$6-1)*3),IF($Y$6=\"N/A\",VLOOKUP($A$14,Coefficients!$A$3:$AB$9,$A$6+1+($A$6-1)*3)*$E$9^VLOOKUP($A$14,Coefficients!$A$3:$AB$9,$A$6+2+($A$6-1)*3),VLOOKUP($A$14,Coefficients!$A$3:$AB$9,$A$6+1+($A$6-1)*3)*$E$9^VLOOKUP($A$14,Coefficients!$A$3:$AB$9,$A$6+2+($A$6-1)*3)*$Y$6^VLOOKUP($A$14,Coefficients!$A$3:$AB$9,$A$6+3+($A$6-1)*3))))))*IF(E9>0,1,0)*IF(A6=\"\",0,1),\" \")","v":231.05411975625844},null,null,null,null,{"$f":"IF(E7>0,IF($A$7=\"Jefferson\",442*E7^0.635*Y7^0.128/(13-Urban!K10)^0.337,IF(OR($A$7=0,E9=0),0,IF(MID($A$7,1,1)=\"T\",VLOOKUP($A$14,Coefficients!$A$3:$AN$9,$AK$16)*$E$9^VLOOKUP($A$14,Coefficients!$A$3:$AN$9,$AK$16+1),IF($A$7=1,VLOOKUP($A$14,Coefficients!$A$3:$AB$9,$A$7+1+($A$7-1)*3)*$E$9^VLOOKUP($A$14,Coefficients!$A$3:$AB$9,$A$7+2+($A$7-1)*3),IF($Y$7=\"N/A\",VLOOKUP($A$14,Coefficients!$A$3:$AB$9,$A$7+1+($A$7-1)*3)*$E$9^VLOOKUP($A$14,Coefficients!$A$3:$AB$9,$A$7+2+($A$7-1)*3),VLOOKUP($A$14,Coefficients!$A$3:$AB$9,$A$7+1+($A$7-1)*3)*$E$9^VLOOKUP($A$14,Coefficients!$A$3:$AB$9,$A$7+2+($A$7-1)*3)*$Y$6^VLOOKUP($A$14,Coefficients!$A$3:$AB$9,$A$7+3+($A$7-1)*3))))))*IF(E9>0,1,0)*IF(A7=\"\",0,1),\" \")","v":" "},null,null,null,null,{"$f":"IF(E8>0,IF($A$8=\"Jefferson\",442*E8^0.635*Y8^0.128/(13-Urban!K10)^0.337,IF(OR($A$8=0,E9=0),0,IF(MID($A$8,1,1)=\"T\",VLOOKUP($A$14,Coefficients!$A$3:$AN$9,$AK$16)*$E$9^VLOOKUP($A$14,Coefficients!$A$3:$AN$9,$AK$16+1),IF($A$8=1,VLOOKUP($A$14,Coefficients!$A$3:$AB$9,$A$8+1+($A$8-1)*3)*$E$9^VLOOKUP($A$14,Coefficients!$A$3:$AB$9,$A$8+2+($A$8-1)*3),IF($Y$8=\"N/A\",VLOOKUP($A$14,Coefficients!$A$3:$AB$9,$A$8+1+($A$8-1)*3)*$E$9^VLOOKUP($A$14,Coefficients!$A$3:$AB$9,$A$8+2+($A$8-1)*3),VLOOKUP($A$14,Coefficients!$A$3:$AB$9,$A$8+1+($A$8-1)*3)*$E$9^VLOOKUP($A$14,Coefficients!$A$3:$AB$9,$A$8+2+($A$8-1)*3)*$Y$8^VLOOKUP($A$14,Coefficients!$A$3:$AB$9,$A$8+3+($A$8-1)*3))))))*IF(E9>0,1,0)*IF(A8=\"\",0,1),\" \")","v":" "},null,null,null,null,{"$f":"IF($E$9>0,$E$6/$E$9*_xlfn.NUMBERVALUE(E14)+$E$7/$E$9*_xlfn.NUMBERVALUE(J14)+$E$8/$E$9*_xlfn.NUMBERVALUE(O14),0)","v":231.05411975625799},null,null,null,null,null,null,null,null,null,null,null,null,null,null,null,7,26,null,7,0.1,706,null,99999]
[5,null,null,null,{"$f":"IF(E6>0,IF($A$6=\"Jefferson\",517*E6^0.589*Y6^0.208/(13-Urban!K10)^0.268,IF(OR($A$6=0,E9=0),0,IF(MID($A$6,1,1)=\"T\",VLOOKUP($A$15,Coefficients!$A$3:$AN$9,$AK$16)*$E$9^VLOOKUP($A$15,Coefficients!$A$3:$AN$9,$AK$16+1),IF($A$6=1,VLOOKUP($A$15,Coefficients!$A$3:$AB$9,$A$6+1+($A$6-1)*3)*$E$9^VLOOKUP($A$15,Coefficients!$A$3:$AB$9,$A$6+2+($A$6-1)*3),IF($Y$6=\"N/A\",VLOOKUP($A$15,Coefficients!$A$3:$AB$9,$A$6+1+($A$6-1)*3)*$E$9^VLOOKUP($A$15,Coefficients!$A$3:$AB$9,$A$6+2+($A$6-1)*3),VLOOKUP($A$15,Coefficients!$A$3:$AB$9,$A$6+1+($A$6-1)*3)*$E$9^VLOOKUP($A$15,Coefficients!$A$3:$AB$9,$A$6+2+($A$6-1)*3)*$Y$6^VLOOKUP($A$15,Coefficients!$A$3:$AB$9,$A$6+3+($A$6-1)*3))))))*IF(E9>0,1,0)*IF(A6=\"\",0,1),\" \")","v":368.69740620148616},null,null,null,null,{"$f":"IF(E7>0,IF($A$7=\"Jefferson\",517*E7^0.589*Y7^0.208/(13-Urban!K10)^0.268,IF(OR($A$7=0,E9=0),0,IF(MID($A$7,1,1)=\"T\",VLOOKUP($A$15,Coefficients!$A$3:$AN$9,$AK$16)*$E$9^VLOOKUP($A$15,Coefficients!$A$3:$AN$9,$AK$16+1),IF($A$7=1,VLOOKUP($A$15,Coefficients!$A$3:$AB$9,$A$7+1+($A$7-1)*3)*$E$9^VLOOKUP($A$15,Coefficients!$A$3:$AB$9,$A$7+2+($A$7-1)*3),IF($Y$7=\"N/A\",VLOOKUP($A$15,Coefficients!$A$3:$AB$9,$A$7+1+($A$7-1)*3)*$E$9^VLOOKUP($A$15,Coefficients!$A$3:$AB$9,$A$7+2+($A$7-1)*3),VLOOKUP($A$15,Coefficients!$A$3:$AB$9,$A$7+1+($A$7-1)*3)*$E$9^VLOOKUP($A$15,Coefficients!$A$3:$AB$9,$A$7+2+($A$7-1)*3)*$Y$7^VLOOKUP($A$15,Coefficients!$A$3:$AB$9,$A$7+3+($A$7-1)*3))))))*IF(E9>0,1,0)*IF(A7=\"\",0,1),\" \")","v":" "},null,null,null,null,{"$f":"IF(E8>0,IF($A$8=\"Jefferson\",517*E8^0.589*Y8^0.208/(13-Urban!K10)^0.268,IF(OR($A$8=0,E9=0),0,IF(MID($A$8,1,1)=\"T\",VLOOKUP($A$15,Coefficients!$A$3:$AN$9,$AK$16)*$E$9^VLOOKUP($A$15,Coefficients!$A$3:$AN$9,$AK$16+1),IF($A$8=1,VLOOKUP($A$15,Coefficients!$A$3:$AB$9,$A$8+1+($A$8-1)*3)*$E$9^VLOOKUP($A$15,Coefficients!$A$3:$AB$9,$A$8+2+($A$8-1)*3),IF($Y$8=\"N/A\",VLOOKUP($A$15,Coefficients!$A$3:$AB$7,$A$8+1+($A$8-1)*3)*$E$9^VLOOKUP($A$15,Coefficients!$A$3:$AB$9,$A$8+2+($A$8-1)*3),VLOOKUP($A$15,Coefficients!$A$3:$AB$9,$A$8+1+($A$8-1)*3)*$E$9^VLOOKUP($A$15,Coefficients!$A$3:$AB$9,$A$8+2+($A$8-1)*3)*$Y$8^VLOOKUP($A$15,Coefficients!$A$3:$AB$9,$A$8+3+($A$8-1)*3))))))*IF(E9>0,1,0)*IF(A8=\"\",0,1),\" \")","v":" "},null,null,null,null,368.69740620148599,null,null,null,null,null,null,null,null,null,null,null,null,null,null,null,"Jefferson",null,null,"TN1",0.2,9000,null,99999]
[10,null,null,null,{"$f":"IF(E6>0,IF($A$6=\"Jefferson\",561*E6^0.574*Y6^0.243/(13-Urban!K10)^0.235,IF(OR($A$6=0,E9=0),0,IF(MID($A$6,1,1)=\"T\",VLOOKUP($A$16,Coefficients!$A$3:$AN$9,$AK$16)*$E$9^VLOOKUP($A$16,Coefficients!$A$3:$AN$9,$AK$16+1),IF($Y$6=\"N/A\",VLOOKUP($A$16,Coefficients!$A$3:$AB$9,$A$6+1+($A$6-1)*3)*$E$9^VLOOKUP($A$16,Coefficients!$A$3:$AB$9,$A$6+2+($A$6-1)*3),VLOOKUP($A$16,Coefficients!$A$3:$AB$9,$A$6+1+($A$6-1)*3)*$E$9^VLOOKUP($A$16,Coefficients!$A$3:$AB$9,$A$6+2+($A$6-1)*3)*$Y$6^VLOOKUP($A$16,Coefficients!$A$3:$AB$9,$A$6+3+($A$6-1)*3)))))*IF(E9>0,1,0)*IF(A6=\"\",0,1),\" \")","v":462.845582831429},{"$f":"IF(#REF!=\"N/A\",VLOOKUP(E16,Coefficients!$A$3:$AB$9,#REF!+1+(#REF!-1)*3)*#REF!^VLOOKUP(E16,Coefficients!$A$3:$AB$9,#REF!+2+(#REF!-1)*3),VLOOKUP(E16,Coefficients!$A$3:$AB$9,#REF!+1+(#REF!-1)*3)*#REF!^VLOOKUP(E16,Coefficients!$A$3:$AB$9,#REF!+2+(#REF!-1)*3)*#REF!^VLOOKUP(E16,Coefficients!$A$3:$AB$9,#REF!+3+(#REF!-1)*3))","v":{"$error":"#REF!"}},{"$f":"IF(#REF!=\"N/A\",VLOOKUP(F16,Coefficients!$A$3:$AB$9,#REF!+1+(#REF!-1)*3)*#REF!^VLOOKUP(F16,Coefficients!$A$3:$AB$9,#REF!+2+(#REF!-1)*3),VLOOKUP(F16,Coefficients!$A$3:$AB$9,#REF!+1+(#REF!-1)*3)*#REF!^VLOOKUP(F16,Coefficients!$A$3:$AB$9,#REF!+2+(#REF!-1)*3)*#REF!^VLOOKUP(F16,Coefficients!$A$3:$AB$9,#REF!+3+(#REF!-1)*3))","v":{"$error":"#REF!"}},{"$f":"IF(#REF!=\"N/A\",VLOOKUP(G16,Coefficients!$A$3:$AB$9,#REF!+1+(#REF!-1)*3)*#REF!^VLOOKUP(G16,Coefficients!$A$3:$AB$9,#REF!+2+(#REF!-1)*3),VLOOKUP(G16,Coefficients!$A$3:$AB$9,#REF!+1+(#REF!-1)*3)*#REF!^VLOOKUP(G16,Coefficients!$A$3:$AB$9,#REF!+2+(#REF!-1)*3)*#REF!^VLOOKUP(G16,Coefficients!$A$3:$AB$9,#REF!+3+(#REF!-1)*3))","v":{"$error":"#REF!"}},{"$f":"IF(#REF!=\"N/A\",VLOOKUP(H16,Coefficients!$A$3:$AB$9,#REF!+1+(#REF!-1)*3)*#REF!^VLOOKUP(H16,Coefficients!$A$3:$AB$9,#REF!+2+(#REF!-1)*3),VLOOKUP(H16,Coefficients!$A$3:$AB$9,#REF!+1+(#REF!-1)*3)*#REF!^VLOOKUP(H16,Coefficients!$A$3:$AB$9,#REF!+2+(#REF!-1)*3)*#REF!^VLOOKUP(H16,Coefficients!$A$3:$AB$9,#REF!+3+(#REF!-1)*3))","v":{"$error":"#REF!"}},{"$f":"IF(E7>0,IF($A$7=\"Jefferson\",561*E7^0.574*Y7^0.243/(13-Urban!K10)^0.235,IF(OR($A$7=0,E9=0),0,IF(MID($A$7,1,1)=\"T\",VLOOKUP($A$16,Coefficients!$A$3:$AN$9,$AK$16)*$E$9^VLOOKUP($A$16,Coefficients!$A$3:$AN$9,$AK$16+1),IF($Y$7=\"N/A\",VLOOKUP($A$16,Coefficients!$A$3:$AB$9,$A$7+1+($A$7-1)*3)*$E$9^VLOOKUP($A$16,Coefficients!$A$3:$AB$9,$A$7+2+($A$7-1)*3),VLOOKUP($A$16,Coefficients!$A$3:$AB$9,$A$7+1+($A$7-1)*3)*$E$9^VLOOKUP($A$16,Coefficients!$A$3:$AB$9,$A$7+2+($A$7-1)*3)*$Y$7^VLOOKUP($A$16,Coefficients!$A$3:$AB$9,$A$7+3+($A$7-1)*3)))))*IF(E9>0,1,0)*IF(A7=\"\",0,1),\" \")","v":" "},{"$f":"IF(#REF!=\"N/A\",VLOOKUP(J16,Coefficients!$A$3:$AB$9,#REF!+1+(#REF!-1)*3)*#REF!^VLOOKUP(J16,Coefficients!$A$3:$AB$9,#REF!+2+(#REF!-1)*3),VLOOKUP(J16,Coefficients!$A$3:$AB$9,#REF!+1+(#REF!-1)*3)*#REF!^VLOOKUP(J16,Coefficients!$A$3:$AB$9,#REF!+2+(#REF!-1)*3)*#REF!^VLOOKUP(J16,Coefficients!$A$3:$AB$9,#REF!+3+(#REF!-1)*3))","v":{"$error":"#REF!"}},{"$f":"IF(#REF!=\"N/A\",VLOOKUP(K16,Coefficients!$A$3:$AB$9,#REF!+1+(#REF!-1)*3)*#REF!^VLOOKUP(K16,Coefficients!$A$3:$AB$9,#REF!+2+(#REF!-1)*3),VLOOKUP(K16,Coefficients!$A$3:$AB$9,#REF!+1+(#REF!-1)*3)*#REF!^VLOOKUP(K16,Coefficients!$A$3:$AB$9,#REF!+2+(#REF!-1)*3)*#REF!^VLOOKUP(K16,Coefficients!$A$3:$AB$9,#REF!+3+(#REF!-1)*3))","v":{"$error":"#REF!"}},{"$f":"IF(#REF!=\"N/A\",VLOOKUP(L16,Coefficients!$A$3:$AB$9,#REF!+1+(#REF!-1)*3)*#REF!^VLOOKUP(L16,Coefficients!$A$3:$AB$9,#REF!+2+(#REF!-1)*3),VLOOKUP(L16,Coefficients!$A$3:$AB$9,#REF!+1+(#REF!-1)*3)*#REF!^VLOOKUP(L16,Coefficients!$A$3:$AB$9,#REF!+2+(#REF!-1)*3)*#REF!^VLOOKUP(L16,Coefficients!$A$3:$AB$9,#REF!+3+(#REF!-1)*3))","v":{"$error":"#REF!"}},{"$f":"IF(#REF!=\"N/A\",VLOOKUP(M16,Coefficients!$A$3:$AB$9,#REF!+1+(#REF!-1)*3)*#REF!^VLOOKUP(M16,Coefficients!$A$3:$AB$9,#REF!+2+(#REF!-1)*3),VLOOKUP(M16,Coefficients!$A$3:$AB$9,#REF!+1+(#REF!-1)*3)*#REF!^VLOOKUP(M16,Coefficients!$A$3:$AB$9,#REF!+2+(#REF!-1)*3)*#REF!^VLOOKUP(M16,Coefficients!$A$3:$AB$9,#REF!+3+(#REF!-1)*3))","v":{"$error":"#REF!"}},{"$f":"IF(E8>0,IF($A$8=\"Jefferson\",561*E8^0.574*Y8^0.243/(13-Urban!K10)^0.235,IF(OR($A$8=0,E9=0),0,IF(MID($A$8,1,1)=\"T\",VLOOKUP($A$16,Coefficients!$A$3:$AN$9,$AK$16)*$E$9^VLOOKUP($A$16,Coefficients!$A$3:$AN$9,$AK$16+1),IF($Y$8=\"N/A\",VLOOKUP($A$16,Coefficients!$A$3:$AB$9,$A$8+1+($A$8-1)*3)*$E$9^VLOOKUP($A$16,Coefficients!$A$3:$AB$9,$A$8+2+($A$8-1)*3),VLOOKUP($A$16,Coefficients!$A$3:$AB$9,$A$8+1+($A$8-1)*3)*$E$9^VLOOKUP($A$16,Coefficients!$A$3:$AB$9,$A$8+2+($A$8-1)*3)*$Y$8^VLOOKUP($A$16,Coefficients!$A$3:$AB$9,$A$8+3+($A$8-1)*3)))))*IF(E9>0,1,0)*IF(A8=\"\",0,1),\" \")","v":" "},{"$f":"IF(#REF!=\"N/A\",VLOOKUP(O16,Coefficients!$A$3:$AB$9,#REF!+1+(#REF!-1)*3)*#REF!^VLOOKUP(O16,Coefficients!$A$3:$AB$9,#REF!+2+(#REF!-1)*3),VLOOKUP(O16,Coefficients!$A$3:$AB$9,#REF!+1+(#REF!-1)*3)*#REF!^VLOOKUP(O16,Coefficients!$A$3:$AB$9,#REF!+2+(#REF!-1)*3)*#REF!^VLOOKUP(O16,Coefficients!$A$3:$AB$9,#REF!+3+(#REF!-1)*3))","v":{"$error":"#REF!"}},{"$f":"IF(#REF!=\"N/A\",VLOOKUP(P16,Coefficients!$A$3:$AB$9,#REF!+1+(#REF!-1)*3)*#REF!^VLOOKUP(P16,Coefficients!$A$3:$AB$9,#REF!+2+(#REF!-1)*3),VLOOKUP(P16,Coefficients!$A$3:$AB$9,#REF!+1+(#REF!-1)*3)*#REF!^VLOOKUP(P16,Coefficients!$A$3:$AB$9,#REF!+2+(#REF!-1)*3)*#REF!^VLOOKUP(P16,Coefficients!$A$3:$AB$9,#REF!+3+(#REF!-1)*3))","v":{"$error":"#REF!"}},{"$f":"IF(#REF!=\"N/A\",VLOOKUP(Q16,Coefficients!$A$3:$AB$9,#REF!+1+(#REF!-1)*3)*#REF!^VLOOKUP(Q16,Coefficients!$A$3:$AB$9,#REF!+2+(#REF!-1)*3),VLOOKUP(Q16,Coefficients!$A$3:$AB$9,#REF!+1+(#REF!-1)*3)*#REF!^VLOOKUP(Q16,Coefficients!$A$3:$AB$9,#REF!+2+(#REF!-1)*3)*#REF!^VLOOKUP(Q16,Coefficients!$A$3:$AB$9,#REF!+3+(#REF!-1)*3))","v":{"$error":"#REF!"}},{"$f":"IF(#REF!=\"N/A\",VLOOKUP(R16,Coefficients!$A$3:$AB$9,#REF!+1+(#REF!-1)*3)*#REF!^VLOOKUP(R16,Coefficients!$A$3:$AB$9,#REF!+2+(#REF!-1)*3),VLOOKUP(R16,Coefficients!$A$3:$AB$9,#REF!+1+(#REF!-1)*3)*#REF!^VLOOKUP(R16,Coefficients!$A$3:$AB$9,#REF!+2+(#REF!-1)*3)*#REF!^VLOOKUP(R16,Coefficients!$A$3:$AB$9,#REF!+3+(#REF!-1)*3))","v":{"$error":"#REF!"}},462.845582831429,null,null,null,null,null,null,null,null,null,null,null,null,null,null,null,"TN2",34,null,"TN2",0.47,2557,null,99999]
[25,null,null,null,{"$f":"IF(E6>0,IF($A$6=\"Jefferson\",647*E6^0.556*Y6^0.276/(13-Urban!K10)^0.209,IF(OR($A$6=0,E9=0),0,IF(MID($A$6,1,1)=\"T\",VLOOKUP($A$17,Coefficients!$A$3:$AN$9,$AK$16)*$E$9^VLOOKUP($A$17,Coefficients!$A$3:$AN$9,$AK$16+1),IF($Y$6=\"N/A\",VLOOKUP($A$17,Coefficients!$A$3:$AB$9,$A$6+1+($A$6-1)*3)*$E$9^VLOOKUP($A$17,Coefficients!$A$3:$AB$9,$A$6+2+($A$6-1)*3),VLOOKUP($A$17,Coefficients!$A$3:$AB$9,$A$6+1+($A$6-1)*3)*$E$9^VLOOKUP($A$17,Coefficients!$A$3:$AB$9,$A$6+2+($A$6-1)*3)*$Y$6^VLOOKUP($A$17,Coefficients!$A$3:$AB$9,$A$6+3+($A$6-1)*3)))))*IF(E9>0,1,0)*IF(A6=\"\",0,1),\" \")","v":588.17548755278892},{"$f":"IF(#REF!=\"N/A\",VLOOKUP(E17,Coefficients!$A$3:$AB$9,#REF!+1+(#REF!-1)*3)*#REF!^VLOOKUP(E17,Coefficients!$A$3:$AB$9,#REF!+2+(#REF!-1)*3),VLOOKUP(E17,Coefficients!$A$3:$AB$9,#REF!+1+(#REF!-1)*3)*#REF!^VLOOKUP(E17,Coefficients!$A$3:$AB$9,#REF!+2+(#REF!-1)*3)*#REF!^VLOOKUP(E17,Coefficients!$A$3:$AB$9,#REF!+3+(#REF!-1)*3))","v":{"$error":"#REF!"}},{"$f":"IF(#REF!=\"N/A\",VLOOKUP(F17,Coefficients!$A$3:$AB$9,#REF!+1+(#REF!-1)*3)*#REF!^VLOOKUP(F17,Coefficients!$A$3:$AB$9,#REF!+2+(#REF!-1)*3),VLOOKUP(F17,Coefficients!$A$3:$AB$9,#REF!+1+(#REF!-1)*3)*#REF!^VLOOKUP(F17,Coefficients!$A$3:$AB$9,#REF!+2+(#REF!-1)*3)*#REF!^VLOOKUP(F17,Coefficients!$A$3:$AB$9,#REF!+3+(#REF!-1)*3))","v":{"$error":"#REF!"}},{"$f":"IF(#REF!=\"N/A\",VLOOKUP(G17,Coefficients!$A$3:$AB$9,#REF!+1+(#REF!-1)*3)*#REF!^VLOOKUP(G17,Coefficients!$A$3:$AB$9,#REF!+2+(#REF!-1)*3),VLOOKUP(G17,Coefficients!$A$3:$AB$9,#REF!+1+(#REF!-1)*3)*#REF!^VLOOKUP(G17,Coefficients!$A$3:$AB$9,#REF!+2+(#REF!-1)*3)*#REF!^VLOOKUP(G17,Coefficients!$A$3:$AB$9,#REF!+3+(#REF!-1)*3))","v":{"$error":"#REF!"}},{"$f":"IF(#REF!=\"N/A\",VLOOKUP(H17,Coefficients!$A$3:$AB$9,#REF!+1+(#REF!-1)*3)*#REF!^VLOOKUP(H17,Coefficients!$A$3:$AB$9,#REF!+2+(#REF!-1)*3),VLOOKUP(H17,Coefficients!$A$3:$AB$9,#REF!+1+(#REF!-1)*3)*#REF!^VLOOKUP(H17,Coefficients!$A$3:$AB$9,#REF!+2+(#REF!-1)*3)*#REF!^VLOOKUP(H17,Coefficients!$A$3:$AB$9,#REF!+3+(#REF!-1)*3))","v":{"$error":"#REF!"}},{"$f":"IF(E7>0,IF($A$7=\"Jefferson\",647*E7^0.556*Y7^0.276/(13-Urban!K10)^0.209,IF(OR($A$7=0,E9=0),0,IF(MID($A$7,1,1)=\"T\",VLOOKUP($A$17,Coefficients!$A$3:$AN$9,$AK$16)*$E$9^VLOOKUP($A$17,Coefficients!$A$3:$AN$9,$AK$16+1),IF($Y$7=\"N/A\",VLOOKUP($A$17,Coefficients!$A$3:$AB$9,$A$7+1+($A$7-1)*3)*$E$9^VLOOKUP($A$17,Coefficients!$A$3:$AB$9,$A$7+2+($A$7-1)*3),VLOOKUP($A$17,Coefficients!$A$3:$AB$9,$A$7+1+($A$7-1)*3)*$E$9^VLOOKUP($A$17,Coefficients!$A$3:$AB$9,$A$7+2+($A$7-1)*3)*$Y$7^VLOOKUP($A$17,Coefficients!$A$3:$AB$9,$A$7+3+($A$7-1)*3)))))*IF(E9>0,1,0)*IF(A7=\"\",0,1),\" \")","v":" "},{"$f":"IF(#REF!=\"N/A\",VLOOKUP(J17,Coefficients!$A$3:$AB$9,#REF!+1+(#REF!-1)*3)*#REF!^VLOOKUP(J17,Coefficients!$A$3:$AB$9,#REF!+2+(#REF!-1)*3),VLOOKUP(J17,Coefficients!$A$3:$AB$9,#REF!+1+(#REF!-1)*3)*#REF!^VLOOKUP(J17,Coefficients!$A$3:$AB$9,#REF!+2+(#REF!-1)*3)*#REF!^VLOOKUP(J17,Coefficients!$A$3:$AB$9,#REF!+3+(#REF!-1)*3))","v":{"$error":"#REF!"}},{"$f":"IF(#REF!=\"N/A\",VLOOKUP(K17,Coefficients!$A$3:$AB$9,#REF!+1+(#REF!-1)*3)*#REF!^VLOOKUP(K17,Coefficients!$A$3:$AB$9,#REF!+2+(#REF!-1)*3),VLOOKUP(K17,Coefficients!$A$3:$AB$9,#REF!+1+(#REF!-1)*3)*#REF!^VLOOKUP(K17,Coefficients!$A$3:$AB$9,#REF!+2+(#REF!-1)*3)*#REF!^VLOOKUP(K17,Coefficients!$A$3:$AB$9,#REF!+3+(#REF!-1)*3))","v":{"$error":"#REF!"}},{"$f":"IF(#REF!=\"N/A\",VLOOKUP(L17,Coefficients!$A$3:$AB$9,#REF!+1+(#REF!-1)*3)*#REF!^VLOOKUP(L17,Coefficients!$A$3:$AB$9,#REF!+2+(#REF!-1)*3),VLOOKUP(L17,Coefficients!$A$3:$AB$9,#REF!+1+(#REF!-1)*3)*#REF!^VLOOKUP(L17,Coefficients!$A$3:$AB$9,#REF!+2+(#REF!-1)*3)*#REF!^VLOOKUP(L17,Coefficients!$A$3:$AB$9,#REF!+3+(#REF!-1)*3))","v":{"$error":"#REF!"}},{"$f":"IF(#REF!=\"N/A\",VLOOKUP(M17,Coefficients!$A$3:$AB$9,#REF!+1+(#REF!-1)*3)*#REF!^VLOOKUP(M17,Coefficients!$A$3:$AB$9,#REF!+2+(#REF!-1)*3),VLOOKUP(M17,Coefficients!$A$3:$AB$9,#REF!+1+(#REF!-1)*3)*#REF!^VLOOKUP(M17,Coefficients!$A$3:$AB$9,#REF!+2+(#REF!-1)*3)*#REF!^VLOOKUP(M17,Coefficients!$A$3:$AB$9,#REF!+3+(#REF!-1)*3))","v":{"$error":"#REF!"}},{"$f":"IF(E8>0,IF($A$8=\"Jefferson\",647*E8^0.556*Y8^0.276/(13-Urban!K10)^0.209,IF(OR($A$8=0,E9=0),0,IF(MID($A$8,1,1)=\"T\",VLOOKUP($A$17,Coefficients!$A$3:$AN$9,$AK$16)*$E$9^VLOOKUP($A$17,Coefficients!$A$3:$AN$9,$AK$16+1),IF($Y$8=\"N/A\",VLOOKUP($A$17,Coefficients!$A$3:$AB$9,$A$8+1+($A$8-1)*3)*$E$9^VLOOKUP($A$17,Coefficients!$A$3:$AB$9,$A$8+2+($A$8-1)*3),VLOOKUP($A$17,Coefficients!$A$3:$AB$9,$A$8+1+($A$8-1)*3)*$E$9^VLOOKUP($A$17,Coefficients!$A$3:$AB$9,$A$8+2+($A$8-1)*3)*$Y$8^VLOOKUP($A$17,Coefficients!$A$3:$AB$9,$A$8+3+($A$8-1)*3)))))*IF(E9>0,1,0)*IF(A8=\"\",0,1),\" \")","v":" "},{"$f":"IF(#REF!=\"N/A\",VLOOKUP(O17,Coefficients!$A$3:$AB$9,#REF!+1+(#REF!-1)*3)*#REF!^VLOOKUP(O17,Coefficients!$A$3:$AB$9,#REF!+2+(#REF!-1)*3),VLOOKUP(O17,Coefficients!$A$3:$AB$9,#REF!+1+(#REF!-1)*3)*#REF!^VLOOKUP(O17,Coefficients!$A$3:$AB$9,#REF!+2+(#REF!-1)*3)*#REF!^VLOOKUP(O17,Coefficients!$A$3:$AB$9,#REF!+3+(#REF!-1)*3))","v":{"$error":"#REF!"}},{"$f":"IF(#REF!=\"N/A\",VLOOKUP(P17,Coefficients!$A$3:$AB$9,#REF!+1+(#REF!-1)*3)*#REF!^VLOOKUP(P17,Coefficients!$A$3:$AB$9,#REF!+2+(#REF!-1)*3),VLOOKUP(P17,Coefficients!$A$3:$AB$9,#REF!+1+(#REF!-1)*3)*#REF!^VLOOKUP(P17,Coefficients!$A$3:$AB$9,#REF!+2+(#REF!-1)*3)*#REF!^VLOOKUP(P17,Coefficients!$A$3:$AB$9,#REF!+3+(#REF!-1)*3))","v":{"$error":"#REF!"}},{"$f":"IF(#REF!=\"N/A\",VLOOKUP(Q17,Coefficients!$A$3:$AB$9,#REF!+1+(#REF!-1)*3)*#REF!^VLOOKUP(Q17,Coefficients!$A$3:$AB$9,#REF!+2+(#REF!-1)*3),VLOOKUP(Q17,Coefficients!$A$3:$AB$9,#REF!+1+(#REF!-1)*3)*#REF!^VLOOKUP(Q17,Coefficients!$A$3:$AB$9,#REF!+2+(#REF!-1)*3)*#REF!^VLOOKUP(Q17,Coefficients!$A$3:$AB$9,#REF!+3+(#REF!-1)*3))","v":{"$error":"#REF!"}},{"$f":"IF(#REF!=\"N/A\",VLOOKUP(R17,Coefficients!$A$3:$AB$9,#REF!+1+(#REF!-1)*3)*#REF!^VLOOKUP(R17,Coefficients!$A$3:$AB$9,#REF!+2+(#REF!-1)*3),VLOOKUP(R17,Coefficients!$A$3:$AB$9,#REF!+1+(#REF!-1)*3)*#REF!^VLOOKUP(R17,Coefficients!$A$3:$AB$9,#REF!+2+(#REF!-1)*3)*#REF!^VLOOKUP(R17,Coefficients!$A$3:$AB$9,#REF!+3+(#REF!-1)*3))","v":{"$error":"#REF!"}},588.17548755278904]
[50,null,null,null,{"$f":"IF(E6>0,IF($A$6=\"Jefferson\",703*E6^0.547*Y6^0.295/(13-Urban!K10)^0.189,IF(OR($A$6=0,E9=0),0,IF(MID($A$6,1,1)=\"T\",VLOOKUP($A$18,Coefficients!$A$3:$AN$9,$AK$16)*$E$9^VLOOKUP($A$18,Coefficients!$A$3:$AN$9,$AK$16+1),IF($Y$6=\"N/A\",VLOOKUP($A$18,Coefficients!$A$3:$AB$9,$A$6+1+($A$6-1)*3)*$E$9^VLOOKUP($A$18,Coefficients!$A$3:$AB$9,$A$6+2+($A$6-1)*3),VLOOKUP($A$18,Coefficients!$A$3:$AB$9,$A$6+1+($A$6-1)*3)*$E$9^VLOOKUP($A$18,Coefficients!$A$3:$AB$9,$A$6+2+($A$6-1)*3)*$Y$6^VLOOKUP($A$18,Coefficients!$A$3:$AB$9,$A$6+3+($A$6-1)*3)))))*IF(E9>0,1,0)*IF(A6=\"\",0,1),\" \")","v":685.71333065182921},{"$f":"IF(#REF!=\"N/A\",VLOOKUP(E18,Coefficients!$A$3:$AB$9,#REF!+1+(#REF!-1)*3)*#REF!^VLOOKUP(E18,Coefficients!$A$3:$AB$9,#REF!+2+(#REF!-1)*3),VLOOKUP(E18,Coefficients!$A$3:$AB$9,#REF!+1+(#REF!-1)*3)*#REF!^VLOOKUP(E18,Coefficients!$A$3:$AB$9,#REF!+2+(#REF!-1)*3)*#REF!^VLOOKUP(E18,Coefficients!$A$3:$AB$9,#REF!+3+(#REF!-1)*3))","v":{"$error":"#REF!"}},{"$f":"IF(#REF!=\"N/A\",VLOOKUP(F18,Coefficients!$A$3:$AB$9,#REF!+1+(#REF!-1)*3)*#REF!^VLOOKUP(F18,Coefficients!$A$3:$AB$9,#REF!+2+(#REF!-1)*3),VLOOKUP(F18,Coefficients!$A$3:$AB$9,#REF!+1+(#REF!-1)*3)*#REF!^VLOOKUP(F18,Coefficients!$A$3:$AB$9,#REF!+2+(#REF!-1)*3)*#REF!^VLOOKUP(F18,Coefficients!$A$3:$AB$9,#REF!+3+(#REF!-1)*3))","v":{"$error":"#REF!"}},{"$f":"IF(#REF!=\"N/A\",VLOOKUP(G18,Coefficients!$A$3:$AB$9,#REF!+1+(#REF!-1)*3)*#REF!^VLOOKUP(G18,Coefficients!$A$3:$AB$9,#REF!+2+(#REF!-1)*3),VLOOKUP(G18,Coefficients!$A$3:$AB$9,#REF!+1+(#REF!-1)*3)*#REF!^VLOOKUP(G18,Coefficients!$A$3:$AB$9,#REF!+2+(#REF!-1)*3)*#REF!^VLOOKUP(G18,Coefficients!$A$3:$AB$9,#REF!+3+(#REF!-1)*3))","v":{"$error":"#REF!"}},{"$f":"IF(#REF!=\"N/A\",VLOOKUP(H18,Coefficients!$A$3:$AB$9,#REF!+1+(#REF!-1)*3)*#REF!^VLOOKUP(H18,Coefficients!$A$3:$AB$9,#REF!+2+(#REF!-1)*3),VLOOKUP(H18,Coefficients!$A$3:$AB$9,#REF!+1+(#REF!-1)*3)*#REF!^VLOOKUP(H18,Coefficients!$A$3:$AB$9,#REF!+2+(#REF!-1)*3)*#REF!^VLOOKUP(H18,Coefficients!$A$3:$AB$9,#REF!+3+(#REF!-1)*3))","v":{"$error":"#REF!"}},{"$f":"IF(E7>0,IF($A$7=\"Jefferson\",703*E7^0.547*Y7^0.295/(13-Urban!K10)^0.189,IF(OR($A$7=0,E9=0),0,IF(MID($A$7,1,1)=\"T\",VLOOKUP($A$18,Coefficients!$A$3:$AN$9,$AK$16)*$E$9^VLOOKUP($A$18,Coefficients!$A$3:$AN$9,$AK$16+1),IF($Y$7=\"N/A\",VLOOKUP($A$18,Coefficients!$A$3:$AB$9,$A$7+1+($A$7-1)*3)*$E$9^VLOOKUP($A$18,Coefficients!$A$3:$AB$9,$A$7+2+($A$7-1)*3),VLOOKUP($A$18,Coefficients!$A$3:$AB$9,$A$7+1+($A$7-1)*3)*$E$9^VLOOKUP($A$18,Coefficients!$A$3:$AB$9,$A$7+2+($A$7-1)*3)*$Y$7^VLOOKUP($A$18,Coefficients!$A$3:$AB$9,$A$7+3+($A$7-1)*3)))))*IF(E9>0,1,0)*IF(A7=\"\",0,1),\" \")","v":" "},{"$f":"IF(#REF!=\"N/A\",VLOOKUP(J18,Coefficients!$A$3:$AB$9,#REF!+1+(#REF!-1)*3)*#REF!^VLOOKUP(J18,Coefficients!$A$3:$AB$9,#REF!+2+(#REF!-1)*3),VLOOKUP(J18,Coefficients!$A$3:$AB$9,#REF!+1+(#REF!-1)*3)*#REF!^VLOOKUP(J18,Coefficients!$A$3:$AB$9,#REF!+2+(#REF!-1)*3)*#REF!^VLOOKUP(J18,Coefficients!$A$3:$AB$9,#REF!+3+(#REF!-1)*3))","v":{"$error":"#REF!"}},{"$f":"IF(#REF!=\"N/A\",VLOOKUP(K18,Coefficients!$A$3:$AB$9,#REF!+1+(#REF!-1)*3)*#REF!^VLOOKUP(K18,Coefficients!$A$3:$AB$9,#REF!+2+(#REF!-1)*3),VLOOKUP(K18,Coefficients!$A$3:$AB$9,#REF!+1+(#REF!-1)*3)*#REF!^VLOOKUP(K18,Coefficients!$A$3:$AB$9,#REF!+2+(#REF!-1)*3)*#REF!^VLOOKUP(K18,Coefficients!$A$3:$AB$9,#REF!+3+(#REF!-1)*3))","v":{"$error":"#REF!"}},{"$f":"IF(#REF!=\"N/A\",VLOOKUP(L18,Coefficients!$A$3:$AB$9,#REF!+1+(#REF!-1)*3)*#REF!^VLOOKUP(L18,Coefficients!$A$3:$AB$9,#REF!+2+(#REF!-1)*3),VLOOKUP(L18,Coefficients!$A$3:$AB$9,#REF!+1+(#REF!-1)*3)*#REF!^VLOOKUP(L18,Coefficients!$A$3:$AB$9,#REF!+2+(#REF!-1)*3)*#REF!^VLOOKUP(L18,Coefficients!$A$3:$AB$9,#REF!+3+(#REF!-1)*3))","v":{"$error":"#REF!"}},{"$f":"IF(#REF!=\"N/A\",VLOOKUP(M18,Coefficients!$A$3:$AB$9,#REF!+1+(#REF!-1)*3)*#REF!^VLOOKUP(M18,Coefficients!$A$3:$AB$9,#REF!+2+(#REF!-1)*3),VLOOKUP(M18,Coefficients!$A$3:$AB$9,#REF!+1+(#REF!-1)*3)*#REF!^VLOOKUP(M18,Coefficients!$A$3:$AB$9,#REF!+2+(#REF!-1)*3)*#REF!^VLOOKUP(M18,Coefficients!$A$3:$AB$9,#REF!+3+(#REF!-1)*3))","v":{"$error":"#REF!"}},{"$f":"IF(E8>0,IF($A$8=\"Jefferson\",703*E8^0.547*Y8^0.295/(13-Urban!K10)^0.189,IF(OR($A$8=0,E9=0),0,IF(MID($A$8,1,1)=\"T\",VLOOKUP($A$18,Coefficients!$A$3:$AN$9,$AK$16)*$E$9^VLOOKUP($A$18,Coefficients!$A$3:$AN$9,$AK$16+1),IF($Y$8=\"N/A\",VLOOKUP($A$18,Coefficients!$A$3:$AB$9,$A$8+1+($A$8-1)*3)*$E$9^VLOOKUP($A$18,Coefficients!$A$3:$AB$9,$A$8+2+($A$8-1)*3),VLOOKUP($A$18,Coefficients!$A$3:$AB$9,$A$8+1+($A$8-1)*3)*$E$9^VLOOKUP($A$18,Coefficients!$A$3:$AB$9,$A$8+2+($A$8-1)*3)*$Y$8^VLOOKUP($A$18,Coefficients!$A$3:$AB$9,$A$8+3+($A$8-1)*3)))))*IF(E9>0,1,0)*IF(A8=\"\",0,1),\" \")","v":" "},{"$f":"IF(#REF!=\"N/A\",VLOOKUP(O18,Coefficients!$A$3:$AB$9,#REF!+1+(#REF!-1)*3)*#REF!^VLOOKUP(O18,Coefficients!$A$3:$AB$9,#REF!+2+(#REF!-1)*3),VLOOKUP(O18,Coefficients!$A$3:$AB$9,#REF!+1+(#REF!-1)*3)*#REF!^VLOOKUP(O18,Coefficients!$A$3:$AB$9,#REF!+2+(#REF!-1)*3)*#REF!^VLOOKUP(O18,Coefficients!$A$3:$AB$9,#REF!+3+(#REF!-1)*3))","v":{"$error":"#REF!"}},{"$f":"IF(#REF!=\"N/A\",VLOOKUP(P18,Coefficients!$A$3:$AB$9,#REF!+1+(#REF!-1)*3)*#REF!^VLOOKUP(P18,Coefficients!$A$3:$AB$9,#REF!+2+(#REF!-1)*3),VLOOKUP(P18,Coefficients!$A$3:$AB$9,#REF!+1+(#REF!-1)*3)*#REF!^VLOOKUP(P18,Coefficients!$A$3:$AB$9,#REF!+2+(#REF!-1)*3)*#REF!^VLOOKUP(P18,Coefficients!$A$3:$AB$9,#REF!+3+(#REF!-1)*3))","v":{"$error":"#REF!"}},{"$f":"IF(#REF!=\"N/A\",VLOOKUP(Q18,Coefficients!$A$3:$AB$9,#REF!+1+(#REF!-1)*3)*#REF!^VLOOKUP(Q18,Coefficients!$A$3:$AB$9,#REF!+2+(#REF!-1)*3),VLOOKUP(Q18,Coefficients!$A$3:$AB$9,#REF!+1+(#REF!-1)*3)*#REF!^VLOOKUP(Q18,Coefficients!$A$3:$AB$9,#REF!+2+(#REF!-1)*3)*#REF!^VLOOKUP(Q18,Coefficients!$A$3:$AB$9,#REF!+3+(#REF!-1)*3))","v":{"$error":"#REF!"}},{"$f":"IF(#REF!=\"N/A\",VLOOKUP(R18,Coefficients!$A$3:$AB$9,#REF!+1+(#REF!-1)*3)*#REF!^VLOOKUP(R18,Coefficients!$A$3:$AB$9,#REF!+2+(#REF!-1)*3),VLOOKUP(R18,Coefficients!$A$3:$AB$9,#REF!+1+(#REF!-1)*3)*#REF!^VLOOKUP(R18,Coefficients!$A$3:$AB$9,#REF!+2+(#REF!-1)*3)*#REF!^VLOOKUP(R18,Coefficients!$A$3:$AB$9,#REF!+3+(#REF!-1)*3))","v":{"$error":"#REF!"}},685.71333065182898]
[100,null,null,null,{"$f":"IF(E6>0,IF($A$6=\"Jefferson\",780*E6^0.538*Y6^0.31/(13-Urban!K10)^0.181,IF(OR($A$6=0,E9=0),0,IF(MID($A$6,1,1)=\"T\",VLOOKUP($A$19,Coefficients!$A$3:$AN$9,$AK$16)*$E$9^VLOOKUP($A$19,Coefficients!$A$3:$AN$9,$AK$16+1),IF($A$6=4,VLOOKUP($A$19,Coefficients!$A$3:$AB$9,$A$6+1+($A$6-1)*3)*$E$9^VLOOKUP($A$19,Coefficients!$A$3:$AB$9,$A$6+2+($A$6-1)*3),IF($Y$6=\"N/A\",VLOOKUP($A$19,Coefficients!$A$3:$AB$9,$A$6+1+($A$6-1)*3)*$E$9^VLOOKUP($A$19,Coefficients!$A$3:$AB$9,$A$6+2+($A$6-1)*3),VLOOKUP($A$19,Coefficients!$A$3:$AB$9,$A$6+1+($A$6-1)*3)*$E$9^VLOOKUP($A$19,Coefficients!$A$3:$AB$9,$A$6+2+($A$6-1)*3)*$Y$6^VLOOKUP($A$19,Coefficients!$A$3:$AB$9,$A$6+3+($A$6-1)*3))))))*IF(E9>0,1,0)*IF(A6=\"\",0,1),\" \")","v":782.3928266267294},{"$f":"IF(#REF!=4,VLOOKUP(E19,Coefficients!$A$3:$AB$9,#REF!+1+(#REF!-1)*3)*#REF!^VLOOKUP(E19,Coefficients!$A$3:$AB$9,#REF!+2+(#REF!-1)*3),IF(#REF!=\"N/A\",VLOOKUP(E19,Coefficients!$A$3:$AB$9,#REF!+1+(#REF!-1)*3)*#REF!^VLOOKUP(E19,Coefficients!$A$3:$AB$9,#REF!+2+(#REF!-1)*3),VLOOKUP(E19,Coefficients!$A$3:$AB$9,#REF!+1+(#REF!-1)*3)*#REF!^VLOOKUP(E19,Coefficients!$A$3:$AB$9,#REF!+2+(#REF!-1)*3)*#REF!^VLOOKUP(E19,Coefficients!$A$3:$AB$9,#REF!+3+(#REF!-1)*3)))","v":{"$error":"#REF!"}},{"$f":"IF(#REF!=4,VLOOKUP(F19,Coefficients!$A$3:$AB$9,#REF!+1+(#REF!-1)*3)*#REF!^VLOOKUP(F19,Coefficients!$A$3:$AB$9,#REF!+2+(#REF!-1)*3),IF(#REF!=\"N/A\",VLOOKUP(F19,Coefficients!$A$3:$AB$9,#REF!+1+(#REF!-1)*3)*#REF!^VLOOKUP(F19,Coefficients!$A$3:$AB$9,#REF!+2+(#REF!-1)*3),VLOOKUP(F19,Coefficients!$A$3:$AB$9,#REF!+1+(#REF!-1)*3)*#REF!^VLOOKUP(F19,Coefficients!$A$3:$AB$9,#REF!+2+(#REF!-1)*3)*#REF!^VLOOKUP(F19,Coefficients!$A$3:$AB$9,#REF!+3+(#REF!-1)*3)))","v":{"$error":"#REF!"}},{"$f":"IF(#REF!=4,VLOOKUP(G19,Coefficients!$A$3:$AB$9,#REF!+1+(#REF!-1)*3)*#REF!^VLOOKUP(G19,Coefficients!$A$3:$AB$9,#REF!+2+(#REF!-1)*3),IF(#REF!=\"N/A\",VLOOKUP(G19,Coefficients!$A$3:$AB$9,#REF!+1+(#REF!-1)*3)*#REF!^VLOOKUP(G19,Coefficients!$A$3:$AB$9,#REF!+2+(#REF!-1)*3),VLOOKUP(G19,Coefficients!$A$3:$AB$9,#REF!+1+(#REF!-1)*3)*#REF!^VLOOKUP(G19,Coefficients!$A$3:$AB$9,#REF!+2+(#REF!-1)*3)*#REF!^VLOOKUP(G19,Coefficients!$A$3:$AB$9,#REF!+3+(#REF!-1)*3)))","v":{"$error":"#REF!"}},{"$f":"IF(#REF!=4,VLOOKUP(H19,Coefficients!$A$3:$AB$9,#REF!+1+(#REF!-1)*3)*#REF!^VLOOKUP(H19,Coefficients!$A$3:$AB$9,#REF!+2+(#REF!-1)*3),IF(#REF!=\"N/A\",VLOOKUP(H19,Coefficients!$A$3:$AB$9,#REF!+1+(#REF!-1)*3)*#REF!^VLOOKUP(H19,Coefficients!$A$3:$AB$9,#REF!+2+(#REF!-1)*3),VLOOKUP(H19,Coefficients!$A$3:$AB$9,#REF!+1+(#REF!-1)*3)*#REF!^VLOOKUP(H19,Coefficients!$A$3:$AB$9,#REF!+2+(#REF!-1)*3)*#REF!^VLOOKUP(H19,Coefficients!$A$3:$AB$9,#REF!+3+(#REF!-1)*3)))","v":{"$error":"#REF!"}},{"$f":"IF(E7>0,IF($A$7=\"Jefferson\",780*E7^0.538*Y7^0.31/(13-Urban!K10)^0.181,IF(OR($A$7=0,E9=0),0,IF(MID($A$7,1,1)=\"T\",VLOOKUP($A$19,Coefficients!$A$3:$AN$9,$AK$16)*$E$9^VLOOKUP($A$19,Coefficients!$A$3:$AN$9,$AK$16+1),IF($A$7=4,VLOOKUP($A$19,Coefficients!$A$3:$AB$9,$A$7+1+($A$7-1)*3)*$E$9^VLOOKUP($A$19,Coefficients!$A$3:$AB$9,$A$7+2+($A$7-1)*3),IF($Y$7=\"N/A\",VLOOKUP($A$19,Coefficients!$A$3:$AB$9,$A$7+1+($A$7-1)*3)*$E$9^VLOOKUP($A$19,Coefficients!$A$3:$AB$9,$A$7+2+($A$7-1)*3),VLOOKUP($A$19,Coefficients!$A$3:$AB$9,$A$7+1+($A$7-1)*3)*$E$9^VLOOKUP($A$19,Coefficients!$A$3:$AB$9,$A$7+2+($A$7-1)*3)*$Y$7^VLOOKUP($A$19,Coefficients!$A$3:$AB$9,$A$7+3+($A$7-1)*3))))))*IF(E9>0,1,0)*IF(A7=\"\",0,1),\" \")","v":" "},{"$f":"IF(#REF!=4,VLOOKUP(J19,Coefficients!$A$3:$AB$9,#REF!+1+(#REF!-1)*3)*#REF!^VLOOKUP(J19,Coefficients!$A$3:$AB$9,#REF!+2+(#REF!-1)*3),IF(#REF!=\"N/A\",VLOOKUP(J19,Coefficients!$A$3:$AB$9,#REF!+1+(#REF!-1)*3)*#REF!^VLOOKUP(J19,Coefficients!$A$3:$AB$9,#REF!+2+(#REF!-1)*3),VLOOKUP(J19,Coefficients!$A$3:$AB$9,#REF!+1+(#REF!-1)*3)*#REF!^VLOOKUP(J19,Coefficients!$A$3:$AB$9,#REF!+2+(#REF!-1)*3)*#REF!^VLOOKUP(J19,Coefficients!$A$3:$AB$9,#REF!+3+(#REF!-1)*3)))","v":{"$error":"#REF!"}},{"$f":"IF(#REF!=4,VLOOKUP(K19,Coefficients!$A$3:$AB$9,#REF!+1+(#REF!-1)*3)*#REF!^VLOOKUP(K19,Coefficients!$A$3:$AB$9,#REF!+2+(#REF!-1)*3),IF(#REF!=\"N/A\",VLOOKUP(K19,Coefficients!$A$3:$AB$9,#REF!+1+(#REF!-1)*3)*#REF!^VLOOKUP(K19,Coefficients!$A$3:$AB$9,#REF!+2+(#REF!-1)*3),VLOOKUP(K19,Coefficients!$A$3:$AB$9,#REF!+1+(#REF!-1)*3)*#REF!^VLOOKUP(K19,Coefficients!$A$3:$AB$9,#REF!+2+(#REF!-1)*3)*#REF!^VLOOKUP(K19,Coefficients!$A$3:$AB$9,#REF!+3+(#REF!-1)*3)))","v":{"$error":"#REF!"}},{"$f":"IF(#REF!=4,VLOOKUP(L19,Coefficients!$A$3:$AB$9,#REF!+1+(#REF!-1)*3)*#REF!^VLOOKUP(L19,Coefficients!$A$3:$AB$9,#REF!+2+(#REF!-1)*3),IF(#REF!=\"N/A\",VLOOKUP(L19,Coefficients!$A$3:$AB$9,#REF!+1+(#REF!-1)*3)*#REF!^VLOOKUP(L19,Coefficients!$A$3:$AB$9,#REF!+2+(#REF!-1)*3),VLOOKUP(L19,Coefficients!$A$3:$AB$9,#REF!+1+(#REF!-1)*3)*#REF!^VLOOKUP(L19,Coefficients!$A$3:$AB$9,#REF!+2+(#REF!-1)*3)*#REF!^VLOOKUP(L19,Coefficients!$A$3:$AB$9,#REF!+3+(#REF!-1)*3)))","v":{"$error":"#REF!"}},{"$f":"IF(#REF!=4,VLOOKUP(M19,Coefficients!$A$3:$AB$9,#REF!+1+(#REF!-1)*3)*#REF!^VLOOKUP(M19,Coefficients!$A$3:$AB$9,#REF!+2+(#REF!-1)*3),IF(#REF!=\"N/A\",VLOOKUP(M19,Coefficients!$A$3:$AB$9,#REF!+1+(#REF!-1)*3)*#REF!^VLOOKUP(M19,Coefficients!$A$3:$AB$9,#REF!+2+(#REF!-1)*3),VLOOKUP(M19,Coefficients!$A$3:$AB$9,#REF!+1+(#REF!-1)*3)*#REF!^VLOOKUP(M19,Coefficients!$A$3:$AB$9,#REF!+2+(#REF!-1)*3)*#REF!^VLOOKUP(M19,Coefficients!$A$3:$AB$9,#REF!+3+(#REF!-1)*3)))","v":{"$error":"#REF!"}},{"$f":"IF(E8>0,IF($A$8=\"Jefferson\",780*E8^0.538*Y8^0.31/(13-Urban!K10)^0.181,IF(OR($A$8=0,E9=0),0,IF(MID($A$8,1,1)=\"T\",VLOOKUP($A$19,Coefficients!$A$3:$AN$9,$AK$16)*$E$9^VLOOKUP($A$19,Coefficients!$A$3:$AN$9,$AK$16+1),IF($A$8=4,VLOOKUP($A$19,Coefficients!$A$3:$AB$9,$A$8+1+($A$8-1)*3)*$E$9^VLOOKUP($A$19,Coefficients!$A$3:$AB$9,$A$8+2+($A$8-1)*3),IF($Y$8=\"N/A\",VLOOKUP($A$19,Coefficients!$A$3:$AB$9,$A$8+1+($A$8-1)*3)*$E$9^VLOOKUP($A$19,Coefficients!$A$3:$AB$9,$A$8+2+($A$8-1)*3),VLOOKUP($A$19,Coefficients!$A$3:$AB$9,$A$8+1+($A$8-1)*3)*$E$9^VLOOKUP($A$19,Coefficients!$A$3:$AB$9,$A$8+2+($A$8-1)*3)*$Y$8^VLOOKUP($A$19,Coefficients!$A$3:$AB$9,$A$8+3+($A$8-1)*3))))))*IF(E9>0,1,0)*IF(A8=\"\",0,1),\" \")","v":" "},{"$f":"IF(#REF!=4,VLOOKUP(O19,Coefficients!$A$3:$AB$9,#REF!+1+(#REF!-1)*3)*#REF!^VLOOKUP(O19,Coefficients!$A$3:$AB$9,#REF!+2+(#REF!-1)*3),IF(#REF!=\"N/A\",VLOOKUP(O19,Coefficients!$A$3:$AB$9,#REF!+1+(#REF!-1)*3)*#REF!^VLOOKUP(O19,Coefficients!$A$3:$AB$9,#REF!+2+(#REF!-1)*3),VLOOKUP(O19,Coefficients!$A$3:$AB$9,#REF!+1+(#REF!-1)*3)*#REF!^VLOOKUP(O19,Coefficients!$A$3:$AB$9,#REF!+2+(#REF!-1)*3)*#REF!^VLOOKUP(O19,Coefficients!$A$3:$AB$9,#REF!+3+(#REF!-1)*3)))","v":{"$error":"#REF!"}},{"$f":"IF(#REF!=4,VLOOKUP(P19,Coefficients!$A$3:$AB$9,#REF!+1+(#REF!-1)*3)*#REF!^VLOOKUP(P19,Coefficients!$A$3:$AB$9,#REF!+2+(#REF!-1)*3),IF(#REF!=\"N/A\",VLOOKUP(P19,Coefficients!$A$3:$AB$9,#REF!+1+(#REF!-1)*3)*#REF!^VLOOKUP(P19,Coefficients!$A$3:$AB$9,#REF!+2+(#REF!-1)*3),VLOOKUP(P19,Coefficients!$A$3:$AB$9,#REF!+1+(#REF!-1)*3)*#REF!^VLOOKUP(P19,Coefficients!$A$3:$AB$9,#REF!+2+(#REF!-1)*3)*#REF!^VLOOKUP(P19,Coefficients!$A$3:$AB$9,#REF!+3+(#REF!-1)*3)))","v":{"$error":"#REF!"}},{"$f":"IF(#REF!=4,VLOOKUP(Q19,Coefficients!$A$3:$AB$9,#REF!+1+(#REF!-1)*3)*#REF!^VLOOKUP(Q19,Coefficients!$A$3:$AB$9,#REF!+2+(#REF!-1)*3),IF(#REF!=\"N/A\",VLOOKUP(Q19,Coefficients!$A$3:$AB$9,#REF!+1+(#REF!-1)*3)*#REF!^VLOOKUP(Q19,Coefficients!$A$3:$AB$9,#REF!+2+(#REF!-1)*3),VLOOKUP(Q19,Coefficients!$A$3:$AB$9,#REF!+1+(#REF!-1)*3)*#REF!^VLOOKUP(Q19,Coefficients!$A$3:$AB$9,#REF!+2+(#REF!-1)*3)*#REF!^VLOOKUP(Q19,Coefficients!$A$3:$AB$9,#REF!+3+(#REF!-1)*3)))","v":{"$error":"#REF!"}},{"$f":"IF(#REF!=4,VLOOKUP(R19,Coefficients!$A$3:$AB$9,#REF!+1+(#REF!-1)*3)*#REF!^VLOOKUP(R19,Coefficients!$A$3:$AB$9,#REF!+2+(#REF!-1)*3),IF(#REF!=\"N/A\",VLOOKUP(R19,Coefficients!$A$3:$AB$9,#REF!+1+(#REF!-1)*3)*#REF!^VLOOKUP(R19,Coefficients!$A$3:$AB$9,#REF!+2+(#REF!-1)*3),VLOOKUP(R19,Coefficients!$A$3:$AB$9,#REF!+1+(#REF!-1)*3)*#REF!^VLOOKUP(R19,Coefficients!$A$3:$AB$9,#REF!+2+(#REF!-1)*3)*#REF!^VLOOKUP(R19,Coefficients!$A$3:$AB$9,#REF!+3+(#REF!-1)*3)))","v":{"$error":"#REF!"}},782.39282662672895]
[500,null,null,null,{"$f":"IF(E6>0,IF($A$6=\"Jefferson\",E19*1.25,IF(OR($A$6=0,E9=0),0,IF(MID($A$6,1,1)=\"T\",VLOOKUP($A$20,Coefficients!$A$3:$AN$9,$AK$16)*$E$9^VLOOKUP($A$20,Coefficients!$A$3:$AN$9,$AK$16+1),IF($A$6=4,VLOOKUP($A$20,Coefficients!$A$3:$AB$9,$A$6+1+($A$6-1)*3)*$E$9^VLOOKUP($A$20,Coefficients!$A$3:$AB$9,$A$6+2+($A$6-1)*3),IF($Y$6=\"N/A\",VLOOKUP($A$20,Coefficients!$A$3:$AB$9,$A$6+1+($A$6-1)*3)*$E$9^VLOOKUP($A$20,Coefficients!$A$3:$AB$9,$A$6+2+($A$6-1)*3),VLOOKUP($A$20,Coefficients!$A$3:$AB$9,$A$6+1+($A$6-1)*3)*$E$9^VLOOKUP($A$20,Coefficients!$A$3:$AB$9,$A$6+2+($A$6-1)*3)*$Y$6^VLOOKUP($A$20,Coefficients!$A$3:$AB$9,$A$6+3+($A$6-1)*3))))))*IF(E9>0,1,0)*IF(A6=\"\",0,1),\" \")","v":1022.5634996088876},{"$f":"IF(#REF!=4,VLOOKUP(E20,Coefficients!$A$3:$AB$9,#REF!+1+(#REF!-1)*3)*#REF!^VLOOKUP(E20,Coefficients!$A$3:$AB$9,#REF!+2+(#REF!-1)*3),IF(#REF!=\"N/A\",VLOOKUP(E20,Coefficients!$A$3:$AB$9,#REF!+1+(#REF!-1)*3)*#REF!^VLOOKUP(E20,Coefficients!$A$3:$AB$9,#REF!+2+(#REF!-1)*3),VLOOKUP(E20,Coefficients!$A$3:$AB$9,#REF!+1+(#REF!-1)*3)*#REF!^VLOOKUP(E20,Coefficients!$A$3:$AB$9,#REF!+2+(#REF!-1)*3)*#REF!^VLOOKUP(E20,Coefficients!$A$3:$AB$9,#REF!+3+(#REF!-1)*3)))","v":{"$error":"#REF!"}},{"$f":"IF(#REF!=4,VLOOKUP(F20,Coefficients!$A$3:$AB$9,#REF!+1+(#REF!-1)*3)*#REF!^VLOOKUP(F20,Coefficients!$A$3:$AB$9,#REF!+2+(#REF!-1)*3),IF(#REF!=\"N/A\",VLOOKUP(F20,Coefficients!$A$3:$AB$9,#REF!+1+(#REF!-1)*3)*#REF!^VLOOKUP(F20,Coefficients!$A$3:$AB$9,#REF!+2+(#REF!-1)*3),VLOOKUP(F20,Coefficients!$A$3:$AB$9,#REF!+1+(#REF!-1)*3)*#REF!^VLOOKUP(F20,Coefficients!$A$3:$AB$9,#REF!+2+(#REF!-1)*3)*#REF!^VLOOKUP(F20,Coefficients!$A$3:$AB$9,#REF!+3+(#REF!-1)*3)))","v":{"$error":"#REF!"}},{"$f":"IF(#REF!=4,VLOOKUP(G20,Coefficients!$A$3:$AB$9,#REF!+1+(#REF!-1)*3)*#REF!^VLOOKUP(G20,Coefficients!$A$3:$AB$9,#REF!+2+(#REF!-1)*3),IF(#REF!=\"N/A\",VLOOKUP(G20,Coefficients!$A$3:$AB$9,#REF!+1+(#REF!-1)*3)*#REF!^VLOOKUP(G20,Coefficients!$A$3:$AB$9,#REF!+2+(#REF!-1)*3),VLOOKUP(G20,Coefficients!$A$3:$AB$9,#REF!+1+(#REF!-1)*3)*#REF!^VLOOKUP(G20,Coefficients!$A$3:$AB$9,#REF!+2+(#REF!-1)*3)*#REF!^VLOOKUP(G20,Coefficients!$A$3:$AB$9,#REF!+3+(#REF!-1)*3)))","v":{"$error":"#REF!"}},{"$f":"IF(#REF!=4,VLOOKUP(H20,Coefficients!$A$3:$AB$9,#REF!+1+(#REF!-1)*3)*#REF!^VLOOKUP(H20,Coefficients!$A$3:$AB$9,#REF!+2+(#REF!-1)*3),IF(#REF!=\"N/A\",VLOOKUP(H20,Coefficients!$A$3:$AB$9,#REF!+1+(#REF!-1)*3)*#REF!^VLOOKUP(H20,Coefficients!$A$3:$AB$9,#REF!+2+(#REF!-1)*3),VLOOKUP(H20,Coefficients!$A$3:$AB$9,#REF!+1+(#REF!-1)*3)*#REF!^VLOOKUP(H20,Coefficients!$A$3:$AB$9,#REF!+2+(#REF!-1)*3)*#REF!^VLOOKUP(H20,Coefficients!$A$3:$AB$9,#REF!+3+(#REF!-1)*3)))","v":{"$error":"#REF!"}},{"$f":"IF(E7>0,IF($A$7=\"Jefferson\",J19*1.25,IF(OR($A$7=0,E9=0),0,IF(MID($A$7,1,1)=\"T\",VLOOKUP($A$20,Coefficients!$A$3:$AN$9,$AK$16)*$E$9^VLOOKUP($A$20,Coefficients!$A$3:$AN$9,$AK$16+1),IF($A$7=4,VLOOKUP($A$20,Coefficients!$A$3:$AB$9,$A$7+1+($A$7-1)*3)*$E$9^VLOOKUP($A$20,Coefficients!$A$3:$AB$9,$A$7+2+($A$7-1)*3),IF($Y$7=\"N/A\",VLOOKUP($A$20,Coefficients!$A$3:$AB$9,$A$7+1+($A$7-1)*3)*$E$9^VLOOKUP($A$20,Coefficients!$A$3:$AB$9,$A$7+2+($A$7-1)*3),VLOOKUP($A$20,Coefficients!$A$3:$AB$9,$A$7+1+($A$7-1)*3)*$E$9^VLOOKUP($A$20,Coefficients!$A$3:$AB$9,$A$7+2+($A$7-1)*3)*$Y$7^VLOOKUP($A$20,Coefficients!$A$3:$AB$9,$A$7+3+($A$7-1)*3))))))*IF(E9>0,1,0)*IF(A7=\"\",0,1),\" \")","v":" "},{"$f":"IF(#REF!=4,VLOOKUP(J20,Coefficients!$A$3:$AB$9,#REF!+1+(#REF!-1)*3)*#REF!^VLOOKUP(J20,Coefficients!$A$3:$AB$9,#REF!+2+(#REF!-1)*3),IF(#REF!=\"N/A\",VLOOKUP(J20,Coefficients!$A$3:$AB$9,#REF!+1+(#REF!-1)*3)*#REF!^VLOOKUP(J20,Coefficients!$A$3:$AB$9,#REF!+2+(#REF!-1)*3),VLOOKUP(J20,Coefficients!$A$3:$AB$9,#REF!+1+(#REF!-1)*3)*#REF!^VLOOKUP(J20,Coefficients!$A$3:$AB$9,#REF!+2+(#REF!-1)*3)*#REF!^VLOOKUP(J20,Coefficients!$A$3:$AB$9,#REF!+3+(#REF!-1)*3)))","v":{"$error":"#REF!"}},{"$f":"IF(#REF!=4,VLOOKUP(K20,Coefficients!$A$3:$AB$9,#REF!+1+(#REF!-1)*3)*#REF!^VLOOKUP(K20,Coefficients!$A$3:$AB$9,#REF!+2+(#REF!-1)*3),IF(#REF!=\"N/A\",VLOOKUP(K20,Coefficients!$A$3:$AB$9,#REF!+1+(#REF!-1)*3)*#REF!^VLOOKUP(K20,Coefficients!$A$3:$AB$9,#REF!+2+(#REF!-1)*3),VLOOKUP(K20,Coefficients!$A$3:$AB$9,#REF!+1+(#REF!-1)*3)*#REF!^VLOOKUP(K20,Coefficients!$A$3:$AB$9,#REF!+2+(#REF!-1)*3)*#REF!^VLOOKUP(K20,Coefficients!$A$3:$AB$9,#REF!+3+(#REF!-1)*3)))","v":{"$error":"#REF!"}},{"$f":"IF(#REF!=4,VLOOKUP(L20,Coefficients!$A$3:$AB$9,#REF!+1+(#REF!-1)*3)*#REF!^VLOOKUP(L20,Coefficients!$A$3:$AB$9,#REF!+2+(#REF!-1)*3),IF(#REF!=\"N/A\",VLOOKUP(L20,Coefficients!$A$3:$AB$9,#REF!+1+(#REF!-1)*3)*#REF!^VLOOKUP(L20,Coefficients!$A$3:$AB$9,#REF!+2+(#REF!-1)*3),VLOOKUP(L20,Coefficients!$A$3:$AB$9,#REF!+1+(#REF!-1)*3)*#REF!^VLOOKUP(L20,Coefficients!$A$3:$AB$9,#REF!+2+(#REF!-1)*3)*#REF!^VLOOKUP(L20,Coefficients!$A$3:$AB$9,#REF!+3+(#REF!-1)*3)))","v":{"$error":"#REF!"}},{"$f":"IF(#REF!=4,VLOOKUP(M20,Coefficients!$A$3:$AB$9,#REF!+1+(#REF!-1)*3)*#REF!^VLOOKUP(M20,Coefficients!$A$3:$AB$9,#REF!+2+(#REF!-1)*3),IF(#REF!=\"N/A\",VLOOKUP(M20,Coefficients!$A$3:$AB$9,#REF!+1+(#REF!-1)*3)*#REF!^VLOOKUP(M20,Coefficients!$A$3:$AB$9,#REF!+2+(#REF!-1)*3),VLOOKUP(M20,Coefficients!$A$3:$AB$9,#REF!+1+(#REF!-1)*3)*#REF!^VLOOKUP(M20,Coefficients!$A$3:$AB$9,#REF!+2+(#REF!-1)*3)*#REF!^VLOOKUP(M20,Coefficients!$A$3:$AB$9,#REF!+3+(#REF!-1)*3)))","v":{"$error":"#REF!"}},{"$f":"IF(E8>0,IF($A$8=\"Jefferson\",O19*1.25,IF(OR($A$8=0,E9=0),0,IF(MID($A$8,1,1)=\"T\",VLOOKUP($A$20,Coefficients!$A$3:$AN$9,$AK$16)*$E$9^VLOOKUP($A$20,Coefficients!$A$3:$AN$9,$AK$16+1),IF($A$8=4,VLOOKUP($A$20,Coefficients!$A$3:$AB$9,$A$8+1+($A$8-1)*3)*$E$9^VLOOKUP($A$20,Coefficients!$A$3:$AB$9,$A$8+2+($A$8-1)*3),IF($Y$8=\"N/A\",VLOOKUP($A$20,Coefficients!$A$3:$AB$9,$A$8+1+($A$8-1)*3)*$E$9^VLOOKUP($A$20,Coefficients!$A$3:$AB$9,$A$8+2+($A$8-1)*3),VLOOKUP($A$20,Coefficients!$A$3:$AB$9,$A$8+1+($A$8-1)*3)*$E$9^VLOOKUP($A$20,Coefficients!$A$3:$AB$9,$A$8+2+($A$8-1)*3)*$Y$8^VLOOKUP($A$20,Coefficients!$A$3:$AB$9,$A$8+3+($A$8-1)*3))))))*IF(A8=\"\",0,1),\" \")","v":" "},{"$f":"IF(#REF!=4,VLOOKUP(O20,Coefficients!$A$3:$AB$9,#REF!+1+(#REF!-1)*3)*#REF!^VLOOKUP(O20,Coefficients!$A$3:$AB$9,#REF!+2+(#REF!-1)*3),IF(#REF!=\"N/A\",VLOOKUP(O20,Coefficients!$A$3:$AB$9,#REF!+1+(#REF!-1)*3)*#REF!^VLOOKUP(O20,Coefficients!$A$3:$AB$9,#REF!+2+(#REF!-1)*3),VLOOKUP(O20,Coefficients!$A$3:$AB$9,#REF!+1+(#REF!-1)*3)*#REF!^VLOOKUP(O20,Coefficients!$A$3:$AB$9,#REF!+2+(#REF!-1)*3)*#REF!^VLOOKUP(O20,Coefficients!$A$3:$AB$9,#REF!+3+(#REF!-1)*3)))","v":{"$error":"#REF!"}},{"$f":"IF(#REF!=4,VLOOKUP(P20,Coefficients!$A$3:$AB$9,#REF!+1+(#REF!-1)*3)*#REF!^VLOOKUP(P20,Coefficients!$A$3:$AB$9,#REF!+2+(#REF!-1)*3),IF(#REF!=\"N/A\",VLOOKUP(P20,Coefficients!$A$3:$AB$9,#REF!+1+(#REF!-1)*3)*#REF!^VLOOKUP(P20,Coefficients!$A$3:$AB$9,#REF!+2+(#REF!-1)*3),VLOOKUP(P20,Coefficients!$A$3:$AB$9,#REF!+1+(#REF!-1)*3)*#REF!^VLOOKUP(P20,Coefficients!$A$3:$AB$9,#REF!+2+(#REF!-1)*3)*#REF!^VLOOKUP(P20,Coefficients!$A$3:$AB$9,#REF!+3+(#REF!-1)*3)))","v":{"$error":"#REF!"}},{"$f":"IF(#REF!=4,VLOOKUP(Q20,Coefficients!$A$3:$AB$9,#REF!+1+(#REF!-1)*3)*#REF!^VLOOKUP(Q20,Coefficients!$A$3:$AB$9,#REF!+2+(#REF!-1)*3),IF(#REF!=\"N/A\",VLOOKUP(Q20,Coefficients!$A$3:$AB$9,#REF!+1+(#REF!-1)*3)*#REF!^VLOOKUP(Q20,Coefficients!$A$3:$AB$9,#REF!+2+(#REF!-1)*3),VLOOKUP(Q20,Coefficients!$A$3:$AB$9,#REF!+1+(#REF!-1)*3)*#REF!^VLOOKUP(Q20,Coefficients!$A$3:$AB$9,#REF!+2+(#REF!-1)*3)*#REF!^VLOOKUP(Q20,Coefficients!$A$3:$AB$9,#REF!+3+(#REF!-1)*3)))","v":{"$error":"#REF!"}},{"$f":"IF(#REF!=4,VLOOKUP(R20,Coefficients!$A$3:$AB$9,#REF!+1+(#REF!-1)*3)*#REF!^VLOOKUP(R20,Coefficients!$A$3:$AB$9,#REF!+2+(#REF!-1)*3),IF(#REF!=\"N/A\",VLOOKUP(R20,Coefficients!$A$3:$AB$9,#REF!+1+(#REF!-1)*3)*#REF!^VLOOKUP(R20,Coefficients!$A$3:$AB$9,#REF!+2+(#REF!-1)*3),VLOOKUP(R20,Coefficients!$A$3:$AB$9,#REF!+1+(#REF!-1)*3)*#REF!^VLOOKUP(R20,Coefficients!$A$3:$AB$9,#REF!+2+(#REF!-1)*3)*#REF!^VLOOKUP(R20,Coefficients!$A$3:$AB$9,#REF!+3+(#REF!-1)*3)))","v":{"$error":"#REF!"}},1022.56349960889]
["Return",null,null,null,"Urban Flow Option"]
["Interval",null,null,null,{"$f":"IF(E6>0,\"Region\",\"\")","v":"Region"},null,null,null,{"$f":"IF(E6=0,\"\",IF(1*ISNUMBER(A6)=0,MID(A6,1,4),A6))","v":1},{"$f":"IF(E7>0,\"Region\",\"\")","v":""},null,null,null,{"$f":"IF(E7=0,\"\",IF(1*ISNUMBER(A7)=0,MID(A7,1,4),A7))","v":""},{"$f":"IF(E8>0,\"Region\",\"\")","v":""},null,null,null,{"$f":"IF(E8=0,\"\",IF(1*ISNUMBER(A8)=0,MID(A8,1,4),A8))","v":""},"Weighted"]
["(yrs)",null,null,null,"Qr",null,null,null,null,null,null,null,null,null,null,null,null,null,null,"Flows"]
[2,null,null,null,374.6583628506736,null,null,null,null," ",null,null,null,null," ",null,null,null,null,{"$f":"IF($E$9>0,$E$6/$E$9*_xlfn.NUMBERVALUE(E24)+$E$7/$E$9*_xlfn.NUMBERVALUE(J24)+$E$8/$E$9*_xlfn.NUMBERVALUE(O24),0)","v":374.658362850674}]
[5,null,null,null,588.47710551326531,null,null,null,null," ",null,null,null,null," ",null,null,null,null,588.47710551326497]
[10,null,null,null,847.97710255508662,null,null,null,null," ",null,null,null,null," ",null,null,null,null,847.97710255508696]
[25,null,null,null,1100.2733247697547,null,null,null,null," ",null,null,null,null," ",null,null,null,null,1100.2733247697499]
[50,null,null,null,1299.4237593740511,null,null,null,null," ",null,null,null,null," ",null,null,null,null,1299.42375937405]
[100,null,null,null,1500.844505431686,null,null,null,null," ",null,null,null,null," ",null,null,null,null,1500.8445054316901]
[500,null,null,null,2010.0477925110347,null,null,null,null," ",null,null,null,null," ",null,null,null,null,2010.0477925110299]
["NOTES:"]
[]
[]
[]
[]
["MESSAGES:"]

{"sheet":"Urban","index":2,"n_rows":122,"n_cols":75,"rows_kept":122,"cut":false,"hidden":false,"merged":[[23,0,23,21],[3,0,3,57],[6,0,6,9],[7,0,7,9],[7,10,7,21],[6,10,6,21],[10,0,10,9],[10,10,10,57],[8,0,8,9],[8,10,8,21],[9,22,9,57],[8,46,8,57],[9,0,9,9],[9,10,9,21],[8,22,8,33],[8,34,8,45],[6,46,6,57],[7,46,7,57],[6,22,6,33],[7,22,7,33],[6,34,6,45],[14,22,14,33],[14,34,14,45],[12,10,12,25],[2,5,2,21],[2,22,2,26],[2,27,2,57],[0,52,1,57],[1,0,1,15],[0,0,0,15],[0,16,1,51],[2,0,2,4],[4,34,4,45],[15,0,15,9],[4,46,4,57],[5,46,5,57],[5,34,5,45],[4,0,4,9],[5,0,5,9],[4,10,4,21],[4,22,4,33],[5,22,5,33],[12,55,12,57],[12,46,12,54],[7,34,7,45],[5,10,5,21],[13,0,13,21],[32,33,32,42],[32,43,32,45],[22,26,22,28],[32,26,32,28],[12,26,12,28],[12,29,12,32],[13,27,13,57],[22,10,22,25],[22,29,22,32],[22,33,22,42],[22,43,22,45],[18,46,18,57],[16,46,16,57],[17,46,17,57],[20,10,20,57],[22,46,22,54],[15,10,15,21],[23,22,23,26],[23,27,23,57],[17,10,17,21],[17,22,17,33],[17,34,17,45],[16,10,16,21],[16,22,16,33],[22,55,22,57],[14,46,14,57],[15,46,15,57],[12,43,12,45],[21,0,22,9],[13,22,13,26],[12,33,12,42],[20,0,20,9],[11,0,12,9],[11,10,11,57],[19,0,19,9],[19,10,19,21],[17,0,17,9],[16,0,16,9],[16,34,16,45],[19,22,19,57],[18,0,18,9],[18,10,18,21],[18,22,18,33],[18,34,18,45],[15,22,15,33],[15,34,15,45],[14,0,14,9],[14,10,14,21],[28,0,28,9],[28,10,28,21],[28,22,28,33],[28,34,28,45],[27,0,27,9],[27,10,27,21],[27,22,27,33],[27,34,27,45],[24,46,24,57],[24,0,24,9],[24,10,24,21],[24,22,24,33],[24,34,24,45],[31,0,32,9],[29,0,29,9],[29,10,29,21],[29,22,29,57],[30,0,30,9],[30,10,30,57],[32,10,32,25],[21,10,21,57],[27,46,27,57],[28,46,28,57],[25,46,25,57],[32,46,32,54],[32,55,32,57],[31,10,31,57],[32,29,32,32],[26,46,26,57],[25,0,25,9],[25,10,25,21],[25,22,25,33],[25,34,25,45],[26,0,26,9],[26,10,26,21],[26,22,26,33],[26,34,26,45]]}
["Kentucky Transportation Cabinet",null,null,null,null,null,null,null,null,null,null,null,null,null,null,null,"BASIN URBANIZATION COMPUTATIONS",null,null,null,null,null,null,null,null,null,null,null,null,null,null,null,null,null,null,null,null,null,null,null,null,null,null,null,null,null,null,null,null,null,null,null,"1 of 1",null,null,null,null,null,null,null,null,null,null,null,null,null,null,null,null,null,null,null,null,"COUNTY",0]
["Division of Highway Design  02-17",null,null,null,null,null,null,null,null,null,null,null,null,null,null,null,null,null,null,null,null,null,null,null,null,null,null,null,null,null,null,null,null,null,null,null,null,null,null,null,null,null,null,null,null,null,null,null,null,null,null,null,null,null,null,null,null,null,null,null,null,null,null,null,null,null,null,null,null,null,null,null,null,null,1]
["County :",null,null,null,null,"HENRY",null,null,null,null,null,null,null,null,null,null,null,null,null,null,null,null,"Region:",null,null,null,null,{"$f":"Regional!A6","v":1},null,null,null,null,null,null,null,null,null,null,null,null,null,null,null,null,null,null,null,null,null,null,null,null,null,null,null,null,null,null,null,null,null,null,null,null,null,null,null,null,null,null,null,null,null,"ADAIR"]
[null,null,null,null,null,null,null,null,null,null,null,null,null,null,null,null,null,null,null,null,null,null,null,null,null,null,null,null,null,null,null,null,null,null,null,null,null,null,null,null,null,null,null,null,null,null,null,null,null,null,null,null,null,null,null,null,null,null,null,null,null,null,null,null,null,null,null,null,null,null,null,null,null,"ALLEN"]
["Portion of Drainage Area",null,null,null,null,null,null,null,null,null,"Channel Improvement",null,null,null,null,null,null,null,null,null,null,null,"Channel Lining",null,null,null,null,null,null,null,null,null,null,null,"Storm Sewers",null,null,null,null,null,null,null,null,null,null,null,"Curb & Gutter Streets",null,null,null,null,null,null,null,null,null,null,null,null,null,null,null,null,null,null,null,null,null,null,null,null,null,null,"ANDERSON"]
["Upper Third",null,null,null,null,null,null,null,null,null,1,null,null,null,null,null,null,null,null,null,null,null,0,null,null,null,null,null,null,null,null,null,null,null,0,null,null,null,null,null,null,null,null,null,null,null,0,null,null,null,null,null,null,null,null,null,null,null,null,null,null,null,null,null,null,null,null,null,null,null,null,null,null,"BALLARD"]
["Middle Third",null,null,null,null,null,null,null,null,null,1,null,null,null,null,null,null,null,null,null,null,null,1,null,null,null,null,null,null,null,null,null,null,null,0,null,null,null,null,null,null,null,null,null,null,null,0,null,null,null,null,null,null,null,null,null,null,null,null,null,null,null,null,null,null,null,null,null,null,null,null,null,null,"BARREN"]
["Lower Third",null,null,null,null,null,null,null,null,null,null,null,null,null,null,null,null,null,null,null,null,null,0,null,null,null,null,null,null,null,null,null,null,null,1,null,null,null,null,null,null,null,null,null,null,null,1,null,null,null,null,null,null,null,null,null,null,null,null,null,null,null,null,null,null,null,null,null,null,null,null,null,null,"BATH"]
["S =",null,null,null,null,null,null,null,null,null,{"$f":"SUM(K6:V8)","v":2},null,null,null,null,null,null,null,null,null,null,null,{"$f":"SUM(W6:AH8)","v":1},null,null,null,null,null,null,null,null,null,null,null,{"$f":"SUM(AI6:AT8)","v":1},null,null,null,null,null,null,null,null,null,null,null,{"$f":"SUM(AU6:BF8)","v":1},null,null,null,null,null,null,null,null,null,null,null,null,null,null,null,null,null,null,null,null,null,null,null,null,null,null,"BELL"]
["BDF =",null,null,null,null,null,null,null,null,null,{"$f":"SUM(C9:AU9)","v":5},null,null,null,null,null,null,null,null,null,null,null,null,null,null,null,null,null,null,null,null,null,null,null,null,null,null,null,null,null,null,null,null,null,null,null,null,null,null,null,null,null,null,null,null,null,null,null,null,null,null,null,null,null,null,null,null,null,null,null,null,null,null,"BOONE"]
["COMMENTS:",null,null,null,null,null,null,null,null,null,null,null,null,null,null,null,null,null,null,null,null,null,null,null,null,null,null,null,null,null,null,null,null,null,null,null,null,null,null,null,null,null,null,null,null,null,null,null,null,null,null,null,null,null,null,null,null,null,null,null,null,null,null,null,null,null,null,null,null,null,null,null,null,"BOURBON"]
[null,null,null,null,null,null,null,null,null,null,"Additional Parameters for 7 Variable Equation",null,null,null,null,null,null,null,null,null,null,null,null,null,null,null,null,null,null,null,null,null,null,null,null,null,null,null,null,null,null,null,null,null,null,null,null,null,null,null,null,null,null,null,null,null,null,null,null,null,null,null,null,null,null,null,null,null,null,null,null,null,null,"BOYD"]
[null,null,null,null,null,null,null,null,null,null,"Impervious Area (IA), %:",null,null,null,null,null,null,null,null,null,null,null,null,null,null,null,19,null,null,null,null,null,null,"Storage(ST), %:",null,null,null,null,null,null,null,null,null,2,null,null,"Slope, S (ft/mi):",null,null,null,null,null,null,null,null,70,null,null,null,null,null,null,null,null,null,null,null,null,null,null,null,null,null,"BOYLE"]
[null,null,null,null,null,null,null,null,null,null,null,null,null,null,null,null,null,null,null,null,null,null,"Region:",null,null,null,null,{"$f":"Regional!A7","v":0},null,null,null,null,null,null,null,null,null,null,null,null,null,null,null,null,null,null,null,null,null,null,null,null,null,null,null,null,null,null,null,null,null,null,null,null,null,null,null,null,null,null,null,null,null,"BRACKEN"]
["Portion of Drainage Area",null,null,null,null,null,null,null,null,null,"Channel Improvement",null,null,null,null,null,null,null,null,null,null,null,"Channel Lining",null,null,null,null,null,null,null,null,null,null,null,"Storm Sewers",null,null,null,null,null,null,null,null,null,null,null,"Curb & Gutter Streets",null,null,null,null,null,null,null,null,null,null,null,null,null,null,null,null,null,null,null,null,null,null,null,null,null,null,"BREATHITT"]
["Upper Third",null,null,null,null,null,null,null,null,null,null,null,null,null,null,null,null,null,null,null,null,null,null,null,null,null,null,null,null,null,null,null,null,null,null,null,null,null,null,null,null,null,null,null,null,null,null,null,null,null,null,null,null,null,null,null,null,null,null,null,null,null,null,null,null,null,null,null,null,null,null,null,null,"BRECKINRIDGE"]
["Middle Third",null,null,null,null,null,null,null,null,null,null,null,null,null,null,null,null,null,null,null,null,null,null,null,null,null,null,null,null,null,null,null,null,null,null,null,null,null,null,null,null,null,null,null,null,null,null,null,null,null,null,null,null,null,null,null,null,null,null,null,null,null,null,null,null,null,null,null,null,null,null,null,null,"BULLITT"]
["Lower Third",null,null,null,null,null,null,null,null,null,null,null,null,null,null,null,null,null,null,null,null,null,null,null,null,null,null,null,null,null,null,null,null,null,null,null,null,null,null,null,null,null,null,null,null,null,null,null,null,null,null,null,null,null,null,null,null,null,null,null,null,null,null,null,null,null,null,null,null,null,null,null,null,"BUTLER"]
["S =",null,null,null,null,null,null,null,null,null,{"$f":"SUM(K16:V18)","v":0},null,null,null,null,null,null,null,null,null,null,null,{"$f":"SUM(W16:AH18)","v":0},null,null,null,null,null,null,null,null,null,null,null,{"$f":"SUM(AI16:AT18)","v":0},null,null,null,null,null,null,null,null,null,null,null,{"$f":"SUM(AU16:BF18)","v":0},null,null,null,null,null,null,null,null,null,null,null,null,null,null,null,null,null,null,null,null,null,null,null,null,null,null,"CALDWELL"]
["BDF =",null,null,null,null,null,null,null,null,null,{"$f":"SUM(C19:AU19)","v":0},null,null,null,null,null,null,null,null,null,null,null,null,null,null,null,null,null,null,null,null,null,null,null,null,null,null,null,null,null,null,null,null,null,null,null,null,null,null,null,null,null,null,null,null,null,null,null,null,null,null,null,null,null,null,null,null,null,null,null,null,null,null,"CALLOWAY"]
["COMMENTS:",null,null,null,null,null,null,null,null,null,null,null,null,null,null,null,null,null,null,null,null,null,null,null,null,null,null,null,null,null,null,null,null,null,null,null,null,null,null,null,null,null,null,null,null,null,null,null,null,null,null,null,null,null,null,null,null,null,null,null,null,null,null,null,null,null,null,null,null,null,null,null,null,"CAMPBELL"]
[null,null,null,null,null,null,null,null,null,null,"Additional Parameters for 7 Variable Equation",null,null,null,null,null,null,null,null,null,null,null,null,null,null,null,null,null,null,null,null,null,null,null,null,null,null,null,null,null,null,null,null,null,null,null,null,null,null,null,null,null,null,null,null,null,null,null,null,null,null,null,null,null,null,null,null,null,null,null,null,null,null,"CARLISLE"]
[null,null,null,null,null,null,null,null,null,null,"Impervious Area (IA), %:",null,null,null,null,null,null,null,null,null,null,null,null,null,null,null,null,null,null,null,null,null,null,"Storage(ST), %:",null,null,null,null,null,null,null,null,null,null,null,null,"Slope, S (ft/mi):",null,null,null,null,null,null,null,null,70,null,null,null,null,null,null,null,null,null,null,null,null,null,null,null,null,null,"CARROLL"]
[null,null,null,null,null,null,null,null,null,null,null,null,null,null,null,null,null,null,null,null,null,null,"Region:",null,null,null,null,{"$f":"Regional!A8","v":0},null,null,null,null,null,null,null,null,null,null,null,null,null,null,null,null,null,null,null,null,null,null,null,null,null,null,null,null,null,null,null,null,null,null,null,null,null,null,null,null,null,null,null,null,null,"CARTER"]
["Portion of Drainage Area",null,null,null,null,null,null,null,null,null,"Channel Improvement",null,null,null,null,null,null,null,null,null,null,null,"Channel Lining",null,null,null,null,null,null,null,null,null,null,null,"Storm Sewers",null,null,null,null,null,null,null,null,null,null,null,"Curb & Gutter Streets",null,null,null,null,null,null,null,null,null,null,null,null,null,null,null,null,null,null,null,null,null,null,null,null,null,null,"CASEY"]
["Upper Third",null,null,null,null,null,null,null,null,null,null,null,null,null,null,null,null,null,null,null,null,null,null,null,null,null,null,null,null,null,null,null,null,null,null,null,null,null,null,null,null,null,null,null,null,null,null,null,null,null,null,null,null,null,null,null,null,null,null,null,null,null,null,null,null,null,null,null,null,null,null,null,null,"CHRISTIAN"]
["Middle Third",null,null,null,null,null,null,null,null,null,null,null,null,null,null,null,null,null,null,null,null,null,null,null,null,null,null,null,null,null,null,null,null,null,null,null,null,null,null,null,null,null,null,null,null,null,null,null,null,null,null,null,null,null,null,null,null,null,null,null,null,null,null,null,null,null,null,null,null,null,null,null,null,"CLARK"]
["Lower Third",null,null,null,null,null,null,null,null,null,null,null,null,null,null,null,null,null,null,null,null,null,null,null,null,null,null,null,null,null,null,null,null,null,null,null,null,null,null,null,null,null,null,null,null,null,null,null,null,null,null,null,null,null,null,null,null,null,null,null,null,null,null,null,null,null,null,null,null,null,null,null,null,"CLAY"]
["S =",null,null,null,null,null,null,null,null,null,{"$f":"SUM(K26:V28)","v":0},null,null,null,null,null,null,null,null,null,null,null,{"$f":"SUM(W26:AH28)","v":0},null,null,null,null,null,null,null,null,null,null,null,{"$f":"SUM(AI26:AT28)","v":0},null,null,null,null,null,null,null,null,null,null,null,{"$f":"SUM(AU26:BF28)","v":0},null,null,null,null,null,null,null,null,null,null,null,null,null,null,null,null,null,null,null,null,null,null,null,null,null,null,"CLINTON"]
["BDF =",null,null,null,null,null,null,null,null,null,{"$f":"SUM(C29:AU29)","v":0},null,null,null,null,null,null,null,null,null,null,null,null,null,null,null,null,null,null,null,null,null,null,null,null,null,null,null,null,null,null,null,null,null,null,null,null,null,null,null,null,null,null,null,null,null,null,null,null,null,null,null,null,null,null,null,null,null,null,null,null,null,null,"CRITTENDEN"]
["COMMENTS:",null,null,null,null,null,null,null,null,null,null,null,null,null,null,null,null,null,null,null,null,null,null,null,null,null,null,null,null,null,null,null,null,null,null,null,null,null,null,null,null,null,null,null,null,null,null,null,null,null,null,null,null,null,null,null,null,null,null,null,null,null,null,null,null,null,null,null,null,null,null,null,null,"CUMBERLAND"]
[null,null,null,null,null,null,null,null,null,null,"Additional Parameters for 7 Variable Equation",null,null,null,null,null,null,null,null,null,null,null,null,null,null,null,null,null,null,null,null,null,null,null,null,null,null,null,null,null,null,null,null,null,null,null,null,null,null,null,null,null,null,null,null,null,null,null,null,null,null,null,null,null,null,null,null,null,null,null,null,null,null,"DAVIESS"]
[null,null,null,null,null,null,null,null,null,null,"Impervious Area (IA), %:",null,null,null,null,null,null,null,null,null,null,null,null,null,null,null,null,null,null,null,null,null,null,"Storage(ST), %:",null,null,null,null,null,null,null,null,null,null,null,null,"Slope, S (ft/mi):",null,null,null,null,null,null,null,null,70,null,null,null,null,null,null,null,null,null,null,null,null,null,null,null,null,null,"EDMONSON"]
[null,null,null,null,null,null,null,null,null,null,null,null,null,null,null,null,null,null,null,null,null,null,null,null,null,null,null,null,null,null,null,null,null,null,null,null,null,null,null,null,null,null,null,null,null,null,null,null,null,null,null,null,null,null,null,null,null,null,null,null,null,null,null,null,null,null,null,null,null,null,null,null,null,"ELLIOTT"]
[null,null,null,null,null,null,null,null,null,null,null,null,null,null,null,null,null,null,null,null,null,null,null,null,null,null,null,null,null,null,null,null,null,null,null,null,null,null,null,null,null,null,null,null,null,null,null,null,null,null,null,null,null,null,null,null,null,null,null,null,null,null,null,null,null,null,null,null,null,null,null,null,null,"ESTILL"]
[null,null,null,null,null,null,null,null,null,null,null,null,null,null,null,null,null,null,null,null,null,null,null,null,null,null,null,null,null,null,null,null,null,null,null,null,null,null,null,null,null,null,null,null,null,null,null,null,null,null,null,null,null,null,null,null,null,null,null,null,null,null,null,null,null,null,null,null,null,null,null,null,null,"FAYETTE"]
[null,null,null,null,null,null,null,null,null,null,null,null,null,null,null,null,null,null,null,null,null,null,null,null,null,null,null,null,null,null,null,null,null,null,null,null,null,null,null,null,null,null,null,null,null,null,null,null,null,null,null,null,null,null,null,null,null,null,null,null,null,null,null,null,null,null,null,null,null,null,null,null,null,"FLEMING"]
[null,null,null,null,null,null,null,null,null,null,null,null,null,null,null,null,null,null,null,null,null,null,null,null,null,null,null,null,null,null,null,null,null,null,null,null,null,null,null,null,null,null,null,null,null,null,null,null,null,null,null,null,null,null,null,null,null,null,null,null,null,null,null,null,null,null,null,null,null,null,null,null,null,"FLOYD"]
[null,null,null,null,null,null,null,null,null,null,null,null,null,null,null,null,null,null,null,null,null,null,null,null,null,null,null,null,null,null,null,null,null,null,null,null,null,null,null,null,null,null,null,null,null,null,null,null,null,null,null,null,null,null,null,null,null,null,null,null,null,null,null,null,null,null,null,null,null,null,null,null,null,"FRANKLIN"]
[null,null,null,null,null,null,null,null,null,null,null,null,null,null,null,null,null,null,null,null,null,null,null,null,null,null,null,null,null,null,null,null,null,null,null,null,null,null,null,null,null,null,null,null,null,null,null,null,null,null,null,null,null,null,null,null,null,null,null,null,null,null,null,null,null,null,null,null,null,null,null,null,null,"FULTON"]
[null,null,null,null,null,null,null,null,null,null,null,null,null,null,null,null,null,null,null,null,null,null,null,null,null,null,null,null,null,null,null,null,null,null,null,null,null,null,null,null,null,null,null,null,null,null,null,null,null,null,null,null,null,null,null,null,null,null,null,null,null,null,null,null,null,null,null,null,null,null,null,null,null,"GALLATIN"]
[null,null,null,null,null,null,null,null,null,null,null,null,null,null,null,null,null,null,null,null,null,null,null,null,null,null,null,null,null,null,null,null,null,null,null,null,null,null,null,null,null,null,null,null,null,null,null,null,null,null,null,null,null,null,null,null,null,null,null,null,null,null,null,null,null,null,null,null,null,null,null,null,null,"GARRARD"]
[null,null,null,null,null,null,null,null,null,null,null,null,null,null,null,null,null,null,null,null,null,null,null,null,null,null,null,null,null,null,null,null,null,null,null,null,null,null,null,null,null,null,null,null,null,null,null,null,null,null,null,null,null,null,null,null,null,null,null,null,null,null,null,null,null,null,null,null,null,null,null,null,null,"GRANT"]
[null,null,null,null,null,null,null,null,null,null,null,null,null,null,null,null,null,null,null,null,null,null,null,null,null,null,null,null,null,null,null,null,null,null,null,null,null,null,null,null,null,null,null,null,null,null,null,null,null,null,null,null,null,null,null,null,null,null,null,null,null,null,null,null,null,null,null,null,null,null,null,null,null,"GRAVES"]
[null,null,null,null,null,null,null,null,null,null,null,null,null,null,null,null,null,null,null,null,null,null,null,null,null,null,null,null,null,null,null,null,null,null,null,null,null,null,null,null,null,null,null,null,null,null,null,null,null,null,null,null,null,null,null,null,null,null,null,null,null,null,null,null,null,null,null,null,null,null,null,null,null,"GRAYSON"]
[null,null,null,null,null,null,null,null,null,null,null,null,null,null,null,null,null,null,null,null,null,null,null,null,null,null,null,null,null,null,null,null,null,null,null,null,null,null,null,null,null,null,null,null,null,null,null,null,null,null,null,null,null,null,null,null,null,null,null,null,null,null,null,null,null,null,null,null,null,null,null,null,null,"GREEN"]
[null,null,null,null,null,null,null,null,null,null,null,null,null,null,null,null,null,null,null,null,null,null,null,null,null,null,null,null,null,null,null,null,null,null,null,null,null,null,null,null,null,null,null,null,null,null,null,null,null,null,null,null,null,null,null,null,null,null,null,null,null,null,null,null,null,null,null,null,null,null,null,null,null,"GREENUP"]
[null,null,null,null,null,null,null,null,null,null,null,null,null,null,null,null,null,null,null,null,null,null,null,null,null,null,null,null,null,null,null,null,null,null,null,null,null,null,null,null,null,null,null,null,null,null,null,null,null,null,null,null,null,null,null,null,null,null,null,null,null,null,null,null,null,null,null,null,null,null,null,null,null,"HANCOCK"]
[null,null,null,null,null,null,null,null,null,null,null,null,null,null,null,null,null,null,null,null,null,null,null,null,null,null,null,null,null,null,null,null,null,null,null,null,null,null,null,null,null,null,null,null,null,null,null,null,null,null,null,null,null,null,null,null,null,null,null,null,null,null,null,null,null,null,null,null,null,null,null,null,null,"HARDIN"]
[null,null,null,null,null,null,null,null,null,null,null,null,null,null,null,null,null,null,null,null,null,null,null,null,null,null,null,null,null,null,null,null,null,null,null,null,null,null,null,null,null,null,null,null,null,null,null,null,null,null,null,null,null,null,null,null,null,null,null,null,null,null,null,null,null,null,null,null,null,null,null,null,null,"HARLAN"]
[null,null,null,null,null,null,null,null,null,null,null,null,null,null,null,null,null,null,null,null,null,null,null,null,null,null,null,null,null,null,null,null,null,null,null,null,null,null,null,null,null,null,null,null,null,null,null,null,null,null,null,null,null,null,null,null,null,null,null,null,null,null,null,null,null,null,null,null,null,null,null,null,null,"HARRISON"]
[null,null,null,null,null,null,null,null,null,null,null,null,null,null,null,null,null,null,null,null,null,null,null,null,null,null,null,null,null,null,null,null,null,null,null,null,null,null,null,null,null,null,null,null,null,null,null,null,null,null,null,null,null,null,null,null,null,null,null,null,null,null,null,null,null,null,null,null,null,null,null,null,null,"HART"]
[null,null,null,null,null,null,null,null,null,null,null,null,null,null,null,null,null,null,null,null,null,null,null,null,null,null,null,null,null,null,null,null,null,null,null,null,null,null,null,null,null,null,null,null,null,null,null,null,null,null,null,null,null,null,null,null,null,null,null,null,null,null,null,null,null,null,null,null,null,null,null,null,null,"HENDERSON"]
[null,null,null,null,null,null,null,null,null,null,null,null,null,null,null,null,null,null,null,null,null,null,null,null,null,null,null,null,null,null,null,null,null,null,null,null,null,null,null,null,null,null,null,null,null,null,null,null,null,null,null,null,null,null,null,null,null,null,null,null,null,null,null,null,null,null,null,null,null,null,null,null,null,"HENRY"]
[null,null,null,null,null,null,null,null,null,null,null,null,null,null,null,null,null,null,null,null,null,null,null,null,null,null,null,null,null,null,null,null,null,null,null,null,null,null,null,null,null,null,null,null,null,null,null,null,null,null,null,null,null,null,null,null,null,null,null,null,null,null,null,null,null,null,null,null,null,null,null,null,null,"HICKMAN"]
[null,null,null,null,null,null,null,null,null,null,null,null,null,null,null,null,null,null,null,null,null,null,null,null,null,null,null,null,null,null,null,null,null,null,null,null,null,null,null,null,null,null,null,null,null,null,null,null,null,null,null,null,null,null,null,null,null,null,null,null,null,null,null,null,null,null,null,null,null,null,null,null,null,"HOPKINS"]
[null,null,null,null,null,null,null,null,null,null,null,null,null,null,null,null,null,null,null,null,null,null,null,null,null,null,null,null,null,null,null,null,null,null,null,null,null,null,null,null,null,null,null,null,null,null,null,null,null,null,null,null,null,null,null,null,null,null,null,null,null,null,null,null,null,null,null,null,null,null,null,null,null,"JACKSON"]
[null,null,null,null,null,null,null,null,null,null,null,null,null,null,null,null,null,null,null,null,null,null,null,null,null,null,null,null,null,null,null,null,null,null,null,null,null,null,null,null,null,null,null,null,null,null,null,null,null,null,null,null,null,null,null,null,null,null,null,null,null,null,null,null,null,null,null,null,null,null,null,null,null,"JEFFERSON"]
[null,null,null,null,null,null,null,null,null,null,null,null,null,null,null,null,null,null,null,null,null,null,null,null,null,null,null,null,null,null,null,null,null,null,null,null,null,null,null,null,null,null,null,null,null,null,null,null,null,null,null,null,null,null,null,null,null,null,null,null,null,null,null,null,null,null,null,null,null,null,null,null,null,"JESSAMINE"]
[null,null,null,null,null,null,null,null,null,null,null,null,null,null,null,null,null,null,null,null,null,null,null,null,null,null,null,null,null,null,null,null,null,null,null,null,null,null,null,null,null,null,null,null,null,null,null,null,null,null,null,null,null,null,null,null,null,null,null,null,null,null,null,null,null,null,null,null,null,null,null,null,null,"JOHNSON"]
[null,null,null,null,null,null,null,null,null,null,null,null,null,null,null,null,null,null,null,null,null,null,null,null,null,null,null,null,null,null,null,null,null,null,null,null,null,null,null,null,null,null,null,null,null,null,null,null,null,null,null,null,null,null,null,null,null,null,null,null,null,null,null,null,null,null,null,null,null,null,null,null,null,"KENTON"]
[null,null,null,null,null,null,null,null,null,null,null,null,null,null,null,null,null,null,null,null,null,null,null,null,null,null,null,null,null,null,null,null,null,null,null,null,null,null,null,null,null,null,null,null,null,null,null,null,null,null,null,null,null,null,null,null,null,null,null,null,null,null,null,null,null,null,null,null,null,null,null,null,null,"KNOTT"]
[null,null,null,null,null,null,null,null,null,null,null,null,null,null,null,null,null,null,null,null,null,null,null,null,null,null,null,null,null,null,null,null,null,null,null,null,null,null,null,null,null,null,null,null,null,null,null,null,null,null,null,null,null,null,null,null,null,null,null,null,null,null,null,null,null,null,null,null,null,null,null,null,null,"KNOX"]
[null,null,null,null,null,null,null,null,null,null,null,null,null,null,null,null,null,null,null,null,null,null,null,null,null,null,null,null,null,null,null,null,null,null,null,null,null,null,null,null,null,null,null,null,null,null,null,null,null,null,null,null,null,null,null,null,null,null,null,null,null,null,null,null,null,null,null,null,null,null,null,null,null,"LARUE"]
[null,null,null,null,null,null,null,null,null,null,null,null,null,null,null,null,null,null,null,null,null,null,null,null,null,null,null,null,null,null,null,null,null,null,null,null,null,null,null,null,null,null,null,null,null,null,null,null,null,null,null,null,null,null,null,null,null,null,null,null,null,null,null,null,null,null,null,null,null,null,null,null,null,"LAUREL"]
[null,null,null,null,null,null,null,null,null,null,null,null,null,null,null,null,null,null,null,null,null,null,null,null,null,null,null,null,null,null,null,null,null,null,null,null,null,null,null,null,null,null,null,null,null,null,null,null,null,null,null,null,null,null,null,null,null,null,null,null,null,null,null,null,null,null,null,null,null,null,null,null,null,"LAWRENCE"]
[null,null,null,null,null,null,null,null,null,null,null,null,null,null,null,null,null,null,null,null,null,null,null,null,null,null,null,null,null,null,null,null,null,null,null,null,null,null,null,null,null,null,null,null,null,null,null,null,null,null,null,null,null,null,null,null,null,null,null,null,null,null,null,null,null,null,null,null,null,null,null,null,null,"LEE"]
[null,null,null,null,null,null,null,null,null,null,null,null,null,null,null,null,null,null,null,null,null,null,null,null,null,null,null,null,null,null,null,null,null,null,null,null,null,null,null,null,null,null,null,null,null,null,null,null,null,null,null,null,null,null,null,null,null,null,null,null,null,null,null,null,null,null,null,null,null,null,null,null,null,"LESLIE"]
[null,null,null,null,null,null,null,null,null,null,null,null,null,null,null,null,null,null,null,null,null,null,null,null,null,null,null,null,null,null,null,null,null,null,null,null,null,null,null,null,null,null,null,null,null,null,null,null,null,null,null,null,null,null,null,null,null,null,null,null,null,null,null,null,null,null,null,null,null,null,null,null,null,"LETCHER"]
[null,null,null,null,null,null,null,null,null,null,null,null,null,null,null,null,null,null,null,null,null,null,null,null,null,null,null,null,null,null,null,null,null,null,null,null,null,null,null,null,null,null,null,null,null,null,null,null,null,null,null,null,null,null,null,null,null,null,null,null,null,null,null,null,null,null,null,null,null,null,null,null,null,"LEWIS"]
[null,null,null,null,null,null,null,null,null,null,null,null,null,null,null,null,null,null,null,null,null,null,null,null,null,null,null,null,null,null,null,null,null,null,null,null,null,null,null,null,null,null,null,null,null,null,null,null,null,null,null,null,null,null,null,null,null,null,null,null,null,null,null,null,null,null,null,null,null,null,null,null,null,"LINCOLN"]
[null,null,null,null,null,null,null,null,null,null,null,null,null,null,null,null,null,null,null,null,null,null,null,null,null,null,null,null,null,null,null,null,null,null,null,null,null,null,null,null,null,null,null,null,null,null,null,null,null,null,null,null,null,null,null,null,null,null,null,null,null,null,null,null,null,null,null,null,null,null,null,null,null,"LIVINGSTON"]
[null,null,null,null,null,null,null,null,null,null,null,null,null,null,null,null,null,null,null,null,null,null,null,null,null,null,null,null,null,null,null,null,null,null,null,null,null,null,null,null,null,null,null,null,null,null,null,null,null,null,null,null,null,null,null,null,null,null,null,null,null,null,null,null,null,null,null,null,null,null,null,null,null,"LOGAN"]
[null,null,null,null,null,null,null,null,null,null,null,null,null,null,null,null,null,null,null,null,null,null,null,null,null,null,null,null,null,null,null,null,null,null,null,null,null,null,null,null,null,null,null,null,null,null,null,null,null,null,null,null,null,null,null,null,null,null,null,null,null,null,null,null,null,null,null,null,null,null,null,null,null,"LYON"]
[null,null,null,null,null,null,null,null,null,null,null,null,null,null,null,null,null,null,null,null,null,null,null,null,null,null,null,null,null,null,null,null,null,null,null,null,null,null,null,null,null,null,null,null,null,null,null,null,null,null,null,null,null,null,null,null,null,null,null,null,null,null,null,null,null,null,null,null,null,null,null,null,null,"MCCRACKEN"]
[null,null,null,null,null,null,null,null,null,null,null,null,null,null,null,null,null,null,null,null,null,null,null,null,null,null,null,null,null,null,null,null,null,null,null,null,null,null,null,null,null,null,null,null,null,null,null,null,null,null,null,null,null,null,null,null,null,null,null,null,null,null,null,null,null,null,null,null,null,null,null,null,null,"MCCREARY"]
[null,null,null,null,null,null,null,null,null,null,null,null,null,null,null,null,null,null,null,null,null,null,null,null,null,null,null,null,null,null,null,null,null,null,null,null,null,null,null,null,null,null,null,null,null,null,null,null,null,null,null,null,null,null,null,null,null,null,null,null,null,null,null,null,null,null,null,null,null,null,null,null,null,"MCLEAN"]
[null,null,null,null,null,null,null,null,null,null,null,null,null,null,null,null,null,null,null,null,null,null,null,null,null,null,null,null,null,null,null,null,null,null,null,null,null,null,null,null,null,null,null,null,null,null,null,null,null,null,null,null,null,null,null,null,null,null,null,null,null,null,null,null,null,null,null,null,null,null,null,null,null,"MADISON"]
[null,null,null,null,null,null,null,null,null,null,null,null,null,null,null,null,null,null,null,null,null,null,null,null,null,null,null,null,null,null,null,null,null,null,null,null,null,null,null,null,null,null,null,null,null,null,null,null,null,null,null,null,null,null,null,null,null,null,null,null,null,null,null,null,null,null,null,null,null,null,null,null,null,"MAGOFFIN"]
[null,null,null,null,null,null,null,null,null,null,null,null,null,null,null,null,null,null,null,null,null,null,null,null,null,null,null,null,null,null,null,null,null,null,null,null,null,null,null,null,null,null,null,null,null,null,null,null,null,null,null,null,null,null,null,null,null,null,null,null,null,null,null,null,null,null,null,null,null,null,null,null,null,"MARION"]
[null,null,null,null,null,null,null,null,null,null,null,null,null,null,null,null,null,null,null,null,null,null,null,null,null,null,null,null,null,null,null,null,null,null,null,null,null,null,null,null,null,null,null,null,null,null,null,null,null,null,null,null,null,null,null,null,null,null,null,null,null,null,null,null,null,null,null,null,null,null,null,null,null,"MARSHALL"]
[null,null,null,null,null,null,null,null,null,null,null,null,null,null,null,null,null,null,null,null,null,null,null,null,null,null,null,null,null,null,null,null,null,null,null,null,null,null,null,null,null,null,null,null,null,null,null,null,null,null,null,null,null,null,null,null,null,null,null,null,null,null,null,null,null,null,null,null,null,null,null,null,null,"MARTIN"]
[null,null,null,null,null,null,null,null,null,null,null,null,null,null,null,null,null,null,null,null,null,null,null,null,null,null,null,null,null,null,null,null,null,null,null,null,null,null,null,null,null,null,null,null,null,null,null,null,null,null,null,null,null,null,null,null,null,null,null,null,null,null,null,null,null,null,null,null,null,null,null,null,null,"MASON"]
[null,null,null,null,null,null,null,null,null,null,null,null,null,null,null,null,null,null,null,null,null,null,null,null,null,null,null,null,null,null,null,null,null,null,null,null,null,null,null,null,null,null,null,null,null,null,null,null,null,null,null,null,null,null,null,null,null,null,null,null,null,null,null,null,null,null,null,null,null,null,null,null,null,"MEADE"]
[null,null,null,null,null,null,null,null,null,null,null,null,null,null,null,null,null,null,null,null,null,null,null,null,null,null,null,null,null,null,null,null,null,null,null,null,null,null,null,null,null,null,null,null,null,null,null,null,null,null,null,null,null,null,null,null,null,null,null,null,null,null,null,null,null,null,null,null,null,null,null,null,null,"MENIFEE"]
[null,null,null,null,null,null,null,null,null,null,null,null,null,null,null,null,null,null,null,null,null,null,null,null,null,null,null,null,null,null,null,null,null,null,null,null,null,null,null,null,null,null,null,null,null,null,null,null,null,null,null,null,null,null,null,null,null,null,null,null,null,null,null,null,null,null,null,null,null,null,null,null,null,"MERCER"]
[null,null,null,null,null,null,null,null,null,null,null,null,null,null,null,null,null,null,null,null,null,null,null,null,null,null,null,null,null,null,null,null,null,null,null,null,null,null,null,null,null,null,null,null,null,null,null,null,null,null,null,null,null,null,null,null,null,null,null,null,null,null,null,null,null,null,null,null,null,null,null,null,null,"METCALFE"]
[null,null,null,null,null,null,null,null,null,null,null,null,null,null,null,null,null,null,null,null,null,null,null,null,null,null,null,null,null,null,null,null,null,null,null,null,null,null,null,null,null,null,null,null,null,null,null,null,null,null,null,null,null,null,null,null,null,null,null,null,null,null,null,null,null,null,null,null,null,null,null,null,null,"MONROE"]
[null,null,null,null,null,null,null,null,null,null,null,null,null,null,null,null,null,null,null,null,null,null,null,null,null,null,null,null,null,null,null,null,null,null,null,null,null,null,null,null,null,null,null,null,null,null,null,null,null,null,null,null,null,null,null,null,null,null,null,null,null,null,null,null,null,null,null,null,null,null,null,null,null,"MONTGOMERY"]
[null,null,null,null,null,null,null,null,null,null,null,null,null,null,null,null,null,null,null,null,null,null,null,null,null,null,null,null,null,null,null,null,null,null,null,null,null,null,null,null,null,null,null,null,null,null,null,null,null,null,null,null,null,null,null,null,null,null,null,null,null,null,null,null,null,null,null,null,null,null,null,null,null,"MORGAN"]
[null,null,null,null,null,null,null,null,null,null,null,null,null,null,null,null,null,null,null,null,null,null,null,null,null,null,null,null,null,null,null,null,null,null,null,null,null,null,null,null,null,null,null,null,null,null,null,null,null,null,null,null,null,null,null,null,null,null,null,null,null,null,null,null,null,null,null,null,null,null,null,null,null,"MUHLENBURG"]
[null,null,null,null,null,null,null,null,null,null,null,null,null,null,null,null,null,null,null,null,null,null,null,null,null,null,null,null,null,null,null,null,null,null,null,null,null,null,null,null,null,null,null,null,null,null,null,null,null,null,null,null,null,null,null,null,null,null,null,null,null,null,null,null,null,null,null,null,null,null,null,null,null,"NELSON"]
[null,null,null,null,null,null,null,null,null,null,null,null,null,null,null,null,null,null,null,null,null,null,null,null,null,null,null,null,null,null,null,null,null,null,null,null,null,null,null,null,null,null,null,null,null,null,null,null,null,null,null,null,null,null,null,null,null,null,null,null,null,null,null,null,null,null,null,null,null,null,null,null,null,"NICHOLAS"]
[null,null,null,null,null,null,null,null,null,null,null,null,null,null,null,null,null,null,null,null,null,null,null,null,null,null,null,null,null,null,null,null,null,null,null,null,null,null,null,null,null,null,null,null,null,null,null,null,null,null,null,null,null,null,null,null,null,null,null,null,null,null,null,null,null,null,null,null,null,null,null,null,null,"OHIO"]
[null,null,null,null,null,null,null,null,null,null,null,null,null,null,null,null,null,null,null,null,null,null,null,null,null,null,null,null,null,null,null,null,null,null,null,null,null,null,null,null,null,null,null,null,null,null,null,null,null,null,null,null,null,null,null,null,null,null,null,null,null,null,null,null,null,null,null,null,null,null,null,null,null,"OLDHAM"]
[null,null,null,null,null,null,null,null,null,null,null,null,null,null,null,null,null,null,null,null,null,null,null,null,null,null,null,null,null,null,null,null,null,null,null,null,null,null,null,null,null,null,null,null,null,null,null,null,null,null,null,null,null,null,null,null,null,null,null,null,null,null,null,null,null,null,null,null,null,null,null,null,null,"OWEN"]
[null,null,null,null,null,null,null,null,null,null,null,null,null,null,null,null,null,null,null,null,null,null,null,null,null,null,null,null,null,null,null,null,null,null,null,null,null,null,null,null,null,null,null,null,null,null,null,null,null,null,null,null,null,null,null,null,null,null,null,null,null,null,null,null,null,null,null,null,null,null,null,null,null,"OWSLEY"]
[null,null,null,null,null,null,null,null,null,null,null,null,null,null,null,null,null,null,null,null,null,null,null,null,null,null,null,null,null,null,null,null,null,null,null,null,null,null,null,null,null,null,null,null,null,null,null,null,null,null,null,null,null,null,null,null,null,null,null,null,null,null,null,null,null,null,null,null,null,null,null,null,null,"PENDLETON"]
[null,null,null,null,null,null,null,null,null,null,null,null,null,null,null,null,null,null,null,null,null,null,null,null,null,null,null,null,null,null,null,null,null,null,null,null,null,null,null,null,null,null,null,null,null,null,null,null,null,null,null,null,null,null,null,null,null,null,null,null,null,null,null,null,null,null,null,null,null,null,null,null,null,"PERRY"]
[null,null,null,null,null,null,null,null,null,null,null,null,null,null,null,null,null,null,null,null,null,null,null,null,null,null,null,null,null,null,null,null,null,null,null,null,null,null,null,null,null,null,null,null,null,null,null,null,null,null,null,null,null,null,null,null,null,null,null,null,null,null,null,null,null,null,null,null,null,null,null,null,null,"PIKE"]
[null,null,null,null,null,null,null,null,null,null,null,null,null,null,null,null,null,null,null,null,null,null,null,null,null,null,null,null,null,null,null,null,null,null,null,null,null,null,null,null,null,null,null,null,null,null,null,null,null,null,null,null,null,null,null,null,null,null,null,null,null,null,null,null,null,null,null,null,null,null,null,null,null,"POWELL"]
[null,null,null,null,null,null,null,null,null,null,null,null,null,null,null,null,null,null,null,null,null,null,null,null,null,null,null,null,null,null,null,null,null,null,null,null,null,null,null,null,null,null,null,null,null,null,null,null,null,null,null,null,null,null,null,null,null,null,null,null,null,null,null,null,null,null,null,null,null,null,null,null,null,"PULASKI"]
[null,null,null,null,null,null,null,null,null,null,null,null,null,null,null,null,null,null,null,null,null,null,null,null,null,null,null,null,null,null,null,null,null,null,null,null,null,null,null,null,null,null,null,null,null,null,null,null,null,null,null,null,null,null,null,null,null,null,null,null,null,null,null,null,null,null,null,null,null,null,null,null,null,"ROBERTSON"]
[null,null,null,null,null,null,null,null,null,null,null,null,null,null,null,null,null,null,null,null,null,null,null,null,null,null,null,null,null,null,null,null,null,null,null,null,null,null,null,null,null,null,null,null,null,null,null,null,null,null,null,null,null,null,null,null,null,null,null,null,null,null,null,null,null,null,null,null,null,null,null,null,null,"ROCKCASTLE"]
[null,null,null,null,null,null,null,null,null,null,null,null,null,null,null,null,null,null,null,null,null,null,null,null,null,null,null,null,null,null,null,null,null,null,null,null,null,null,null,null,null,null,null,null,null,null,null,null,null,null,null,null,null,null,null,null,null,null,null,null,null,null,null,null,null,null,null,null,null,null,null,null,null,"ROWAN"]
[null,null,null,null,null,null,null,null,null,null,null,null,null,null,null,null,null,null,null,null,null,null,null,null,null,null,null,null,null,null,null,null,null,null,null,null,null,null,null,null,null,null,null,null,null,null,null,null,null,null,null,null,null,null,null,null,null,null,null,null,null,null,null,null,null,null,null,null,null,null,null,null,null,"RUSSELL"]
[null,null,null,null,null,null,null,null,null,null,null,null,null,null,null,null,null,null,null,null,null,null,null,null,null,null,null,null,null,null,null,null,null,null,null,null,null,null,null,null,null,null,null,null,null,null,null,null,null,null,null,null,null,null,null,null,null,null,null,null,null,null,null,null,null,null,null,null,null,null,null,null,null,"SCOTT"]
[null,null,null,null,null,null,null,null,null,null,null,null,null,null,null,null,null,null,null,null,null,null,null,null,null,null,null,null,null,null,null,null,null,null,null,null,null,null,null,null,null,null,null,null,null,null,null,null,null,null,null,null,null,null,null,null,null,null,null,null,null,null,null,null,null,null,null,null,null,null,null,null,null,"SHELBY"]
[null,null,null,null,null,null,null,null,null,null,null,null,null,null,null,null,null,null,null,null,null,null,null,null,null,null,null,null,null,null,null,null,null,null,null,null,null,null,null,null,null,null,null,null,null,null,null,null,null,null,null,null,null,null,null,null,null,null,null,null,null,null,null,null,null,null,null,null,null,null,null,null,null,"SIMPSON"]
[null,null,null,null,null,null,null,null,null,null,null,null,null,null,null,null,null,null,null,null,null,null,null,null,null,null,null,null,null,null,null,null,null,null,null,null,null,null,null,null,null,null,null,null,null,null,null,null,null,null,null,null,null,null,null,null,null,null,null,null,null,null,null,null,null,null,null,null,null,null,null,null,null,"SPENCER"]
[null,null,null,null,null,null,null,null,null,null,null,null,null,null,null,null,null,null,null,null,null,null,null,null,null,null,null,null,null,null,null,null,null,null,null,null,null,null,null,null,null,null,null,null,null,null,null,null,null,null,null,null,null,null,null,null,null,null,null,null,null,null,null,null,null,null,null,null,null,null,null,null,null,"TAYLOR"]
[null,null,null,null,null,null,null,null,null,null,null,null,null,null,null,null,null,null,null,null,null,null,null,null,null,null,null,null,null,null,null,null,null,null,null,null,null,null,null,null,null,null,null,null,null,null,null,null,null,null,null,null,null,null,null,null,null,null,null,null,null,null,null,null,null,null,null,null,null,null,null,null,null,"TODD"]
[null,null,null,null,null,null,null,null,null,null,null,null,null,null,null,null,null,null,null,null,null,null,null,null,null,null,null,null,null,null,null,null,null,null,null,null,null,null,null,null,null,null,null,null,null,null,null,null,null,null,null,null,null,null,null,null,null,null,null,null,null,null,null,null,null,null,null,null,null,null,null,null,null,"TRIGG"]
[null,null,null,null,null,null,null,null,null,null,null,null,null,null,null,null,null,null,null,null,null,null,null,null,null,null,null,null,null,null,null,null,null,null,null,null,null,null,null,null,null,null,null,null,null,null,null,null,null,null,null,null,null,null,null,null,null,null,null,null,null,null,null,null,null,null,null,null,null,null,null,null,null,"TRIMBLE"]
[null,null,null,null,null,null,null,null,null,null,null,null,null,null,null,null,null,null,null,null,null,null,null,null,null,null,null,null,null,null,null,null,null,null,null,null,null,null,null,null,null,null,null,null,null,null,null,null,null,null,null,null,null,null,null,null,null,null,null,null,null,null,null,null,null,null,null,null,null,null,null,null,null,"UNION"]
[null,null,null,null,null,null,null,null,null,null,null,null,null,null,null,null,null,null,null,null,null,null,null,null,null,null,null,null,null,null,null,null,null,null,null,null,null,null,null,null,null,null,null,null,null,null,null,null,null,null,null,null,null,null,null,null,null,null,null,null,null,null,null,null,null,null,null,null,null,null,null,null,null,"WARREN"]
[null,null,null,null,null,null,null,null,null,null,null,null,null,null,null,null,null,null,null,null,null,null,null,null,null,null,null,null,null,null,null,null,null,null,null,null,null,null,null,null,null,null,null,null,null,null,null,null,null,null,null,null,null,null,null,null,null,null,null,null,null,null,null,null,null,null,null,null,null,null,null,null,null,"WASHINGTON"]
[null,null,null,null,null,null,null,null,null,null,null,null,null,null,null,null,null,null,null,null,null,null,null,null,null,null,null,null,null,null,null,null,null,null,null,null,null,null,null,null,null,null,null,null,null,null,null,null,null,null,null,null,null,null,null,null,null,null,null,null,null,null,null,null,null,null,null,null,null,null,null,null,null,"WAYNE"]
[null,null,null,null,null,null,null,null,null,null,null,null,null,null,null,null,null,null,null,null,null,null,null,null,null,null,null,null,null,null,null,null,null,null,null,null,null,null,null,null,null,null,null,null,null,null,null,null,null,null,null,null,null,null,null,null,null,null,null,null,null,null,null,null,null,null,null,null,null,null,null,null,null,"WEBSTER"]
[null,null,null,null,null,null,null,null,null,null,null,null,null,null,null,null,null,null,null,null,null,null,null,null,null,null,null,null,null,null,null,null,null,null,null,null,null,null,null,null,null,null,null,null,null,null,null,null,null,null,null,null,null,null,null,null,null,null,null,null,null,null,null,null,null,null,null,null,null,null,null,null,null,"WHITLEY"]
[null,null,null,null,null,null,null,null,null,null,null,null,null,null,null,null,null,null,null,null,null,null,null,null,null,null,null,null,null,null,null,null,null,null,null,null,null,null,null,null,null,null,null,null,null,null,null,null,null,null,null,null,null,null,null,null,null,null,null,null,null,null,null,null,null,null,null,null,null,null,null,null,null,"WOLFE"]
[null,null,null,null,null,null,null,null,null,null,null,null,null,null,null,null,null,null,null,null,null,null,null,null,null,null,null,null,null,null,null,null,null,null,null,null,null,null,null,null,null,null,null,null,null,null,null,null,null,null,null,null,null,null,null,null,null,null,null,null,null,null,null,null,null,null,null,null,null,null,null,null,null,"WOODFORD"]

{"sheet":"Gaged Flow","index":3,"n_rows":226,"n_cols":94,"rows_kept":226,"cut":false,"hidden":false,"merged":[[6,5,6,9],[7,0,7,4],[5,30,5,44],[4,28,4,29],[5,28,5,29],[6,10,6,14],[7,10,7,14],[2,0,2,4],[2,5,2,21],[2,22,2,26],[5,0,5,4],[5,5,5,9],[5,10,5,14],[5,45,5,51],[3,40,3,45],[3,46,3,51],[8,5,8,9],[0,0,0,15],[5,15,5,27],[4,15,4,27],[2,27,2,39],[2,45,2,51],[3,0,3,3],[3,4,3,21],[3,22,3,25],[3,26,3,39],[4,30,4,44],[0,46,1,51],[1,0,1,15],[0,16,1,45],[2,40,2,44],[15,4,15,51],[4,0,4,4],[4,5,4,9],[4,45,4,51],[8,10,8,14],[4,10,4,14],[10,0,10,4],[11,10,11,14],[6,0,6,4],[12,15,12,51],[6,15,6,51],[7,15,7,51],[9,0,9,4],[8,15,8,51],[8,0,8,4],[7,5,7,9],[11,0,11,4],[12,10,12,14],[12,5,12,9],[10,10,10,14],[9,10,9,14],[14,0,15,3],[14,4,14,51],[9,15,9,51],[10,15,10,51],[11,15,11,51],[9,5,9,9],[12,0,12,4],[11,5,11,9],[10,5,10,9]]}
["Kentucky Transportation Cabinet",null,null,null,null,null,null,null,null,null,null,null,null,null,null,null,"GAGED FLOW COMPUTATIONS",null,null,null,null,null,null,null,null,null,null,null,null,null,null,null,null,null,null,null,null,null,null,null,null,null,null,null,null,null,"1 of 1"]
["Division of Highway Design  7-08",null,null,null,null,null,null,null,null,null,null,null,null,null,null,null,null,null,null,null,null,null,null,null,null,null,null,null,null,null,null,null,null,null,null,null,null,null,null,null,null,null,null,null,null,null,null,null,null,null,null,null,null,null,null,null,null,null,null,null,null,null,null,null,null,null,null,null,null,null,null,null,null,null,null,null,null,null,null,null,null,null,null,null,null,null,null,null,null,null,null,null,null,"Gage"]
["County :",null,null,null,null,{"$f":"'TC 61-100'!F3:Y3","v":"MARION"},null,null,null,null,null,null,null,null,null,null,null,null,null,null,null,null,"Route :",null,null,null,null,{"$f":"'TC 61-100'!AE3","v":"KY 100"},null,null,null,null,null,null,null,null,null,null,null,null,"Item # :",null,null,null,null,{"$f":"'TC 61-100'!AZ3","v":"3-8503"},null,null,null,null,null,null,null,null,null,null,null,null,null,null,null,null,null,null,null,null,null,null,null,null,null,null,null,null,null,null,null,null,null,null,null,null,null,null,null,null,null,null,null,null,null,null,null,"number"]
["UPN :",null,null,null,{"$f":"'TC 61-100'!E4:Y4","v":0},null,null,null,null,null,null,null,null,null,null,null,null,null,null,null,null,null,"FPN :",null,null,null,{"$f":"'TC 61-100'!AD4","v":0},null,null,null,null,null,null,null,null,null,null,null,null,null,"Station :",null,null,null,null,null,{"$f":"'TC 61-100'!BA4","v":0}]
["RI",null,null,null,null,"Qr",null,null,null,null,"Qg",null,null,null,null,"Gage location, Region:",null,null,null,null,null,null,null,null,null,null,null,null,6,null,"Upstream Gage No.:",null,null,null,null,null,null,null,null,null,null,null,null,null,null,3320000,null,null,null,null,null,null,null,null,null,null,null,null,null,null,null,null,null,null,null,null,null,null,null,null,null,null,null,null,null,null,null,null,null,null,null,null,null,null,null,null,null,null,null,null,null,null,null,3207965]
["(yrs)",null,null,null,null,"(cfs)",null,null,null,null,"(cfs)",null,null,null,null,"Gage location, Region:",null,null,null,null,null,null,null,null,null,null,null,null,null,null,"Downstream Gage No.:",null,null,null,null,null,null,null,null,null,null,null,null,null,null,null,null,null,null,null,null,null,null,null,null,null,null,null,null,null,null,null,null,null,null,null,null,null,null,null,null,null,null,null,null,null,null,null,null,null,null,null,null,null,null,null,null,null,null,null,null,null,null,3208000]
[2,null,null,null,null,{"$f":"Regional!T24","v":374.658362850674},null,null,null,null,null,null,null,null,null,null,null,null,null,null,null,null,null,null,null,null,null,null,null,null,null,null,null,null,null,null,null,null,null,null,null,null,null,null,null,null,null,null,null,null,null,null,null,null,null,null,null,null,null,null,null,null,null,null,null,null,null,null,null,null,null,null,null,null,null,null,null,null,null,null,null,null,null,null,null,null,null,null,null,null,null,null,null,3209300]
[5,null,null,null,null,{"$f":"Regional!T25","v":588.47710551326497},null,null,null,null,null,null,null,null,null,null,null,null,null,null,null,null,null,null,null,null,null,null,null,null,null,null,null,null,null,null,null,null,null,null,null,null,null,null,null,null,null,null,null,null,null,null,null,null,null,null,null,null,null,null,null,null,null,null,null,null,null,null,null,null,null,null,null,null,null,null,null,null,null,null,null,null,null,null,null,null,null,null,null,null,null,null,null,3209500]
[10,null,null,null,null,{"$f":"Regional!T26","v":847.97710255508696},null,null,null,null,null,null,null,null,null,null,null,null,null,null,null,null,null,null,null,null,null,null,null,null,null,null,null,null,null,null,null,null,null,null,null,null,null,null,null,null,null,null,null,null,null,null,null,null,null,null,null,null,null,null,null,null,null,null,null,null,null,null,null,null,null,null,null,null,null,null,null,null,null,null,null,null,null,null,null,null,null,null,null,null,null,null,null,3209575]
[25,null,null,null,null,{"$f":"Regional!T27","v":1100.2733247697499},null,null,null,null,null,null,null,null,null,null,null,null,null,null,null,null,null,null,null,null,null,null,null,null,null,null,null,null,null,null,null,null,null,null,null,null,null,null,null,null,null,null,null,null,null,null,null,null,null,null,null,null,null,null,null,null,null,null,null,null,null,null,null,null,null,null,null,null,null,null,null,null,null,null,null,null,null,null,null,null,null,null,null,null,null,null,null,3209800]
[50,null,null,null,null,{"$f":"Regional!T28","v":1299.42375937405},null,null,null,null,null,null,null,null,null,null,null,null,null,null,null,null,null,null,null,null,null,null,null,null,null,null,null,null,null,null,null,null,null,null,null,null,null,null,null,null,null,null,null,null,null,null,null,null,null,null,null,null,null,null,null,null,null,null,null,null,null,null,null,null,null,null,null,null,null,null,null,null,null,null,null,null,null,null,null,null,null,null,null,null,null,null,null,3210000]
[100,null,null,null,null,{"$f":"Regional!T29","v":1500.8445054316901},null,null,null,null,null,null,null,null,null,null,null,null,null,null,null,null,null,null,null,null,null,null,null,null,null,null,null,null,null,null,null,null,null,null,null,null,null,null,null,null,null,null,null,null,null,null,null,null,null,null,null,null,null,null,null,null,null,null,null,null,null,null,null,null,null,null,null,null,null,null,null,null,null,null,null,null,null,null,null,null,null,null,null,null,null,null,null,3211500]
[500,null,null,null,null,{"$f":"Regional!T30","v":2010.0477925110299},null,null,null,null,null,null,null,null,null,null,null,null,null,null,null,null,null,null,null,null,null,null,null,null,null,null,null,null,null,null,null,null,null,null,null,null,null,null,null,null,null,null,null,null,null,null,null,null,null,null,null,null,null,null,null,null,null,null,null,null,null,null,null,null,null,null,null,null,null,null,null,null,null,null,null,null,null,null,null,null,null,null,null,null,null,null,null,3212000]
[null,null,null,null,null,null,null,null,null,null,null,null,null,null,null,null,null,null,null,null,null,null,null,null,null,null,null,null,null,null,null,null,null,null,null,null,null,null,null,null,null,null,null,null,null,null,null,null,null,null,null,null,null,null,null,null,null,null,null,null,null,null,null,null,null,null,null,null,null,null,null,null,null,null,null,null,null,null,null,null,null,null,null,null,null,null,null,null,null,null,null,null,null,3212500]
["NOTE:",null,null,null,null,null,null,null,null,null,null,null,null,null,null,null,null,null,null,null,null,null,null,null,null,null,null,null,null,null,null,null,null,null,null,null,null,null,null,null,null,null,null,null,null,null,null,null,null,null,null,null,null,null,null,null,null,null,null,null,null,null,null,null,null,null,null,null,null,null,null,null,null,null,null,null,null,null,null,null,null,null,null,null,null,null,null,null,null,null,null,null,null,3215000]
[null,null,null,null,null,null,null,null,null,null,null,null,null,null,null,null,null,null,null,null,null,null,null,null,null,null,null,null,null,null,null,null,null,null,null,null,null,null,null,null,null,null,null,null,null,null,null,null,null,null,null,null,null,null,null,null,null,null,null,null,null,null,null,null,null,null,null,null,null,null,null,null,null,null,null,null,null,null,null,null,null,null,null,null,null,null,null,null,null,null,null,null,null,3215500]
[null,null,null,null,null,null,null,null,null,null,null,null,null,null,null,null,null,null,null,null,null,null,null,null,null,null,null,null,null,null,null,null,null,null,null,null,null,null,null,null,null,null,null,null,null,null,null,null,null,null,null,null,null,null,null,null,null,null,null,null,null,null,null,null,null,null,null,null,null,null,null,null,null,null,null,null,null,null,null,null,null,null,null,null,null,null,null,null,null,null,null,null,null,3216000]
[null,"Press \"CTRL-g\" to perform gage flow calculations",null,null,null,null,null,null,null,null,null,null,null,null,null,null,null,null,null,null,null,null,null,null,null,null,null,null,null,null,null,null,null,null,null,null,null,null,null,null,null,null,null,null,null,null,null,null,null,null,null,null,null,null,null,null,null,null,null,null,null,null,null,null,null,null,null,null,null,null,null,null,null,null,null,null,null,null,null,null,null,null,null,null,null,null,null,null,null,null,null,null,null,3216350]
[null,null,null,null,null,null,null,null,null,null,null,null,null,null,null,null,null,null,null,null,null,null,null,null,null,null,null,null,null,null,null,null,null,null,null,null,null,null,null,null,null,null,null,null,null,null,null,null,null,null,null,null,null,null,null,null,null,null,null,null,null,null,null,null,null,null,null,null,null,null,null,null,null,null,null,null,null,null,null,null,null,null,null,null,null,null,null,null,null,null,null,null,null,3216400]
[null,"ERASE GAGE FLOWS IF NOT USED.",null,null,null,null,null,null,null,null,null,null,null,null,null,null,null,null,null,null,null,null,null,null,null,null,null,null,null,null,null,null,null,null,null,null,null,null,null,null,null,null,null,null,null,null,null,null,null,null,null,null,null,null,null,null,null,null,null,null,null,null,null,null,null,null,null,null,null,null,null,null,null,null,null,null,null,null,null,null,null,null,null,null,null,null,null,null,null,null,null,null,null,3216500]
[null,"Press \"CTRL-q\" to erase gage flows",null,null,null,null,null,null,null,null,null,null,null,null,null,null,null,null,null,null,null,null,null,null,null,null,null,null,null,null,null,null,null,null,null,null,null,null,null,null,null,null,null,null,null,null,null,null,null,null,null,null,null,null,null,null,null,null,null,null,null,null,null,null,null,null,null,null,null,null,null,null,null,null,null,null,null,null,null,null,null,null,null,null,null,null,null,null,null,null,null,null,null,3216540]
[null,null,null,null,null,null,null,null,null,null,null,null,null,null,null,null,null,null,null,null,null,null,null,null,null,null,null,null,null,null,null,null,null,null,null,null,null,null,null,null,null,null,null,null,null,null,null,null,null,null,null,null,null,null,null,null,null,null,null,null,null,null,null,null,null,null,null,null,null,null,null,null,null,null,null,null,null,null,null,null,null,null,null,null,null,null,null,null,null,null,null,null,null,3216563]
[null,null,null,null,null,null,null,null,null,null,null,null,null,null,null,null,null,null,null,null,null,null,null,null,null,null,null,null,null,null,null,null,null,null,null,null,null,null,null,null,null,null,null,null,null,null,null,null,null,null,null,null,null,null,null,null,null,null,null,null,null,null,null,null,null,null,null,null,null,null,null,null,null,null,null,null,null,null,null,null,null,null,null,null,null,null,null,null,null,null,null,null,null,3216564]
[null,null,null,null,null,null,null,null,null,null,null,null,null,null,null,null,null,null,null,null,null,null,null,null,null,null,null,null,null,null,null,null,null,null,null,null,null,null,null,null,null,null,null,null,null,null,null,null,null,null,null,null,null,null,null,null,null,null,null,null,null,null,null,null,null,null,null,null,null,null,null,null,null,null,null,null,null,null,null,null,null,null,null,null,null,null,null,null,null,null,null,null,null,3216600]
[null,null,null,null,null,null,null,null,null,null,null,null,null,null,null,null,null,null,null,null,null,null,null,null,null,null,null,null,null,null,null,null,null,null,null,null,null,null,null,null,null,null,null,null,null,null,null,null,null,null,null,null,null,null,null,null,null,null,null,null,null,null,null,null,null,null,null,null,null,null,null,null,null,null,null,null,null,null,null,null,null,null,null,null,null,null,null,null,null,null,null,null,null,3216800]
[null,null,null,null,null,null,null,null,null,null,null,null,null,null,null,null,null,null,null,null,null,null,null,null,null,null,null,null,null,null,null,null,null,null,null,null,null,null,null,null,null,null,null,null,null,null,null,null,null,null,null,null,null,null,null,null,null,null,null,null,null,null,null,null,null,null,null,null,null,null,null,null,null,null,null,null,null,null,null,null,null,null,null,null,null,null,null,null,null,null,null,null,null,3216901]
[null,null,null,null,null,null,null,null,null,null,null,null,null,null,null,null,null,null,null,null,null,null,null,null,null,null,null,null,null,null,null,null,null,null,null,null,null,null,null,null,null,null,null,null,null,null,null,null,null,null,null,null,null,null,null,null,null,null,null,null,null,null,null,null,null,null,null,null,null,null,null,null,null,null,null,null,null,null,null,null,null,null,null,null,null,null,null,null,null,null,null,null,null,3217000]
[null,null,null,null,null,null,null,null,null,null,null,null,null,null,null,null,null,null,null,null,null,null,null,null,null,null,null,null,null,null,null,null,null,null,null,null,null,null,null,null,null,null,null,null,null,null,null,null,null,null,null,null,null,null,null,null,null,null,null,null,null,null,null,null,null,null,null,null,null,null,null,null,null,null,null,null,null,null,null,null,null,null,null,null,null,null,null,null,null,null,null,null,null,3237900]
[null,null,null,null,null,null,null,null,null,null,null,null,null,null,null,null,null,null,null,null,null,null,null,null,null,null,null,null,null,null,null,null,null,null,null,null,null,null,null,null,null,null,null,null,null,null,null,null,null,null,null,null,null,null,null,null,null,null,null,null,null,null,null,null,null,null,null,null,null,null,null,null,null,null,null,null,null,null,null,null,null,null,null,null,null,null,null,null,null,null,null,null,null,3238000]
[null,null,null,null,null,null,null,null,null,null,null,null,null,null,null,null,null,null,null,null,null,null,null,null,null,null,null,null,null,null,null,null,null,null,null,null,null,null,null,null,null,null,null,null,null,null,null,null,null,null,null,null,null,null,null,null,null,null,null,null,null,null,null,null,null,null,null,null,null,null,null,null,null,null,null,null,null,null,null,null,null,null,null,null,null,null,null,null,null,null,null,null,null,3238030]
[null,null,null,null,null,null,null,null,null,null,null,null,null,null,null,null,null,null,null,null,null,null,null,null,null,null,null,null,null,null,null,null,null,null,null,null,null,null,null,null,null,null,null,null,null,null,null,null,null,null,null,null,null,null,null,null,null,null,null,null,null,null,null,null,null,null,null,null,null,null,null,null,null,null,null,null,null,null,null,null,null,null,null,null,null,null,null,null,null,null,null,null,null,3248500]
[null,null,null,null,null,null,null,null,null,null,null,null,null,null,null,null,null,null,null,null,null,null,null,null,null,null,null,null,null,null,null,null,null,null,null,null,null,null,null,null,null,null,null,null,null,null,null,null,null,null,null,null,null,null,null,null,null,null,null,null,null,null,null,null,null,null,null,null,null,null,null,null,null,null,null,null,null,null,null,null,null,null,null,null,null,null,null,null,null,null,null,null,null,3249500]
[null,null,null,null,null,null,null,null,null,null,null,null,null,null,null,null,null,null,null,null,null,null,null,null,null,null,null,null,null,null,null,null,null,null,null,null,null,null,null,null,null,null,null,null,null,null,null,null,null,null,null,null,null,null,null,null,null,null,null,null,null,null,null,null,null,null,null,null,null,null,null,null,null,null,null,null,null,null,null,null,null,null,null,null,null,null,null,null,null,null,null,null,null,3250000]
[null,null,null,null,null,null,null,null,null,null,null,null,null,null,null,null,null,null,null,null,null,null,null,null,null,null,null,null,null,null,null,null,null,null,null,null,null,null,null,null,null,null,null,null,null,null,null,null,null,null,null,null,null,null,null,null,null,null,null,null,null,null,null,null,null,null,null,null,null,null,null,null,null,null,null,null,null,null,null,null,null,null,null,null,null,null,null,null,null,null,null,null,null,3250080]
[null,null,null,null,null,null,null,null,null,null,null,null,null,null,null,null,null,null,null,null,null,null,null,null,null,null,null,null,null,null,null,null,null,null,null,null,null,null,null,null,null,null,null,null,null,null,null,null,null,null,null,null,null,null,null,null,null,null,null,null,null,null,null,null,null,null,null,null,null,null,null,null,null,null,null,null,null,null,null,null,null,null,null,null,null,null,null,null,null,null,null,null,null,3250100]
[null,null,null,null,null,null,null,null,null,null,null,null,null,null,null,null,null,null,null,null,null,null,null,null,null,null,null,null,null,null,null,null,null,null,null,null,null,null,null,null,null,null,null,null,null,null,null,null,null,null,null,null,null,null,null,null,null,null,null,null,null,null,null,null,null,null,null,null,null,null,null,null,null,null,null,null,null,null,null,null,null,null,null,null,null,null,null,null,null,null,null,null,null,3250150]
[null,null,null,null,null,null,null,null,null,null,null,null,null,null,null,null,null,null,null,null,null,null,null,null,null,null,null,null,null,null,null,null,null,null,null,null,null,null,null,null,null,null,null,null,null,null,null,null,null,null,null,null,null,null,null,null,null,null,null,null,null,null,null,null,null,null,null,null,null,null,null,null,null,null,null,null,null,null,null,null,null,null,null,null,null,null,null,null,null,null,null,null,null,3250620]
[null,null,null,null,null,null,null,null,null,null,null,null,null,null,null,null,null,null,null,null,null,null,null,null,null,null,null,null,null,null,null,null,null,null,null,null,null,null,null,null,null,null,null,null,null,null,null,null,null,null,null,null,null,null,null,null,null,null,null,null,null,null,null,null,null,null,null,null,null,null,null,null,null,null,null,null,null,null,null,null,null,null,null,null,null,null,null,null,null,null,null,null,null,3251000]
[null,null,null,null,null,null,null,null,null,null,null,null,null,null,null,null,null,null,null,null,null,null,null,null,null,null,null,null,null,null,null,null,null,null,null,null,null,null,null,null,null,null,null,null,null,null,null,null,null,null,null,null,null,null,null,null,null,null,null,null,null,null,null,null,null,null,null,null,null,null,null,null,null,null,null,null,null,null,null,null,null,null,null,null,null,null,null,null,null,null,null,null,null,3251008]
[null,null,null,null,null,null,null,null,null,null,null,null,null,null,null,null,null,null,null,null,null,null,null,null,null,null,null,null,null,null,null,null,null,null,null,null,null,null,null,null,null,null,null,null,null,null,null,null,null,null,null,null,null,null,null,null,null,null,null,null,null,null,null,null,null,null,null,null,null,null,null,null,null,null,null,null,null,null,null,null,null,null,null,null,null,null,null,null,null,null,null,null,null,3251015]
[null,null,null,null,null,null,null,null,null,null,null,null,null,null,null,null,null,null,null,null,null,null,null,null,null,null,null,null,null,null,null,null,null,null,null,null,null,null,null,null,null,null,null,null,null,null,null,null,null,null,null,null,null,null,null,null,null,null,null,null,null,null,null,null,null,null,null,null,null,null,null,null,null,null,null,null,null,null,null,null,null,null,null,null,null,null,null,null,null,null,null,null,null,3251500]
[null,null,null,null,null,null,null,null,null,null,null,null,null,null,null,null,null,null,null,null,null,null,null,null,null,null,null,null,null,null,null,null,null,null,null,null,null,null,null,null,null,null,null,null,null,null,null,null,null,null,null,null,null,null,null,null,null,null,null,null,null,null,null,null,null,null,null,null,null,null,null,null,null,null,null,null,null,null,null,null,null,null,null,null,null,null,null,null,null,null,null,null,null,3252000]
[null,null,null,null,null,null,null,null,null,null,null,null,null,null,null,null,null,null,null,null,null,null,null,null,null,null,null,null,null,null,null,null,null,null,null,null,null,null,null,null,null,null,null,null,null,null,null,null,null,null,null,null,null,null,null,null,null,null,null,null,null,null,null,null,null,null,null,null,null,null,null,null,null,null,null,null,null,null,null,null,null,null,null,null,null,null,null,null,null,null,null,null,null,3252500]
[null,null,null,null,null,null,null,null,null,null,null,null,null,null,null,null,null,null,null,null,null,null,null,null,null,null,null,null,null,null,null,null,null,null,null,null,null,null,null,null,null,null,null,null,null,null,null,null,null,null,null,null,null,null,null,null,null,null,null,null,null,null,null,null,null,null,null,null,null,null,null,null,null,null,null,null,null,null,null,null,null,null,null,null,null,null,null,null,null,null,null,null,null,3253500]
[null,null,null,null,null,null,null,null,null,null,null,null,null,null,null,null,null,null,null,null,null,null,null,null,null,null,null,null,null,null,null,null,null,null,null,null,null,null,null,null,null,null,null,null,null,null,null,null,null,null,null,null,null,null,null,null,null,null,null,null,null,null,null,null,null,null,null,null,null,null,null,null,null,null,null,null,null,null,null,null,null,null,null,null,null,null,null,null,null,null,null,null,null,3254400]
[null,null,null,null,null,null,null,null,null,null,null,null,null,null,null,null,null,null,null,null,null,null,null,null,null,null,null,null,null,null,null,null,null,null,null,null,null,null,null,null,null,null,null,null,null,null,null,null,null,null,null,null,null,null,null,null,null,null,null,null,null,null,null,null,null,null,null,null,null,null,null,null,null,null,null,null,null,null,null,null,null,null,null,null,null,null,null,null,null,null,null,null,null,3255000]
[null,null,null,null,null,null,null,null,null,null,null,null,null,null,null,null,null,null,null,null,null,null,null,null,null,null,null,null,null,null,null,null,null,null,null,null,null,null,null,null,null,null,null,null,null,null,null,null,null,null,null,null,null,null,null,null,null,null,null,null,null,null,null,null,null,null,null,null,null,null,null,null,null,null,null,null,null,null,null,null,null,null,null,null,null,null,null,null,null,null,null,null,null,3277185]
[null,null,null,null,null,null,null,null,null,null,null,null,null,null,null,null,null,null,null,null,null,null,null,null,null,null,null,null,null,null,null,null,null,null,null,null,null,null,null,null,null,null,null,null,null,null,null,null,null,null,null,null,null,null,null,null,null,null,null,null,null,null,null,null,null,null,null,null,null,null,null,null,null,null,null,null,null,null,null,null,null,null,null,null,null,null,null,null,null,null,null,null,null,3277200]
[null,null,null,null,null,null,null,null,null,null,null,null,null,null,null,null,null,null,null,null,null,null,null,null,null,null,null,null,null,null,null,null,null,null,null,null,null,null,null,null,null,null,null,null,null,null,null,null,null,null,null,null,null,null,null,null,null,null,null,null,null,null,null,null,null,null,null,null,null,null,null,null,null,null,null,null,null,null,null,null,null,null,null,null,null,null,null,null,null,null,null,null,null,3277300]
[null,null,null,null,null,null,null,null,null,null,null,null,null,null,null,null,null,null,null,null,null,null,null,null,null,null,null,null,null,null,null,null,null,null,null,null,null,null,null,null,null,null,null,null,null,null,null,null,null,null,null,null,null,null,null,null,null,null,null,null,null,null,null,null,null,null,null,null,null,null,null,null,null,null,null,null,null,null,null,null,null,null,null,null,null,null,null,null,null,null,null,null,null,3277400]
[null,null,null,null,null,null,null,null,null,null,null,null,null,null,null,null,null,null,null,null,null,null,null,null,null,null,null,null,null,null,null,null,null,null,null,null,null,null,null,null,null,null,null,null,null,null,null,null,null,null,null,null,null,null,null,null,null,null,null,null,null,null,null,null,null,null,null,null,null,null,null,null,null,null,null,null,null,null,null,null,null,null,null,null,null,null,null,null,null,null,null,null,null,3277450]
[null,null,null,null,null,null,null,null,null,null,null,null,null,null,null,null,null,null,null,null,null,null,null,null,null,null,null,null,null,null,null,null,null,null,null,null,null,null,null,null,null,null,null,null,null,null,null,null,null,null,null,null,null,null,null,null,null,null,null,null,null,null,null,null,null,null,null,null,null,null,null,null,null,null,null,null,null,null,null,null,null,null,null,null,null,null,null,null,null,null,null,null,null,3277500]
[null,null,null,null,null,null,null,null,null,null,null,null,null,null,null,null,null,null,null,null,null,null,null,null,null,null,null,null,null,null,null,null,null,null,null,null,null,null,null,null,null,null,null,null,null,null,null,null,null,null,null,null,null,null,null,null,null,null,null,null,null,null,null,null,null,null,null,null,null,null,null,null,null,null,null,null,null,null,null,null,null,null,null,null,null,null,null,null,null,null,null,null,null,3277630]
[null,null,null,null,null,null,null,null,null,null,null,null,null,null,null,null,null,null,null,null,null,null,null,null,null,null,null,null,null,null,null,null,null,null,null,null,null,null,null,null,null,null,null,null,null,null,null,null,null,null,null,null,null,null,null,null,null,null,null,null,null,null,null,null,null,null,null,null,null,null,null,null,null,null,null,null,null,null,null,null,null,null,null,null,null,null,null,null,null,null,null,null,null,3278000]
[null,null,null,null,null,null,null,null,null,null,null,null,null,null,null,null,null,null,null,null,null,null,null,null,null,null,null,null,null,null,null,null,null,null,null,null,null,null,null,null,null,null,null,null,null,null,null,null,null,null,null,null,null,null,null,null,null,null,null,null,null,null,null,null,null,null,null,null,null,null,null,null,null,null,null,null,null,null,null,null,null,null,null,null,null,null,null,null,null,null,null,null,null,3278500]
[null,null,null,null,null,null,null,null,null,null,null,null,null,null,null,null,null,null,null,null,null,null,null,null,null,null,null,null,null,null,null,null,null,null,null,null,null,null,null,null,null,null,null,null,null,null,null,null,null,null,null,null,null,null,null,null,null,null,null,null,null,null,null,null,null,null,null,null,null,null,null,null,null,null,null,null,null,null,null,null,null,null,null,null,null,null,null,null,null,null,null,null,null,3280000]
[null,null,null,null,null,null,null,null,null,null,null,null,null,null,null,null,null,null,null,null,null,null,null,null,null,null,null,null,null,null,null,null,null,null,null,null,null,null,null,null,null,null,null,null,null,null,null,null,null,null,null,null,null,null,null,null,null,null,null,null,null,null,null,null,null,null,null,null,null,null,null,null,null,null,null,null,null,null,null,null,null,null,null,null,null,null,null,null,null,null,null,null,null,3280600]
[null,null,null,null,null,null,null,null,null,null,null,null,null,null,null,null,null,null,null,null,null,null,null,null,null,null,null,null,null,null,null,null,null,null,null,null,null,null,null,null,null,null,null,null,null,null,null,null,null,null,null,null,null,null,null,null,null,null,null,null,null,null,null,null,null,null,null,null,null,null,null,null,null,null,null,null,null,null,null,null,null,null,null,null,null,null,null,null,null,null,null,null,null,3280700]
[null,null,null,null,null,null,null,null,null,null,null,null,null,null,null,null,null,null,null,null,null,null,null,null,null,null,null,null,null,null,null,null,null,null,null,null,null,null,null,null,null,null,null,null,null,null,null,null,null,null,null,null,null,null,null,null,null,null,null,null,null,null,null,null,null,null,null,null,null,null,null,null,null,null,null,null,null,null,null,null,null,null,null,null,null,null,null,null,null,null,null,null,null,3280728]
[null,null,null,null,null,null,null,null,null,null,null,null,null,null,null,null,null,null,null,null,null,null,null,null,null,null,null,null,null,null,null,null,null,null,null,null,null,null,null,null,null,null,null,null,null,null,null,null,null,null,null,null,null,null,null,null,null,null,null,null,null,null,null,null,null,null,null,null,null,null,null,null,null,null,null,null,null,null,null,null,null,null,null,null,null,null,null,null,null,null,null,null,null,3280900]
[null,null,null,null,null,null,null,null,null,null,null,null,null,null,null,null,null,null,null,null,null,null,null,null,null,null,null,null,null,null,null,null,null,null,null,null,null,null,null,null,null,null,null,null,null,null,null,null,null,null,null,null,null,null,null,null,null,null,null,null,null,null,null,null,null,null,null,null,null,null,null,null,null,null,null,null,null,null,null,null,null,null,null,null,null,null,null,null,null,null,null,null,null,3280935]
[null,null,null,null,null,null,null,null,null,null,null,null,null,null,null,null,null,null,null,null,null,null,null,null,null,null,null,null,null,null,null,null,null,null,null,null,null,null,null,null,null,null,null,null,null,null,null,null,null,null,null,null,null,null,null,null,null,null,null,null,null,null,null,null,null,null,null,null,null,null,null,null,null,null,null,null,null,null,null,null,null,null,null,null,null,null,null,null,null,null,null,null,null,3281000]
[null,null,null,null,null,null,null,null,null,null,null,null,null,null,null,null,null,null,null,null,null,null,null,null,null,null,null,null,null,null,null,null,null,null,null,null,null,null,null,null,null,null,null,null,null,null,null,null,null,null,null,null,null,null,null,null,null,null,null,null,null,null,null,null,null,null,null,null,null,null,null,null,null,null,null,null,null,null,null,null,null,null,null,null,null,null,null,null,null,null,null,null,null,3281040]
[null,null,null,null,null,null,null,null,null,null,null,null,null,null,null,null,null,null,null,null,null,null,null,null,null,null,null,null,null,null,null,null,null,null,null,null,null,null,null,null,null,null,null,null,null,null,null,null,null,null,null,null,null,null,null,null,null,null,null,null,null,null,null,null,null,null,null,null,null,null,null,null,null,null,null,null,null,null,null,null,null,null,null,null,null,null,null,null,null,null,null,null,null,3281100]
[null,null,null,null,null,null,null,null,null,null,null,null,null,null,null,null,null,null,null,null,null,null,null,null,null,null,null,null,null,null,null,null,null,null,null,null,null,null,null,null,null,null,null,null,null,null,null,null,null,null,null,null,null,null,null,null,null,null,null,null,null,null,null,null,null,null,null,null,null,null,null,null,null,null,null,null,null,null,null,null,null,null,null,null,null,null,null,null,null,null,null,null,null,3281200]
[null,null,null,null,null,null,null,null,null,null,null,null,null,null,null,null,null,null,null,null,null,null,null,null,null,null,null,null,null,null,null,null,null,null,null,null,null,null,null,null,null,null,null,null,null,null,null,null,null,null,null,null,null,null,null,null,null,null,null,null,null,null,null,null,null,null,null,null,null,null,null,null,null,null,null,null,null,null,null,null,null,null,null,null,null,null,null,null,null,null,null,null,null,3281500]
[null,null,null,null,null,null,null,null,null,null,null,null,null,null,null,null,null,null,null,null,null,null,null,null,null,null,null,null,null,null,null,null,null,null,null,null,null,null,null,null,null,null,null,null,null,null,null,null,null,null,null,null,null,null,null,null,null,null,null,null,null,null,null,null,null,null,null,null,null,null,null,null,null,null,null,null,null,null,null,null,null,null,null,null,null,null,null,null,null,null,null,null,null,3282000]
[null,null,null,null,null,null,null,null,null,null,null,null,null,null,null,null,null,null,null,null,null,null,null,null,null,null,null,null,null,null,null,null,null,null,null,null,null,null,null,null,null,null,null,null,null,null,null,null,null,null,null,null,null,null,null,null,null,null,null,null,null,null,null,null,null,null,null,null,null,null,null,null,null,null,null,null,null,null,null,null,null,null,null,null,null,null,null,null,null,null,null,null,null,3282198]
[null,null,null,null,null,null,null,null,null,null,null,null,null,null,null,null,null,null,null,null,null,null,null,null,null,null,null,null,null,null,null,null,null,null,null,null,null,null,null,null,null,null,null,null,null,null,null,null,null,null,null,null,null,null,null,null,null,null,null,null,null,null,null,null,null,null,null,null,null,null,null,null,null,null,null,null,null,null,null,null,null,null,null,null,null,null,null,null,null,null,null,null,null,3282500]
[null,null,null,null,null,null,null,null,null,null,null,null,null,null,null,null,null,null,null,null,null,null,null,null,null,null,null,null,null,null,null,null,null,null,null,null,null,null,null,null,null,null,null,null,null,null,null,null,null,null,null,null,null,null,null,null,null,null,null,null,null,null,null,null,null,null,null,null,null,null,null,null,null,null,null,null,null,null,null,null,null,null,null,null,null,null,null,null,null,null,null,null,null,3283000]
[null,null,null,null,null,null,null,null,null,null,null,null,null,null,null,null,null,null,null,null,null,null,null,null,null,null,null,null,null,null,null,null,null,null,null,null,null,null,null,null,null,null,null,null,null,null,null,null,null,null,null,null,null,null,null,null,null,null,null,null,null,null,null,null,null,null,null,null,null,null,null,null,null,null,null,null,null,null,null,null,null,null,null,null,null,null,null,null,null,null,null,null,null,3283305]
[null,null,null,null,null,null,null,null,null,null,null,null,null,null,null,null,null,null,null,null,null,null,null,null,null,null,null,null,null,null,null,null,null,null,null,null,null,null,null,null,null,null,null,null,null,null,null,null,null,null,null,null,null,null,null,null,null,null,null,null,null,null,null,null,null,null,null,null,null,null,null,null,null,null,null,null,null,null,null,null,null,null,null,null,null,null,null,null,null,null,null,null,null,3283500]
[null,null,null,null,null,null,null,null,null,null,null,null,null,null,null,null,null,null,null,null,null,null,null,null,null,null,null,null,null,null,null,null,null,null,null,null,null,null,null,null,null,null,null,null,null,null,null,null,null,null,null,null,null,null,null,null,null,null,null,null,null,null,null,null,null,null,null,null,null,null,null,null,null,null,null,null,null,null,null,null,null,null,null,null,null,null,null,null,null,null,null,null,null,3283610]
[null,null,null,null,null,null,null,null,null,null,null,null,null,null,null,null,null,null,null,null,null,null,null,null,null,null,null,null,null,null,null,null,null,null,null,null,null,null,null,null,null,null,null,null,null,null,null,null,null,null,null,null,null,null,null,null,null,null,null,null,null,null,null,null,null,null,null,null,null,null,null,null,null,null,null,null,null,null,null,null,null,null,null,null,null,null,null,null,null,null,null,null,null,3284000]
[null,null,null,null,null,null,null,null,null,null,null,null,null,null,null,null,null,null,null,null,null,null,null,null,null,null,null,null,null,null,null,null,null,null,null,null,null,null,null,null,null,null,null,null,null,null,null,null,null,null,null,null,null,null,null,null,null,null,null,null,null,null,null,null,null,null,null,null,null,null,null,null,null,null,null,null,null,null,null,null,null,null,null,null,null,null,null,null,null,null,null,null,null,3284300]
[null,null,null,null,null,null,null,null,null,null,null,null,null,null,null,null,null,null,null,null,null,null,null,null,null,null,null,null,null,null,null,null,null,null,null,null,null,null,null,null,null,null,null,null,null,null,null,null,null,null,null,null,null,null,null,null,null,null,null,null,null,null,null,null,null,null,null,null,null,null,null,null,null,null,null,null,null,null,null,null,null,null,null,null,null,null,null,null,null,null,null,null,null,3284310]
[null,null,null,null,null,null,null,null,null,null,null,null,null,null,null,null,null,null,null,null,null,null,null,null,null,null,null,null,null,null,null,null,null,null,null,null,null,null,null,null,null,null,null,null,null,null,null,null,null,null,null,null,null,null,null,null,null,null,null,null,null,null,null,null,null,null,null,null,null,null,null,null,null,null,null,null,null,null,null,null,null,null,null,null,null,null,null,null,null,null,null,null,null,3284340]
[null,null,null,null,null,null,null,null,null,null,null,null,null,null,null,null,null,null,null,null,null,null,null,null,null,null,null,null,null,null,null,null,null,null,null,null,null,null,null,null,null,null,null,null,null,null,null,null,null,null,null,null,null,null,null,null,null,null,null,null,null,null,null,null,null,null,null,null,null,null,null,null,null,null,null,null,null,null,null,null,null,null,null,null,null,null,null,null,null,null,null,null,null,3284500]
[null,null,null,null,null,null,null,null,null,null,null,null,null,null,null,null,null,null,null,null,null,null,null,null,null,null,null,null,null,null,null,null,null,null,null,null,null,null,null,null,null,null,null,null,null,null,null,null,null,null,null,null,null,null,null,null,null,null,null,null,null,null,null,null,null,null,null,null,null,null,null,null,null,null,null,null,null,null,null,null,null,null,null,null,null,null,null,null,null,null,null,null,null,3285000]
[null,null,null,null,null,null,null,null,null,null,null,null,null,null,null,null,null,null,null,null,null,null,null,null,null,null,null,null,null,null,null,null,null,null,null,null,null,null,null,null,null,null,null,null,null,null,null,null,null,null,null,null,null,null,null,null,null,null,null,null,null,null,null,null,null,null,null,null,null,null,null,null,null,null,null,null,null,null,null,null,null,null,null,null,null,null,null,null,null,null,null,null,null,3285500]
[null,null,null,null,null,null,null,null,null,null,null,null,null,null,null,null,null,null,null,null,null,null,null,null,null,null,null,null,null,null,null,null,null,null,null,null,null,null,null,null,null,null,null,null,null,null,null,null,null,null,null,null,null,null,null,null,null,null,null,null,null,null,null,null,null,null,null,null,null,null,null,null,null,null,null,null,null,null,null,null,null,null,null,null,null,null,null,null,null,null,null,null,null,3287000]
[null,null,null,null,null,null,null,null,null,null,null,null,null,null,null,null,null,null,null,null,null,null,null,null,null,null,null,null,null,null,null,null,null,null,null,null,null,null,null,null,null,null,null,null,null,null,null,null,null,null,null,null,null,null,null,null,null,null,null,null,null,null,null,null,null,null,null,null,null,null,null,null,null,null,null,null,null,null,null,null,null,null,null,null,null,null,null,null,null,null,null,null,null,3287128]
[null,null,null,null,null,null,null,null,null,null,null,null,null,null,null,null,null,null,null,null,null,null,null,null,null,null,null,null,null,null,null,null,null,null,null,null,null,null,null,null,null,null,null,null,null,null,null,null,null,null,null,null,null,null,null,null,null,null,null,null,null,null,null,null,null,null,null,null,null,null,null,null,null,null,null,null,null,null,null,null,null,null,null,null,null,null,null,null,null,null,null,null,null,3287500]
[null,null,null,null,null,null,null,null,null,null,null,null,null,null,null,null,null,null,null,null,null,null,null,null,null,null,null,null,null,null,null,null,null,null,null,null,null,null,null,null,null,null,null,null,null,null,null,null,null,null,null,null,null,null,null,null,null,null,null,null,null,null,null,null,null,null,null,null,null,null,null,null,null,null,null,null,null,null,null,null,null,null,null,null,null,null,null,null,null,null,null,null,null,3287534]
[null,null,null,null,null,null,null,null,null,null,null,null,null,null,null,null,null,null,null,null,null,null,null,null,null,null,null,null,null,null,null,null,null,null,null,null,null,null,null,null,null,null,null,null,null,null,null,null,null,null,null,null,null,null,null,null,null,null,null,null,null,null,null,null,null,null,null,null,null,null,null,null,null,null,null,null,null,null,null,null,null,null,null,null,null,null,null,null,null,null,null,null,null,3288000]
[null,null,null,null,null,null,null,null,null,null,null,null,null,null,null,null,null,null,null,null,null,null,null,null,null,null,null,null,null,null,null,null,null,null,null,null,null,null,null,null,null,null,null,null,null,null,null,null,null,null,null,null,null,null,null,null,null,null,null,null,null,null,null,null,null,null,null,null,null,null,null,null,null,null,null,null,null,null,null,null,null,null,null,null,null,null,null,null,null,null,null,null,null,3288500]
[null,null,null,null,null,null,null,null,null,null,null,null,null,null,null,null,null,null,null,null,null,null,null,null,null,null,null,null,null,null,null,null,null,null,null,null,null,null,null,null,null,null,null,null,null,null,null,null,null,null,null,null,null,null,null,null,null,null,null,null,null,null,null,null,null,null,null,null,null,null,null,null,null,null,null,null,null,null,null,null,null,null,null,null,null,null,null,null,null,null,null,null,null,3289000]
[null,null,null,null,null,null,null,null,null,null,null,null,null,null,null,null,null,null,null,null,null,null,null,null,null,null,null,null,null,null,null,null,null,null,null,null,null,null,null,null,null,null,null,null,null,null,null,null,null,null,null,null,null,null,null,null,null,null,null,null,null,null,null,null,null,null,null,null,null,null,null,null,null,null,null,null,null,null,null,null,null,null,null,null,null,null,null,null,null,null,null,null,null,3289300]
[null,null,null,null,null,null,null,null,null,null,null,null,null,null,null,null,null,null,null,null,null,null,null,null,null,null,null,null,null,null,null,null,null,null,null,null,null,null,null,null,null,null,null,null,null,null,null,null,null,null,null,null,null,null,null,null,null,null,null,null,null,null,null,null,null,null,null,null,null,null,null,null,null,null,null,null,null,null,null,null,null,null,null,null,null,null,null,null,null,null,null,null,null,3289500]
[null,null,null,null,null,null,null,null,null,null,null,null,null,null,null,null,null,null,null,null,null,null,null,null,null,null,null,null,null,null,null,null,null,null,null,null,null,null,null,null,null,null,null,null,null,null,null,null,null,null,null,null,null,null,null,null,null,null,null,null,null,null,null,null,null,null,null,null,null,null,null,null,null,null,null,null,null,null,null,null,null,null,null,null,null,null,null,null,null,null,null,null,null,3290000]
[null,null,null,null,null,null,null,null,null,null,null,null,null,null,null,null,null,null,null,null,null,null,null,null,null,null,null,null,null,null,null,null,null,null,null,null,null,null,null,null,null,null,null,null,null,null,null,null,null,null,null,null,null,null,null,null,null,null,null,null,null,null,null,null,null,null,null,null,null,null,null,null,null,null,null,null,null,null,null,null,null,null,null,null,null,null,null,null,null,null,null,null,null,3290500]
[null,null,null,null,null,null,null,null,null,null,null,null,null,null,null,null,null,null,null,null,null,null,null,null,null,null,null,null,null,null,null,null,null,null,null,null,null,null,null,null,null,null,null,null,null,null,null,null,null,null,null,null,null,null,null,null,null,null,null,null,null,null,null,null,null,null,null,null,null,null,null,null,null,null,null,null,null,null,null,null,null,null,null,null,null,null,null,null,null,null,null,null,null,3290580]
[null,null,null,null,null,null,null,null,null,null,null,null,null,null,null,null,null,null,null,null,null,null,null,null,null,null,null,null,null,null,null,null,null,null,null,null,null,null,null,null,null,null,null,null,null,null,null,null,null,null,null,null,null,null,null,null,null,null,null,null,null,null,null,null,null,null,null,null,null,null,null,null,null,null,null,null,null,null,null,null,null,null,null,null,null,null,null,null,null,null,null,null,null,3291000]
[null,null,null,null,null,null,null,null,null,null,null,null,null,null,null,null,null,null,null,null,null,null,null,null,null,null,null,null,null,null,null,null,null,null,null,null,null,null,null,null,null,null,null,null,null,null,null,null,null,null,null,null,null,null,null,null,null,null,null,null,null,null,null,null,null,null,null,null,null,null,null,null,null,null,null,null,null,null,null,null,null,null,null,null,null,null,null,null,null,null,null,null,null,3291050]
[null,null,null,null,null,null,null,null,null,null,null,null,null,null,null,null,null,null,null,null,null,null,null,null,null,null,null,null,null,null,null,null,null,null,null,null,null,null,null,null,null,null,null,null,null,null,null,null,null,null,null,null,null,null,null,null,null,null,null,null,null,null,null,null,null,null,null,null,null,null,null,null,null,null,null,null,null,null,null,null,null,null,null,null,null,null,null,null,null,null,null,null,null,3291500]
[null,null,null,null,null,null,null,null,null,null,null,null,null,null,null,null,null,null,null,null,null,null,null,null,null,null,null,null,null,null,null,null,null,null,null,null,null,null,null,null,null,null,null,null,null,null,null,null,null,null,null,null,null,null,null,null,null,null,null,null,null,null,null,null,null,null,null,null,null,null,null,null,null,null,null,null,null,null,null,null,null,null,null,null,null,null,null,null,null,null,null,null,null,3292200]
[null,null,null,null,null,null,null,null,null,null,null,null,null,null,null,null,null,null,null,null,null,null,null,null,null,null,null,null,null,null,null,null,null,null,null,null,null,null,null,null,null,null,null,null,null,null,null,null,null,null,null,null,null,null,null,null,null,null,null,null,null,null,null,null,null,null,null,null,null,null,null,null,null,null,null,null,null,null,null,null,null,null,null,null,null,null,null,null,null,null,null,null,null,3292460]
[null,null,null,null,null,null,null,null,null,null,null,null,null,null,null,null,null,null,null,null,null,null,null,null,null,null,null,null,null,null,null,null,null,null,null,null,null,null,null,null,null,null,null,null,null,null,null,null,null,null,null,null,null,null,null,null,null,null,null,null,null,null,null,null,null,null,null,null,null,null,null,null,null,null,null,null,null,null,null,null,null,null,null,null,null,null,null,null,null,null,null,null,null,3292472]
[null,null,null,null,null,null,null,null,null,null,null,null,null,null,null,null,null,null,null,null,null,null,null,null,null,null,null,null,null,null,null,null,null,null,null,null,null,null,null,null,null,null,null,null,null,null,null,null,null,null,null,null,null,null,null,null,null,null,null,null,null,null,null,null,null,null,null,null,null,null,null,null,null,null,null,null,null,null,null,null,null,null,null,null,null,null,null,null,null,null,null,null,null,3294500]
[null,null,null,null,null,null,null,null,null,null,null,null,null,null,null,null,null,null,null,null,null,null,null,null,null,null,null,null,null,null,null,null,null,null,null,null,null,null,null,null,null,null,null,null,null,null,null,null,null,null,null,null,null,null,null,null,null,null,null,null,null,null,null,null,null,null,null,null,null,null,null,null,null,null,null,null,null,null,null,null,null,null,null,null,null,null,null,null,null,null,null,null,null,3295000]
[null,null,null,null,null,null,null,null,null,null,null,null,null,null,null,null,null,null,null,null,null,null,null,null,null,null,null,null,null,null,null,null,null,null,null,null,null,null,null,null,null,null,null,null,null,null,null,null,null,null,null,null,null,null,null,null,null,null,null,null,null,null,null,null,null,null,null,null,null,null,null,null,null,null,null,null,null,null,null,null,null,null,null,null,null,null,null,null,null,null,null,null,null,3295500]
[null,null,null,null,null,null,null,null,null,null,null,null,null,null,null,null,null,null,null,null,null,null,null,null,null,null,null,null,null,null,null,null,null,null,null,null,null,null,null,null,null,null,null,null,null,null,null,null,null,null,null,null,null,null,null,null,null,null,null,null,null,null,null,null,null,null,null,null,null,null,null,null,null,null,null,null,null,null,null,null,null,null,null,null,null,null,null,null,null,null,null,null,null,3295845]
[null,null,null,null,null,null,null,null,null,null,null,null,null,null,null,null,null,null,null,null,null,null,null,null,null,null,null,null,null,null,null,null,null,null,null,null,null,null,null,null,null,null,null,null,null,null,null,null,null,null,null,null,null,null,null,null,null,null,null,null,null,null,null,null,null,null,null,null,null,null,null,null,null,null,null,null,null,null,null,null,null,null,null,null,null,null,null,null,null,null,null,null,null,3295890]
[null,null,null,null,null,null,null,null,null,null,null,null,null,null,null,null,null,null,null,null,null,null,null,null,null,null,null,null,null,null,null,null,null,null,null,null,null,null,null,null,null,null,null,null,null,null,null,null,null,null,null,null,null,null,null,null,null,null,null,null,null,null,null,null,null,null,null,null,null,null,null,null,null,null,null,null,null,null,null,null,null,null,null,null,null,null,null,null,null,null,null,null,null,3296500]
[null,null,null,null,null,null,null,null,null,null,null,null,null,null,null,null,null,null,null,null,null,null,null,null,null,null,null,null,null,null,null,null,null,null,null,null,null,null,null,null,null,null,null,null,null,null,null,null,null,null,null,null,null,null,null,null,null,null,null,null,null,null,null,null,null,null,null,null,null,null,null,null,null,null,null,null,null,null,null,null,null,null,null,null,null,null,null,null,null,null,null,null,null,3297000]
[null,null,null,null,null,null,null,null,null,null,null,null,null,null,null,null,null,null,null,null,null,null,null,null,null,null,null,null,null,null,null,null,null,null,null,null,null,null,null,null,null,null,null,null,null,null,null,null,null,null,null,null,null,null,null,null,null,null,null,null,null,null,null,null,null,null,null,null,null,null,null,null,null,null,null,null,null,null,null,null,null,null,null,null,null,null,null,null,null,null,null,null,null,3297500]
[null,null,null,null,null,null,null,null,null,null,null,null,null,null,null,null,null,null,null,null,null,null,null,null,null,null,null,null,null,null,null,null,null,null,null,null,null,null,null,null,null,null,null,null,null,null,null,null,null,null,null,null,null,null,null,null,null,null,null,null,null,null,null,null,null,null,null,null,null,null,null,null,null,null,null,null,null,null,null,null,null,null,null,null,null,null,null,null,null,null,null,null,null,3297845]
[null,null,null,null,null,null,null,null,null,null,null,null,null,null,null,null,null,null,null,null,null,null,null,null,null,null,null,null,null,null,null,null,null,null,null,null,null,null,null,null,null,null,null,null,null,null,null,null,null,null,null,null,null,null,null,null,null,null,null,null,null,null,null,null,null,null,null,null,null,null,null,null,null,null,null,null,null,null,null,null,null,null,null,null,null,null,null,null,null,null,null,null,null,3298000]
[null,null,null,null,null,null,null,null,null,null,null,null,null,null,null,null,null,null,null,null,null,null,null,null,null,null,null,null,null,null,null,null,null,null,null,null,null,null,null,null,null,null,null,null,null,null,null,null,null,null,null,null,null,null,null,null,null,null,null,null,null,null,null,null,null,null,null,null,null,null,null,null,null,null,null,null,null,null,null,null,null,null,null,null,null,null,null,null,null,null,null,null,null,3298500]
[null,null,null,null,null,null,null,null,null,null,null,null,null,null,null,null,null,null,null,null,null,null,null,null,null,null,null,null,null,null,null,null,null,null,null,null,null,null,null,null,null,null,null,null,null,null,null,null,null,null,null,null,null,null,null,null,null,null,null,null,null,null,null,null,null,null,null,null,null,null,null,null,null,null,null,null,null,null,null,null,null,null,null,null,null,null,null,null,null,null,null,null,null,3298535]
[null,null,null,null,null,null,null,null,null,null,null,null,null,null,null,null,null,null,null,null,null,null,null,null,null,null,null,null,null,null,null,null,null,null,null,null,null,null,null,null,null,null,null,null,null,null,null,null,null,null,null,null,null,null,null,null,null,null,null,null,null,null,null,null,null,null,null,null,null,null,null,null,null,null,null,null,null,null,null,null,null,null,null,null,null,null,null,null,null,null,null,null,null,3299000]
[null,null,null,null,null,null,null,null,null,null,null,null,null,null,null,null,null,null,null,null,null,null,null,null,null,null,null,null,null,null,null,null,null,null,null,null,null,null,null,null,null,null,null,null,null,null,null,null,null,null,null,null,null,null,null,null,null,null,null,null,null,null,null,null,null,null,null,null,null,null,null,null,null,null,null,null,null,null,null,null,null,null,null,null,null,null,null,null,null,null,null,null,null,3300000]
[null,null,null,null,null,null,null,null,null,null,null,null,null,null,null,null,null,null,null,null,null,null,null,null,null,null,null,null,null,null,null,null,null,null,null,null,null,null,null,null,null,null,null,null,null,null,null,null,null,null,null,null,null,null,null,null,null,null,null,null,null,null,null,null,null,null,null,null,null,null,null,null,null,null,null,null,null,null,null,null,null,null,null,null,null,null,null,null,null,null,null,null,null,3300065]
[null,null,null,null,null,null,null,null,null,null,null,null,null,null,null,null,null,null,null,null,null,null,null,null,null,null,null,null,null,null,null,null,null,null,null,null,null,null,null,null,null,null,null,null,null,null,null,null,null,null,null,null,null,null,null,null,null,null,null,null,null,null,null,null,null,null,null,null,null,null,null,null,null,null,null,null,null,null,null,null,null,null,null,null,null,null,null,null,null,null,null,null,null,3300400]
[null,null,null,null,null,null,null,null,null,null,null,null,null,null,null,null,null,null,null,null,null,null,null,null,null,null,null,null,null,null,null,null,null,null,null,null,null,null,null,null,null,null,null,null,null,null,null,null,null,null,null,null,null,null,null,null,null,null,null,null,null,null,null,null,null,null,null,null,null,null,null,null,null,null,null,null,null,null,null,null,null,null,null,null,null,null,null,null,null,null,null,null,null,3300990]
[null,null,null,null,null,null,null,null,null,null,null,null,null,null,null,null,null,null,null,null,null,null,null,null,null,null,null,null,null,null,null,null,null,null,null,null,null,null,null,null,null,null,null,null,null,null,null,null,null,null,null,null,null,null,null,null,null,null,null,null,null,null,null,null,null,null,null,null,null,null,null,null,null,null,null,null,null,null,null,null,null,null,null,null,null,null,null,null,null,null,null,null,null,3301000]
[null,null,null,null,null,null,null,null,null,null,null,null,null,null,null,null,null,null,null,null,null,null,null,null,null,null,null,null,null,null,null,null,null,null,null,null,null,null,null,null,null,null,null,null,null,null,null,null,null,null,null,null,null,null,null,null,null,null,null,null,null,null,null,null,null,null,null,null,null,null,null,null,null,null,null,null,null,null,null,null,null,null,null,null,null,null,null,null,null,null,null,null,null,3301500]
[null,null,null,null,null,null,null,null,null,null,null,null,null,null,null,null,null,null,null,null,null,null,null,null,null,null,null,null,null,null,null,null,null,null,null,null,null,null,null,null,null,null,null,null,null,null,null,null,null,null,null,null,null,null,null,null,null,null,null,null,null,null,null,null,null,null,null,null,null,null,null,null,null,null,null,null,null,null,null,null,null,null,null,null,null,null,null,null,null,null,null,null,null,3302085]
[null,null,null,null,null,null,null,null,null,null,null,null,null,null,null,null,null,null,null,null,null,null,null,null,null,null,null,null,null,null,null,null,null,null,null,null,null,null,null,null,null,null,null,null,null,null,null,null,null,null,null,null,null,null,null,null,null,null,null,null,null,null,null,null,null,null,null,null,null,null,null,null,null,null,null,null,null,null,null,null,null,null,null,null,null,null,null,null,null,null,null,null,null,3303280]
[null,null,null,null,null,null,null,null,null,null,null,null,null,null,null,null,null,null,null,null,null,null,null,null,null,null,null,null,null,null,null,null,null,null,null,null,null,null,null,null,null,null,null,null,null,null,null,null,null,null,null,null,null,null,null,null,null,null,null,null,null,null,null,null,null,null,null,null,null,null,null,null,null,null,null,null,null,null,null,null,null,null,null,null,null,null,null,null,null,null,null,null,null,3304500]
[null,null,null,null,null,null,null,null,null,null,null,null,null,null,null,null,null,null,null,null,null,null,null,null,null,null,null,null,null,null,null,null,null,null,null,null,null,null,null,null,null,null,null,null,null,null,null,null,null,null,null,null,null,null,null,null,null,null,null,null,null,null,null,null,null,null,null,null,null,null,null,null,null,null,null,null,null,null,null,null,null,null,null,null,null,null,null,null,null,null,null,null,null,3305000]
[null,null,null,null,null,null,null,null,null,null,null,null,null,null,null,null,null,null,null,null,null,null,null,null,null,null,null,null,null,null,null,null,null,null,null,null,null,null,null,null,null,null,null,null,null,null,null,null,null,null,null,null,null,null,null,null,null,null,null,null,null,null,null,null,null,null,null,null,null,null,null,null,null,null,null,null,null,null,null,null,null,null,null,null,null,null,null,null,null,null,null,null,null,3305500]
[null,null,null,null,null,null,null,null,null,null,null,null,null,null,null,null,null,null,null,null,null,null,null,null,null,null,null,null,null,null,null,null,null,null,null,null,null,null,null,null,null,null,null,null,null,null,null,null,null,null,null,null,null,null,null,null,null,null,null,null,null,null,null,null,null,null,null,null,null,null,null,null,null,null,null,null,null,null,null,null,null,null,null,null,null,null,null,null,null,null,null,null,null,3305559]
[null,null,null,null,null,null,null,null,null,null,null,null,null,null,null,null,null,null,null,null,null,null,null,null,null,null,null,null,null,null,null,null,null,null,null,null,null,null,null,null,null,null,null,null,null,null,null,null,null,null,null,null,null,null,null,null,null,null,null,null,null,null,null,null,null,null,null,null,null,null,null,null,null,null,null,null,null,null,null,null,null,null,null,null,null,null,null,null,null,null,null,null,null,3305835]
[null,null,null,null,null,null,null,null,null,null,null,null,null,null,null,null,null,null,null,null,null,null,null,null,null,null,null,null,null,null,null,null,null,null,null,null,null,null,null,null,null,null,null,null,null,null,null,null,null,null,null,null,null,null,null,null,null,null,null,null,null,null,null,null,null,null,null,null,null,null,null,null,null,null,null,null,null,null,null,null,null,null,null,null,null,null,null,null,null,null,null,null,null,3306000]
[null,null,null,null,null,null,null,null,null,null,null,null,null,null,null,null,null,null,null,null,null,null,null,null,null,null,null,null,null,null,null,null,null,null,null,null,null,null,null,null,null,null,null,null,null,null,null,null,null,null,null,null,null,null,null,null,null,null,null,null,null,null,null,null,null,null,null,null,null,null,null,null,null,null,null,null,null,null,null,null,null,null,null,null,null,null,null,null,null,null,null,null,null,3306640]
[null,null,null,null,null,null,null,null,null,null,null,null,null,null,null,null,null,null,null,null,null,null,null,null,null,null,null,null,null,null,null,null,null,null,null,null,null,null,null,null,null,null,null,null,null,null,null,null,null,null,null,null,null,null,null,null,null,null,null,null,null,null,null,null,null,null,null,null,null,null,null,null,null,null,null,null,null,null,null,null,null,null,null,null,null,null,null,null,null,null,null,null,null,3307000]
[null,null,null,null,null,null,null,null,null,null,null,null,null,null,null,null,null,null,null,null,null,null,null,null,null,null,null,null,null,null,null,null,null,null,null,null,null,null,null,null,null,null,null,null,null,null,null,null,null,null,null,null,null,null,null,null,null,null,null,null,null,null,null,null,null,null,null,null,null,null,null,null,null,null,null,null,null,null,null,null,null,null,null,null,null,null,null,null,null,null,null,null,null,3307100]
[null,null,null,null,null,null,null,null,null,null,null,null,null,null,null,null,null,null,null,null,null,null,null,null,null,null,null,null,null,null,null,null,null,null,null,null,null,null,null,null,null,null,null,null,null,null,null,null,null,null,null,null,null,null,null,null,null,null,null,null,null,null,null,null,null,null,null,null,null,null,null,null,null,null,null,null,null,null,null,null,null,null,null,null,null,null,null,null,null,null,null,null,null,3307500]
[null,null,null,null,null,null,null,null,null,null,null,null,null,null,null,null,null,null,null,null,null,null,null,null,null,null,null,null,null,null,null,null,null,null,null,null,null,null,null,null,null,null,null,null,null,null,null,null,null,null,null,null,null,null,null,null,null,null,null,null,null,null,null,null,null,null,null,null,null,null,null,null,null,null,null,null,null,null,null,null,null,null,null,null,null,null,null,null,null,null,null,null,null,3308500]
[null,null,null,null,null,null,null,null,null,null,null,null,null,null,null,null,null,null,null,null,null,null,null,null,null,null,null,null,null,null,null,null,null,null,null,null,null,null,null,null,null,null,null,null,null,null,null,null,null,null,null,null,null,null,null,null,null,null,null,null,null,null,null,null,null,null,null,null,null,null,null,null,null,null,null,null,null,null,null,null,null,null,null,null,null,null,null,null,null,null,null,null,null,3309500]
[null,null,null,null,null,null,null,null,null,null,null,null,null,null,null,null,null,null,null,null,null,null,null,null,null,null,null,null,null,null,null,null,null,null,null,null,null,null,null,null,null,null,null,null,null,null,null,null,null,null,null,null,null,null,null,null,null,null,null,null,null,null,null,null,null,null,null,null,null,null,null,null,null,null,null,null,null,null,null,null,null,null,null,null,null,null,null,null,null,null,null,null,null,3310000]
[null,null,null,null,null,null,null,null,null,null,null,null,null,null,null,null,null,null,null,null,null,null,null,null,null,null,null,null,null,null,null,null,null,null,null,null,null,null,null,null,null,null,null,null,null,null,null,null,null,null,null,null,null,null,null,null,null,null,null,null,null,null,null,null,null,null,null,null,null,null,null,null,null,null,null,null,null,null,null,null,null,null,null,null,null,null,null,null,null,null,null,null,null,3310300]
[null,null,null,null,null,null,null,null,null,null,null,null,null,null,null,null,null,null,null,null,null,null,null,null,null,null,null,null,null,null,null,null,null,null,null,null,null,null,null,null,null,null,null,null,null,null,null,null,null,null,null,null,null,null,null,null,null,null,null,null,null,null,null,null,null,null,null,null,null,null,null,null,null,null,null,null,null,null,null,null,null,null,null,null,null,null,null,null,null,null,null,null,null,3310385]
[null,null,null,null,null,null,null,null,null,null,null,null,null,null,null,null,null,null,null,null,null,null,null,null,null,null,null,null,null,null,null,null,null,null,null,null,null,null,null,null,null,null,null,null,null,null,null,null,null,null,null,null,null,null,null,null,null,null,null,null,null,null,null,null,null,null,null,null,null,null,null,null,null,null,null,null,null,null,null,null,null,null,null,null,null,null,null,null,null,null,null,null,null,3310400]
[null,null,null,null,null,null,null,null,null,null,null,null,null,null,null,null,null,null,null,null,null,null,null,null,null,null,null,null,null,null,null,null,null,null,null,null,null,null,null,null,null,null,null,null,null,null,null,null,null,null,null,null,null,null,null,null,null,null,null,null,null,null,null,null,null,null,null,null,null,null,null,null,null,null,null,null,null,null,null,null,null,null,null,null,null,null,null,null,null,null,null,null,null,3310500]
[null,null,null,null,null,null,null,null,null,null,null,null,null,null,null,null,null,null,null,null,null,null,null,null,null,null,null,null,null,null,null,null,null,null,null,null,null,null,null,null,null,null,null,null,null,null,null,null,null,null,null,null,null,null,null,null,null,null,null,null,null,null,null,null,null,null,null,null,null,null,null,null,null,null,null,null,null,null,null,null,null,null,null,null,null,null,null,null,null,null,null,null,null,3310880]
[null,null,null,null,null,null,null,null,null,null,null,null,null,null,null,null,null,null,null,null,null,null,null,null,null,null,null,null,null,null,null,null,null,null,null,null,null,null,null,null,null,null,null,null,null,null,null,null,null,null,null,null,null,null,null,null,null,null,null,null,null,null,null,null,null,null,null,null,null,null,null,null,null,null,null,null,null,null,null,null,null,null,null,null,null,null,null,null,null,null,null,null,null,3311000]
[null,null,null,null,null,null,null,null,null,null,null,null,null,null,null,null,null,null,null,null,null,null,null,null,null,null,null,null,null,null,null,null,null,null,null,null,null,null,null,null,null,null,null,null,null,null,null,null,null,null,null,null,null,null,null,null,null,null,null,null,null,null,null,null,null,null,null,null,null,null,null,null,null,null,null,null,null,null,null,null,null,null,null,null,null,null,null,null,null,null,null,null,null,3311500]
[null,null,null,null,null,null,null,null,null,null,null,null,null,null,null,null,null,null,null,null,null,null,null,null,null,null,null,null,null,null,null,null,null,null,null,null,null,null,null,null,null,null,null,null,null,null,null,null,null,null,null,null,null,null,null,null,null,null,null,null,null,null,null,null,null,null,null,null,null,null,null,null,null,null,null,null,null,null,null,null,null,null,null,null,null,null,null,null,null,null,null,null,null,3311600]
[null,null,null,null,null,null,null,null,null,null,null,null,null,null,null,null,null,null,null,null,null,null,null,null,null,null,null,null,null,null,null,null,null,null,null,null,null,null,null,null,null,null,null,null,null,null,null,null,null,null,null,null,null,null,null,null,null,null,null,null,null,null,null,null,null,null,null,null,null,null,null,null,null,null,null,null,null,null,null,null,null,null,null,null,null,null,null,null,null,null,null,null,null,3312000]
[null,null,null,null,null,null,null,null,null,null,null,null,null,null,null,null,null,null,null,null,null,null,null,null,null,null,null,null,null,null,null,null,null,null,null,null,null,null,null,null,null,null,null,null,null,null,null,null,null,null,null,null,null,null,null,null,null,null,null,null,null,null,null,null,null,null,null,null,null,null,null,null,null,null,null,null,null,null,null,null,null,null,null,null,null,null,null,null,null,null,null,null,null,3312500]
[null,null,null,null,null,null,null,null,null,null,null,null,null,null,null,null,null,null,null,null,null,null,null,null,null,null,null,null,null,null,null,null,null,null,null,null,null,null,null,null,null,null,null,null,null,null,null,null,null,null,null,null,null,null,null,null,null,null,null,null,null,null,null,null,null,null,null,null,null,null,null,null,null,null,null,null,null,null,null,null,null,null,null,null,null,null,null,null,null,null,null,null,null,3312795]
[null,null,null,null,null,null,null,null,null,null,null,null,null,null,null,null,null,null,null,null,null,null,null,null,null,null,null,null,null,null,null,null,null,null,null,null,null,null,null,null,null,null,null,null,null,null,null,null,null,null,null,null,null,null,null,null,null,null,null,null,null,null,null,null,null,null,null,null,null,null,null,null,null,null,null,null,null,null,null,null,null,null,null,null,null,null,null,null,null,null,null,null,null,3313000]
[null,null,null,null,null,null,null,null,null,null,null,null,null,null,null,null,null,null,null,null,null,null,null,null,null,null,null,null,null,null,null,null,null,null,null,null,null,null,null,null,null,null,null,null,null,null,null,null,null,null,null,null,null,null,null,null,null,null,null,null,null,null,null,null,null,null,null,null,null,null,null,null,null,null,null,null,null,null,null,null,null,null,null,null,null,null,null,null,null,null,null,null,null,3313020]
[null,null,null,null,null,null,null,null,null,null,null,null,null,null,null,null,null,null,null,null,null,null,null,null,null,null,null,null,null,null,null,null,null,null,null,null,null,null,null,null,null,null,null,null,null,null,null,null,null,null,null,null,null,null,null,null,null,null,null,null,null,null,null,null,null,null,null,null,null,null,null,null,null,null,null,null,null,null,null,null,null,null,null,null,null,null,null,null,null,null,null,null,null,3313500]
[null,null,null,null,null,null,null,null,null,null,null,null,null,null,null,null,null,null,null,null,null,null,null,null,null,null,null,null,null,null,null,null,null,null,null,null,null,null,null,null,null,null,null,null,null,null,null,null,null,null,null,null,null,null,null,null,null,null,null,null,null,null,null,null,null,null,null,null,null,null,null,null,null,null,null,null,null,null,null,null,null,null,null,null,null,null,null,null,null,null,null,null,null,3313700]
[null,null,null,null,null,null,null,null,null,null,null,null,null,null,null,null,null,null,null,null,null,null,null,null,null,null,null,null,null,null,null,null,null,null,null,null,null,null,null,null,null,null,null,null,null,null,null,null,null,null,null,null,null,null,null,null,null,null,null,null,null,null,null,null,null,null,null,null,null,null,null,null,null,null,null,null,null,null,null,null,null,null,null,null,null,null,null,null,null,null,null,null,null,3313800]
[null,null,null,null,null,null,null,null,null,null,null,null,null,null,null,null,null,null,null,null,null,null,null,null,null,null,null,null,null,null,null,null,null,null,null,null,null,null,null,null,null,null,null,null,null,null,null,null,null,null,null,null,null,null,null,null,null,null,null,null,null,null,null,null,null,null,null,null,null,null,null,null,null,null,null,null,null,null,null,null,null,null,null,null,null,null,null,null,null,null,null,null,null,3314000]
[null,null,null,null,null,null,null,null,null,null,null,null,null,null,null,null,null,null,null,null,null,null,null,null,null,null,null,null,null,null,null,null,null,null,null,null,null,null,null,null,null,null,null,null,null,null,null,null,null,null,null,null,null,null,null,null,null,null,null,null,null,null,null,null,null,null,null,null,null,null,null,null,null,null,null,null,null,null,null,null,null,null,null,null,null,null,null,null,null,null,null,null,null,3314500]
[null,null,null,null,null,null,null,null,null,null,null,null,null,null,null,null,null,null,null,null,null,null,null,null,null,null,null,null,null,null,null,null,null,null,null,null,null,null,null,null,null,null,null,null,null,null,null,null,null,null,null,null,null,null,null,null,null,null,null,null,null,null,null,null,null,null,null,null,null,null,null,null,null,null,null,null,null,null,null,null,null,null,null,null,null,null,null,null,null,null,null,null,null,3314750]
[null,null,null,null,null,null,null,null,null,null,null,null,null,null,null,null,null,null,null,null,null,null,null,null,null,null,null,null,null,null,null,null,null,null,null,null,null,null,null,null,null,null,null,null,null,null,null,null,null,null,null,null,null,null,null,null,null,null,null,null,null,null,null,null,null,null,null,null,null,null,null,null,null,null,null,null,null,null,null,null,null,null,null,null,null,null,null,null,null,null,null,null,null,3315500]
[null,null,null,null,null,null,null,null,null,null,null,null,null,null,null,null,null,null,null,null,null,null,null,null,null,null,null,null,null,null,null,null,null,null,null,null,null,null,null,null,null,null,null,null,null,null,null,null,null,null,null,null,null,null,null,null,null,null,null,null,null,null,null,null,null,null,null,null,null,null,null,null,null,null,null,null,null,null,null,null,null,null,null,null,null,null,null,null,null,null,null,null,null,3316000]
[null,null,null,null,null,null,null,null,null,null,null,null,null,null,null,null,null,null,null,null,null,null,null,null,null,null,null,null,null,null,null,null,null,null,null,null,null,null,null,null,null,null,null,null,null,null,null,null,null,null,null,null,null,null,null,null,null,null,null,null,null,null,null,null,null,null,null,null,null,null,null,null,null,null,null,null,null,null,null,null,null,null,null,null,null,null,null,null,null,null,null,null,null,3316500]
[null,null,null,null,null,null,null,null,null,null,null,null,null,null,null,null,null,null,null,null,null,null,null,null,null,null,null,null,null,null,null,null,null,null,null,null,null,null,null,null,null,null,null,null,null,null,null,null,null,null,null,null,null,null,null,null,null,null,null,null,null,null,null,null,null,null,null,null,null,null,null,null,null,null,null,null,null,null,null,null,null,null,null,null,null,null,null,null,null,null,null,null,null,3317000]
[null,null,null,null,null,null,null,null,null,null,null,null,null,null,null,null,null,null,null,null,null,null,null,null,null,null,null,null,null,null,null,null,null,null,null,null,null,null,null,null,null,null,null,null,null,null,null,null,null,null,null,null,null,null,null,null,null,null,null,null,null,null,null,null,null,null,null,null,null,null,null,null,null,null,null,null,null,null,null,null,null,null,null,null,null,null,null,null,null,null,null,null,null,3317500]
[null,null,null,null,null,null,null,null,null,null,null,null,null,null,null,null,null,null,null,null,null,null,null,null,null,null,null,null,null,null,null,null,null,null,null,null,null,null,null,null,null,null,null,null,null,null,null,null,null,null,null,null,null,null,null,null,null,null,null,null,null,null,null,null,null,null,null,null,null,null,null,null,null,null,null,null,null,null,null,null,null,null,null,null,null,null,null,null,null,null,null,null,null,3318000]
[null,null,null,null,null,null,null,null,null,null,null,null,null,null,null,null,null,null,null,null,null,null,null,null,null,null,null,null,null,null,null,null,null,null,null,null,null,null,null,null,null,null,null,null,null,null,null,null,null,null,null,null,null,null,null,null,null,null,null,null,null,null,null,null,null,null,null,null,null,null,null,null,null,null,null,null,null,null,null,null,null,null,null,null,null,null,null,null,null,null,null,null,null,3318200]
[null,null,null,null,null,null,null,null,null,null,null,null,null,null,null,null,null,null,null,null,null,null,null,null,null,null,null,null,null,null,null,null,null,null,null,null,null,null,null,null,null,null,null,null,null,null,null,null,null,null,null,null,null,null,null,null,null,null,null,null,null,null,null,null,null,null,null,null,null,null,null,null,null,null,null,null,null,null,null,null,null,null,null,null,null,null,null,null,null,null,null,null,null,3318500]
[null,null,null,null,null,null,null,null,null,null,null,null,null,null,null,null,null,null,null,null,null,null,null,null,null,null,null,null,null,null,null,null,null,null,null,null,null,null,null,null,null,null,null,null,null,null,null,null,null,null,null,null,null,null,null,null,null,null,null,null,null,null,null,null,null,null,null,null,null,null,null,null,null,null,null,null,null,null,null,null,null,null,null,null,null,null,null,null,null,null,null,null,null,3318505]
[null,null,null,null,null,null,null,null,null,null,null,null,null,null,null,null,null,null,null,null,null,null,null,null,null,null,null,null,null,null,null,null,null,null,null,null,null,null,null,null,null,null,null,null,null,null,null,null,null,null,null,null,null,null,null,null,null,null,null,null,null,null,null,null,null,null,null,null,null,null,null,null,null,null,null,null,null,null,null,null,null,null,null,null,null,null,null,null,null,null,null,null,null,3318800]
[null,null,null,null,null,null,null,null,null,null,null,null,null,null,null,null,null,null,null,null,null,null,null,null,null,null,null,null,null,null,null,null,null,null,null,null,null,null,null,null,null,null,null,null,null,null,null,null,null,null,null,null,null,null,null,null,null,null,null,null,null,null,null,null,null,null,null,null,null,null,null,null,null,null,null,null,null,null,null,null,null,null,null,null,null,null,null,null,null,null,null,null,null,3319000]
[null,null,null,null,null,null,null,null,null,null,null,null,null,null,null,null,null,null,null,null,null,null,null,null,null,null,null,null,null,null,null,null,null,null,null,null,null,null,null,null,null,null,null,null,null,null,null,null,null,null,null,null,null,null,null,null,null,null,null,null,null,null,null,null,null,null,null,null,null,null,null,null,null,null,null,null,null,null,null,null,null,null,null,null,null,null,null,null,null,null,null,null,null,3319520]
[null,null,null,null,null,null,null,null,null,null,null,null,null,null,null,null,null,null,null,null,null,null,null,null,null,null,null,null,null,null,null,null,null,null,null,null,null,null,null,null,null,null,null,null,null,null,null,null,null,null,null,null,null,null,null,null,null,null,null,null,null,null,null,null,null,null,null,null,null,null,null,null,null,null,null,null,null,null,null,null,null,null,null,null,null,null,null,null,null,null,null,null,null,3320000]
[null,null,null,null,null,null,null,null,null,null,null,null,null,null,null,null,null,null,null,null,null,null,null,null,null,null,null,null,null,null,null,null,null,null,null,null,null,null,null,null,null,null,null,null,null,null,null,null,null,null,null,null,null,null,null,null,null,null,null,null,null,null,null,null,null,null,null,null,null,null,null,null,null,null,null,null,null,null,null,null,null,null,null,null,null,null,null,null,null,null,null,null,null,3320500]
[null,null,null,null,null,null,null,null,null,null,null,null,null,null,null,null,null,null,null,null,null,null,null,null,null,null,null,null,null,null,null,null,null,null,null,null,null,null,null,null,null,null,null,null,null,null,null,null,null,null,null,null,null,null,null,null,null,null,null,null,null,null,null,null,null,null,null,null,null,null,null,null,null,null,null,null,null,null,null,null,null,null,null,null,null,null,null,null,null,null,null,null,null,3321465]
[null,null,null,null,null,null,null,null,null,null,null,null,null,null,null,null,null,null,null,null,null,null,null,null,null,null,null,null,null,null,null,null,null,null,null,null,null,null,null,null,null,null,null,null,null,null,null,null,null,null,null,null,null,null,null,null,null,null,null,null,null,null,null,null,null,null,null,null,null,null,null,null,null,null,null,null,null,null,null,null,null,null,null,null,null,null,null,null,null,null,null,null,null,3322000]
[null,null,null,null,null,null,null,null,null,null,null,null,null,null,null,null,null,null,null,null,null,null,null,null,null,null,null,null,null,null,null,null,null,null,null,null,null,null,null,null,null,null,null,null,null,null,null,null,null,null,null,null,null,null,null,null,null,null,null,null,null,null,null,null,null,null,null,null,null,null,null,null,null,null,null,null,null,null,null,null,null,null,null,null,null,null,null,null,null,null,null,null,null,3322360]
[null,null,null,null,null,null,null,null,null,null,null,null,null,null,null,null,null,null,null,null,null,null,null,null,null,null,null,null,null,null,null,null,null,null,null,null,null,null,null,null,null,null,null,null,null,null,null,null,null,null,null,null,null,null,null,null,null,null,null,null,null,null,null,null,null,null,null,null,null,null,null,null,null,null,null,null,null,null,null,null,null,null,null,null,null,null,null,null,null,null,null,null,null,3382975]
[null,null,null,null,null,null,null,null,null,null,null,null,null,null,null,null,null,null,null,null,null,null,null,null,null,null,null,null,null,null,null,null,null,null,null,null,null,null,null,null,null,null,null,null,null,null,null,null,null,null,null,null,null,null,null,null,null,null,null,null,null,null,null,null,null,null,null,null,null,null,null,null,null,null,null,null,null,null,null,null,null,null,null,null,null,null,null,null,null,null,null,null,null,3383000]
[null,null,null,null,null,null,null,null,null,null,null,null,null,null,null,null,null,null,null,null,null,null,null,null,null,null,null,null,null,null,null,null,null,null,null,null,null,null,null,null,null,null,null,null,null,null,null,null,null,null,null,null,null,null,null,null,null,null,null,null,null,null,null,null,null,null,null,null,null,null,null,null,null,null,null,null,null,null,null,null,null,null,null,null,null,null,null,null,null,null,null,null,null,3384000]
[null,null,null,null,null,null,null,null,null,null,null,null,null,null,null,null,null,null,null,null,null,null,null,null,null,null,null,null,null,null,null,null,null,null,null,null,null,null,null,null,null,null,null,null,null,null,null,null,null,null,null,null,null,null,null,null,null,null,null,null,null,null,null,null,null,null,null,null,null,null,null,null,null,null,null,null,null,null,null,null,null,null,null,null,null,null,null,null,null,null,null,null,null,3384500]
[null,null,null,null,null,null,null,null,null,null,null,null,null,null,null,null,null,null,null,null,null,null,null,null,null,null,null,null,null,null,null,null,null,null,null,null,null,null,null,null,null,null,null,null,null,null,null,null,null,null,null,null,null,null,null,null,null,null,null,null,null,null,null,null,null,null,null,null,null,null,null,null,null,null,null,null,null,null,null,null,null,null,null,null,null,null,null,null,null,null,null,null,null,3400500]
[null,null,null,null,null,null,null,null,null,null,null,null,null,null,null,null,null,null,null,null,null,null,null,null,null,null,null,null,null,null,null,null,null,null,null,null,null,null,null,null,null,null,null,null,null,null,null,null,null,null,null,null,null,null,null,null,null,null,null,null,null,null,null,null,null,null,null,null,null,null,null,null,null,null,null,null,null,null,null,null,null,null,null,null,null,null,null,null,null,null,null,null,null,3400700]
[null,null,null,null,null,null,null,null,null,null,null,null,null,null,null,null,null,null,null,null,null,null,null,null,null,null,null,null,null,null,null,null,null,null,null,null,null,null,null,null,null,null,null,null,null,null,null,null,null,null,null,null,null,null,null,null,null,null,null,null,null,null,null,null,null,null,null,null,null,null,null,null,null,null,null,null,null,null,null,null,null,null,null,null,null,null,null,null,null,null,null,null,null,3400800]
[null,null,null,null,null,null,null,null,null,null,null,null,null,null,null,null,null,null,null,null,null,null,null,null,null,null,null,null,null,null,null,null,null,null,null,null,null,null,null,null,null,null,null,null,null,null,null,null,null,null,null,null,null,null,null,null,null,null,null,null,null,null,null,null,null,null,null,null,null,null,null,null,null,null,null,null,null,null,null,null,null,null,null,null,null,null,null,null,null,null,null,null,null,3400990]
[null,null,null,null,null,null,null,null,null,null,null,null,null,null,null,null,null,null,null,null,null,null,null,null,null,null,null,null,null,null,null,null,null,null,null,null,null,null,null,null,null,null,null,null,null,null,null,null,null,null,null,null,null,null,null,null,null,null,null,null,null,null,null,null,null,null,null,null,null,null,null,null,null,null,null,null,null,null,null,null,null,null,null,null,null,null,null,null,null,null,null,null,null,3401000]
[null,null,null,null,null,null,null,null,null,null,null,null,null,null,null,null,null,null,null,null,null,null,null,null,null,null,null,null,null,null,null,null,null,null,null,null,null,null,null,null,null,null,null,null,null,null,null,null,null,null,null,null,null,null,null,null,null,null,null,null,null,null,null,null,null,null,null,null,null,null,null,null,null,null,null,null,null,null,null,null,null,null,null,null,null,null,null,null,null,null,null,null,null,3401500]
[null,null,null,null,null,null,null,null,null,null,null,null,null,null,null,null,null,null,null,null,null,null,null,null,null,null,null,null,null,null,null,null,null,null,null,null,null,null,null,null,null,null,null,null,null,null,null,null,null,null,null,null,null,null,null,null,null,null,null,null,null,null,null,null,null,null,null,null,null,null,null,null,null,null,null,null,null,null,null,null,null,null,null,null,null,null,null,null,null,null,null,null,null,3402000]
[null,null,null,null,null,null,null,null,null,null,null,null,null,null,null,null,null,null,null,null,null,null,null,null,null,null,null,null,null,null,null,null,null,null,null,null,null,null,null,null,null,null,null,null,null,null,null,null,null,null,null,null,null,null,null,null,null,null,null,null,null,null,null,null,null,null,null,null,null,null,null,null,null,null,null,null,null,null,null,null,null,null,null,null,null,null,null,null,null,null,null,null,null,3402020]
[null,null,null,null,null,null,null,null,null,null,null,null,null,null,null,null,null,null,null,null,null,null,null,null,null,null,null,null,null,null,null,null,null,null,null,null,null,null,null,null,null,null,null,null,null,null,null,null,null,null,null,null,null,null,null,null,null,null,null,null,null,null,null,null,null,null,null,null,null,null,null,null,null,null,null,null,null,null,null,null,null,null,null,null,null,null,null,null,null,null,null,null,null,3402900]
[null,null,null,null,null,null,null,null,null,null,null,null,null,null,null,null,null,null,null,null,null,null,null,null,null,null,null,null,null,null,null,null,null,null,null,null,null,null,null,null,null,null,null,null,null,null,null,null,null,null,null,null,null,null,null,null,null,null,null,null,null,null,null,null,null,null,null,null,null,null,null,null,null,null,null,null,null,null,null,null,null,null,null,null,null,null,null,null,null,null,null,null,null,3403500]
[null,null,null,null,null,null,null,null,null,null,null,null,null,null,null,null,null,null,null,null,null,null,null,null,null,null,null,null,null,null,null,null,null,null,null,null,null,null,null,null,null,null,null,null,null,null,null,null,null,null,null,null,null,null,null,null,null,null,null,null,null,null,null,null,null,null,null,null,null,null,null,null,null,null,null,null,null,null,null,null,null,null,null,null,null,null,null,null,null,null,null,null,null,3403910]
[null,null,null,null,null,null,null,null,null,null,null,null,null,null,null,null,null,null,null,null,null,null,null,null,null,null,null,null,null,null,null,null,null,null,null,null,null,null,null,null,null,null,null,null,null,null,null,null,null,null,null,null,null,null,null,null,null,null,null,null,null,null,null,null,null,null,null,null,null,null,null,null,null,null,null,null,null,null,null,null,null,null,null,null,null,null,null,null,null,null,null,null,null,3404000]
[null,null,null,null,null,null,null,null,null,null,null,null,null,null,null,null,null,null,null,null,null,null,null,null,null,null,null,null,null,null,null,null,null,null,null,null,null,null,null,null,null,null,null,null,null,null,null,null,null,null,null,null,null,null,null,null,null,null,null,null,null,null,null,null,null,null,null,null,null,null,null,null,null,null,null,null,null,null,null,null,null,null,null,null,null,null,null,null,null,null,null,null,null,3404500]
[null,null,null,null,null,null,null,null,null,null,null,null,null,null,null,null,null,null,null,null,null,null,null,null,null,null,null,null,null,null,null,null,null,null,null,null,null,null,null,null,null,null,null,null,null,null,null,null,null,null,null,null,null,null,null,null,null,null,null,null,null,null,null,null,null,null,null,null,null,null,null,null,null,null,null,null,null,null,null,null,null,null,null,null,null,null,null,null,null,null,null,null,null,3404820]
[null,null,null,null,null,null,null,null,null,null,null,null,null,null,null,null,null,null,null,null,null,null,null,null,null,null,null,null,null,null,null,null,null,null,null,null,null,null,null,null,null,null,null,null,null,null,null,null,null,null,null,null,null,null,null,null,null,null,null,null,null,null,null,null,null,null,null,null,null,null,null,null,null,null,null,null,null,null,null,null,null,null,null,null,null,null,null,null,null,null,null,null,null,3404867]
[null,null,null,null,null,null,null,null,null,null,null,null,null,null,null,null,null,null,null,null,null,null,null,null,null,null,null,null,null,null,null,null,null,null,null,null,null,null,null,null,null,null,null,null,null,null,null,null,null,null,null,null,null,null,null,null,null,null,null,null,null,null,null,null,null,null,null,null,null,null,null,null,null,null,null,null,null,null,null,null,null,null,null,null,null,null,null,null,null,null,null,null,null,3404900]
[null,null,null,null,null,null,null,null,null,null,null,null,null,null,null,null,null,null,null,null,null,null,null,null,null,null,null,null,null,null,null,null,null,null,null,null,null,null,null,null,null,null,null,null,null,null,null,null,null,null,null,null,null,null,null,null,null,null,null,null,null,null,null,null,null,null,null,null,null,null,null,null,null,null,null,null,null,null,null,null,null,null,null,null,null,null,null,null,null,null,null,null,null,3405000]
[null,null,null,null,null,null,null,null,null,null,null,null,null,null,null,null,null,null,null,null,null,null,null,null,null,null,null,null,null,null,null,null,null,null,null,null,null,null,null,null,null,null,null,null,null,null,null,null,null,null,null,null,null,null,null,null,null,null,null,null,null,null,null,null,null,null,null,null,null,null,null,null,null,null,null,null,null,null,null,null,null,null,null,null,null,null,null,null,null,null,null,null,null,3405854]
[null,null,null,null,null,null,null,null,null,null,null,null,null,null,null,null,null,null,null,null,null,null,null,null,null,null,null,null,null,null,null,null,null,null,null,null,null,null,null,null,null,null,null,null,null,null,null,null,null,null,null,null,null,null,null,null,null,null,null,null,null,null,null,null,null,null,null,null,null,null,null,null,null,null,null,null,null,null,null,null,null,null,null,null,null,null,null,null,null,null,null,null,null,3406000]
[null,null,null,null,null,null,null,null,null,null,null,null,null,null,null,null,null,null,null,null,null,null,null,null,null,null,null,null,null,null,null,null,null,null,null,null,null,null,null,null,null,null,null,null,null,null,null,null,null,null,null,null,null,null,null,null,null,null,null,null,null,null,null,null,null,null,null,null,null,null,null,null,null,null,null,null,null,null,null,null,null,null,null,null,null,null,null,null,null,null,null,null,null,3406500]
[null,null,null,null,null,null,null,null,null,null,null,null,null,null,null,null,null,null,null,null,null,null,null,null,null,null,null,null,null,null,null,null,null,null,null,null,null,null,null,null,null,null,null,null,null,null,null,null,null,null,null,null,null,null,null,null,null,null,null,null,null,null,null,null,null,null,null,null,null,null,null,null,null,null,null,null,null,null,null,null,null,null,null,null,null,null,null,null,null,null,null,null,null,3407100]
[null,null,null,null,null,null,null,null,null,null,null,null,null,null,null,null,null,null,null,null,null,null,null,null,null,null,null,null,null,null,null,null,null,null,null,null,null,null,null,null,null,null,null,null,null,null,null,null,null,null,null,null,null,null,null,null,null,null,null,null,null,null,null,null,null,null,null,null,null,null,null,null,null,null,null,null,null,null,null,null,null,null,null,null,null,null,null,null,null,null,null,null,null,3407200]
[null,null,null,null,null,null,null,null,null,null,null,null,null,null,null,null,null,null,null,null,null,null,null,null,null,null,null,null,null,null,null,null,null,null,null,null,null,null,null,null,null,null,null,null,null,null,null,null,null,null,null,null,null,null,null,null,null,null,null,null,null,null,null,null,null,null,null,null,null,null,null,null,null,null,null,null,null,null,null,null,null,null,null,null,null,null,null,null,null,null,null,null,null,3407300]
[null,null,null,null,null,null,null,null,null,null,null,null,null,null,null,null,null,null,null,null,null,null,null,null,null,null,null,null,null,null,null,null,null,null,null,null,null,null,null,null,null,null,null,null,null,null,null,null,null,null,null,null,null,null,null,null,null,null,null,null,null,null,null,null,null,null,null,null,null,null,null,null,null,null,null,null,null,null,null,null,null,null,null,null,null,null,null,null,null,null,null,null,null,3407500]
[null,null,null,null,null,null,null,null,null,null,null,null,null,null,null,null,null,null,null,null,null,null,null,null,null,null,null,null,null,null,null,null,null,null,null,null,null,null,null,null,null,null,null,null,null,null,null,null,null,null,null,null,null,null,null,null,null,null,null,null,null,null,null,null,null,null,null,null,null,null,null,null,null,null,null,null,null,null,null,null,null,null,null,null,null,null,null,null,null,null,null,null,null,3410500]
[null,null,null,null,null,null,null,null,null,null,null,null,null,null,null,null,null,null,null,null,null,null,null,null,null,null,null,null,null,null,null,null,null,null,null,null,null,null,null,null,null,null,null,null,null,null,null,null,null,null,null,null,null,null,null,null,null,null,null,null,null,null,null,null,null,null,null,null,null,null,null,null,null,null,null,null,null,null,null,null,null,null,null,null,null,null,null,null,null,null,null,null,null,3411000]
[null,null,null,null,null,null,null,null,null,null,null,null,null,null,null,null,null,null,null,null,null,null,null,null,null,null,null,null,null,null,null,null,null,null,null,null,null,null,null,null,null,null,null,null,null,null,null,null,null,null,null,null,null,null,null,null,null,null,null,null,null,null,null,null,null,null,null,null,null,null,null,null,null,null,null,null,null,null,null,null,null,null,null,null,null,null,null,null,null,null,null,null,null,3412500]
[null,null,null,null,null,null,null,null,null,null,null,null,null,null,null,null,null,null,null,null,null,null,null,null,null,null,null,null,null,null,null,null,null,null,null,null,null,null,null,null,null,null,null,null,null,null,null,null,null,null,null,null,null,null,null,null,null,null,null,null,null,null,null,null,null,null,null,null,null,null,null,null,null,null,null,null,null,null,null,null,null,null,null,null,null,null,null,null,null,null,null,null,null,3413200]
[null,null,null,null,null,null,null,null,null,null,null,null,null,null,null,null,null,null,null,null,null,null,null,null,null,null,null,null,null,null,null,null,null,null,null,null,null,null,null,null,null,null,null,null,null,null,null,null,null,null,null,null,null,null,null,null,null,null,null,null,null,null,null,null,null,null,null,null,null,null,null,null,null,null,null,null,null,null,null,null,null,null,null,null,null,null,null,null,null,null,null,null,null,3413202]
[null,null,null,null,null,null,null,null,null,null,null,null,null,null,null,null,null,null,null,null,null,null,null,null,null,null,null,null,null,null,null,null,null,null,null,null,null,null,null,null,null,null,null,null,null,null,null,null,null,null,null,null,null,null,null,null,null,null,null,null,null,null,null,null,null,null,null,null,null,null,null,null,null,null,null,null,null,null,null,null,null,null,null,null,null,null,null,null,null,null,null,null,null,3413425]
[null,null,null,null,null,null,null,null,null,null,null,null,null,null,null,null,null,null,null,null,null,null,null,null,null,null,null,null,null,null,null,null,null,null,null,null,null,null,null,null,null,null,null,null,null,null,null,null,null,null,null,null,null,null,null,null,null,null,null,null,null,null,null,null,null,null,null,null,null,null,null,null,null,null,null,null,null,null,null,null,null,null,null,null,null,null,null,null,null,null,null,null,null,3414000]
[null,null,null,null,null,null,null,null,null,null,null,null,null,null,null,null,null,null,null,null,null,null,null,null,null,null,null,null,null,null,null,null,null,null,null,null,null,null,null,null,null,null,null,null,null,null,null,null,null,null,null,null,null,null,null,null,null,null,null,null,null,null,null,null,null,null,null,null,null,null,null,null,null,null,null,null,null,null,null,null,null,null,null,null,null,null,null,null,null,null,null,null,null,3414102]
[null,null,null,null,null,null,null,null,null,null,null,null,null,null,null,null,null,null,null,null,null,null,null,null,null,null,null,null,null,null,null,null,null,null,null,null,null,null,null,null,null,null,null,null,null,null,null,null,null,null,null,null,null,null,null,null,null,null,null,null,null,null,null,null,null,null,null,null,null,null,null,null,null,null,null,null,null,null,null,null,null,null,null,null,null,null,null,null,null,null,null,null,null,3435140]
[null,null,null,null,null,null,null,null,null,null,null,null,null,null,null,null,null,null,null,null,null,null,null,null,null,null,null,null,null,null,null,null,null,null,null,null,null,null,null,null,null,null,null,null,null,null,null,null,null,null,null,null,null,null,null,null,null,null,null,null,null,null,null,null,null,null,null,null,null,null,null,null,null,null,null,null,null,null,null,null,null,null,null,null,null,null,null,null,null,null,null,null,null,3437490]
[null,null,null,null,null,null,null,null,null,null,null,null,null,null,null,null,null,null,null,null,null,null,null,null,null,null,null,null,null,null,null,null,null,null,null,null,null,null,null,null,null,null,null,null,null,null,null,null,null,null,null,null,null,null,null,null,null,null,null,null,null,null,null,null,null,null,null,null,null,null,null,null,null,null,null,null,null,null,null,null,null,null,null,null,null,null,null,null,null,null,null,null,null,3437500]
[null,null,null,null,null,null,null,null,null,null,null,null,null,null,null,null,null,null,null,null,null,null,null,null,null,null,null,null,null,null,null,null,null,null,null,null,null,null,null,null,null,null,null,null,null,null,null,null,null,null,null,null,null,null,null,null,null,null,null,null,null,null,null,null,null,null,null,null,null,null,null,null,null,null,null,null,null,null,null,null,null,null,null,null,null,null,null,null,null,null,null,null,null,3438000]
[null,null,null,null,null,null,null,null,null,null,null,null,null,null,null,null,null,null,null,null,null,null,null,null,null,null,null,null,null,null,null,null,null,null,null,null,null,null,null,null,null,null,null,null,null,null,null,null,null,null,null,null,null,null,null,null,null,null,null,null,null,null,null,null,null,null,null,null,null,null,null,null,null,null,null,null,null,null,null,null,null,null,null,null,null,null,null,null,null,null,null,null,null,3438070]
[null,null,null,null,null,null,null,null,null,null,null,null,null,null,null,null,null,null,null,null,null,null,null,null,null,null,null,null,null,null,null,null,null,null,null,null,null,null,null,null,null,null,null,null,null,null,null,null,null,null,null,null,null,null,null,null,null,null,null,null,null,null,null,null,null,null,null,null,null,null,null,null,null,null,null,null,null,null,null,null,null,null,null,null,null,null,null,null,null,null,null,null,null,3438120]
[null,null,null,null,null,null,null,null,null,null,null,null,null,null,null,null,null,null,null,null,null,null,null,null,null,null,null,null,null,null,null,null,null,null,null,null,null,null,null,null,null,null,null,null,null,null,null,null,null,null,null,null,null,null,null,null,null,null,null,null,null,null,null,null,null,null,null,null,null,null,null,null,null,null,null,null,null,null,null,null,null,null,null,null,null,null,null,null,null,null,null,null,null,3438220]
[null,null,null,null,null,null,null,null,null,null,null,null,null,null,null,null,null,null,null,null,null,null,null,null,null,null,null,null,null,null,null,null,null,null,null,null,null,null,null,null,null,null,null,null,null,null,null,null,null,null,null,null,null,null,null,null,null,null,null,null,null,null,null,null,null,null,null,null,null,null,null,null,null,null,null,null,null,null,null,null,null,null,null,null,null,null,null,null,null,null,null,null,null,3610000]
[null,null,null,null,null,null,null,null,null,null,null,null,null,null,null,null,null,null,null,null,null,null,null,null,null,null,null,null,null,null,null,null,null,null,null,null,null,null,null,null,null,null,null,null,null,null,null,null,null,null,null,null,null,null,null,null,null,null,null,null,null,null,null,null,null,null,null,null,null,null,null,null,null,null,null,null,null,null,null,null,null,null,null,null,null,null,null,null,null,null,null,null,null,3610200]
[null,null,null,null,null,null,null,null,null,null,null,null,null,null,null,null,null,null,null,null,null,null,null,null,null,null,null,null,null,null,null,null,null,null,null,null,null,null,null,null,null,null,null,null,null,null,null,null,null,null,null,null,null,null,null,null,null,null,null,null,null,null,null,null,null,null,null,null,null,null,null,null,null,null,null,null,null,null,null,null,null,null,null,null,null,null,null,null,null,null,null,null,null,3610470]
[null,null,null,null,null,null,null,null,null,null,null,null,null,null,null,null,null,null,null,null,null,null,null,null,null,null,null,null,null,null,null,null,null,null,null,null,null,null,null,null,null,null,null,null,null,null,null,null,null,null,null,null,null,null,null,null,null,null,null,null,null,null,null,null,null,null,null,null,null,null,null,null,null,null,null,null,null,null,null,null,null,null,null,null,null,null,null,null,null,null,null,null,null,3610500]
[null,null,null,null,null,null,null,null,null,null,null,null,null,null,null,null,null,null,null,null,null,null,null,null,null,null,null,null,null,null,null,null,null,null,null,null,null,null,null,null,null,null,null,null,null,null,null,null,null,null,null,null,null,null,null,null,null,null,null,null,null,null,null,null,null,null,null,null,null,null,null,null,null,null,null,null,null,null,null,null,null,null,null,null,null,null,null,null,null,null,null,null,null,3610503]
[null,null,null,null,null,null,null,null,null,null,null,null,null,null,null,null,null,null,null,null,null,null,null,null,null,null,null,null,null,null,null,null,null,null,null,null,null,null,null,null,null,null,null,null,null,null,null,null,null,null,null,null,null,null,null,null,null,null,null,null,null,null,null,null,null,null,null,null,null,null,null,null,null,null,null,null,null,null,null,null,null,null,null,null,null,null,null,null,null,null,null,null,null,3610545]
[null,null,null,null,null,null,null,null,null,null,null,null,null,null,null,null,null,null,null,null,null,null,null,null,null,null,null,null,null,null,null,null,null,null,null,null,null,null,null,null,null,null,null,null,null,null,null,null,null,null,null,null,null,null,null,null,null,null,null,null,null,null,null,null,null,null,null,null,null,null,null,null,null,null,null,null,null,null,null,null,null,null,null,null,null,null,null,null,null,null,null,null,null,3610820]
[null,null,null,null,null,null,null,null,null,null,null,null,null,null,null,null,null,null,null,null,null,null,null,null,null,null,null,null,null,null,null,null,null,null,null,null,null,null,null,null,null,null,null,null,null,null,null,null,null,null,null,null,null,null,null,null,null,null,null,null,null,null,null,null,null,null,null,null,null,null,null,null,null,null,null,null,null,null,null,null,null,null,null,null,null,null,null,null,null,null,null,null,null,3611260]
[null,null,null,null,null,null,null,null,null,null,null,null,null,null,null,null,null,null,null,null,null,null,null,null,null,null,null,null,null,null,null,null,null,null,null,null,null,null,null,null,null,null,null,null,null,null,null,null,null,null,null,null,null,null,null,null,null,null,null,null,null,null,null,null,null,null,null,null,null,null,null,null,null,null,null,null,null,null,null,null,null,null,null,null,null,null,null,null,null,null,null,null,null,7022500]
[null,null,null,null,null,null,null,null,null,null,null,null,null,null,null,null,null,null,null,null,null,null,null,null,null,null,null,null,null,null,null,null,null,null,null,null,null,null,null,null,null,null,null,null,null,null,null,null,null,null,null,null,null,null,null,null,null,null,null,null,null,null,null,null,null,null,null,null,null,null,null,null,null,null,null,null,null,null,null,null,null,null,null,null,null,null,null,null,null,null,null,null,null,7023000]
[null,null,null,null,null,null,null,null,null,null,null,null,null,null,null,null,null,null,null,null,null,null,null,null,null,null,null,null,null,null,null,null,null,null,null,null,null,null,null,null,null,null,null,null,null,null,null,null,null,null,null,null,null,null,null,null,null,null,null,null,null,null,null,null,null,null,null,null,null,null,null,null,null,null,null,null,null,null,null,null,null,null,null,null,null,null,null,null,null,null,null,null,null,7023040]
[null,null,null,null,null,null,null,null,null,null,null,null,null,null,null,null,null,null,null,null,null,null,null,null,null,null,null,null,null,null,null,null,null,null,null,null,null,null,null,null,null,null,null,null,null,null,null,null,null,null,null,null,null,null,null,null,null,null,null,null,null,null,null,null,null,null,null,null,null,null,null,null,null,null,null,null,null,null,null,null,null,null,null,null,null,null,null,null,null,null,null,null,null,7023500]
[null,null,null,null,null,null,null,null,null,null,null,null,null,null,null,null,null,null,null,null,null,null,null,null,null,null,null,null,null,null,null,null,null,null,null,null,null,null,null,null,null,null,null,null,null,null,null,null,null,null,null,null,null,null,null,null,null,null,null,null,null,null,null,null,null,null,null,null,null,null,null,null,null,null,null,null,null,null,null,null,null,null,null,null,null,null,null,null,null,null,null,null,null,7023935]
[null,null,null,null,null,null,null,null,null,null,null,null,null,null,null,null,null,null,null,null,null,null,null,null,null,null,null,null,null,null,null,null,null,null,null,null,null,null,null,null,null,null,null,null,null,null,null,null,null,null,null,null,null,null,null,null,null,null,null,null,null,null,null,null,null,null,null,null,null,null,null,null,null,null,null,null,null,null,null,null,null,null,null,null,null,null,null,null,null,null,null,null,null,7024000]
[null,null,null,null,null,null,null,null,null,null,null,null,null,null,null,null,null,null,null,null,null,null,null,null,null,null,null,null,null,null,null,null,null,null,null,null,null,null,null,null,null,null,null,null,null,null,null,null,null,null,null,null,null,null,null,null,null,null,null,null,null,null,null,null,null,null,null,null,null,null,null,null,null,null,null,null,null,null,null,null,null,null,null,null,null,null,null,null,null,null,null,null,null,7024070]

{"sheet":"TC 61-100","index":4,"n_rows":121,"n_cols":88,"rows_kept":121,"cut":false,"hidden":false,"merged":[[58,15,58,20],[45,48,45,57],[46,48,46,57],[47,48,47,57],[45,40,45,47],[46,40,46,47],[47,40,47,47],[47,0,47,11],[45,29,45,39],[46,29,46,39],[47,29,47,39],[45,20,45,28],[46,20,46,28],[47,20,47,28],[49,0,49,14],[49,15,49,28],[49,29,49,42],[49,43,49,57],[45,12,45,19],[46,12,46,19],[47,12,47,19],[48,0,48,57],[45,0,45,11],[46,0,46,11],[64,0,64,57],[54,33,58,57],[54,16,54,24],[54,0,54,8],[54,9,54,15],[54,25,54,32],[59,0,59,57],[57,21,57,26],[55,27,55,32],[56,27,56,32],[57,0,57,8],[58,0,58,8],[60,0,60,57],[61,0,61,57],[57,9,57,14],[58,9,58,14],[58,21,58,26],[62,0,62,57],[63,0,63,57],[57,27,57,32],[58,27,58,32],[55,15,55,20],[56,15,56,20],[57,15,57,20],[51,0,51,14],[51,15,51,28],[51,29,51,42],[51,43,51,57],[50,0,50,14],[50,15,50,28],[50,29,50,42],[50,43,50,57],[6,53,6,57],[6,47,6,52],[6,0,6,7],[6,8,6,15],[6,16,6,19],[6,20,6,28],[6,29,6,37],[6,38,6,46],[7,0,7,9],[7,10,7,16],[7,17,7,19],[7,20,7,27],[7,28,7,35],[7,36,7,42],[7,43,7,50],[7,51,7,57],[5,47,5,51],[5,39,5,42],[5,43,5,46],[3,52,3,57],[4,0,4,57],[5,6,5,28],[5,29,5,38],[3,0,3,3],[5,52,5,57],[3,46,3,51],[3,4,3,24],[3,25,3,28],[3,29,3,45],[1,0,1,15],[0,16,1,51],[0,0,0,15],[2,46,2,50],[2,51,2,57],[2,0,2,4],[2,5,2,24],[0,52,1,57],[2,25,2,29],[2,30,2,45],[8,52,8,57],[8,0,8,15],[8,16,8,21],[8,22,8,27],[8,28,8,33],[18,16,18,21],[8,34,8,39],[8,40,8,45],[8,46,8,51],[18,22,18,27],[10,16,10,21],[12,0,12,57],[13,0,13,4],[13,5,13,26],[13,27,13,37],[13,38,13,57],[11,46,11,51],[11,52,11,57],[9,34,9,39],[9,40,9,45],[10,46,10,51],[10,52,10,57],[9,46,9,51],[9,52,9,57],[10,40,10,45],[11,0,11,15],[11,16,11,21],[11,22,11,27],[11,28,11,33],[11,34,11,39],[11,40,11,45],[18,0,18,15],[19,34,19,39],[19,40,19,45],[18,40,18,45],[15,49,15,57],[14,0,14,8],[14,9,14,26],[14,38,14,57],[14,27,14,37],[15,38,15,48],[16,38,16,48],[16,49,16,57],[17,0,17,4],[17,5,17,18],[17,19,17,26],[17,27,17,37],[17,38,17,45],[17,46,17,57],[16,0,16,8],[16,9,16,18],[9,16,9,21],[9,22,9,27],[9,28,9,33],[18,28,18,33],[16,19,16,25],[16,26,16,37],[15,0,15,5],[15,6,15,37],[10,22,10,27],[9,0,9,9],[9,10,9,15],[18,34,18,39],[10,0,10,15],[10,28,10,33],[10,34,10,39],[19,46,19,51],[19,52,19,57],[19,0,19,15],[19,16,19,21],[19,22,19,27],[19,28,19,33],[20,34,20,39],[20,40,20,45],[20,46,20,51],[20,52,20,57],[20,0,20,15],[20,16,20,21],[20,22,20,27],[20,28,20,33],[21,46,21,51],[21,52,21,57],[21,0,21,15],[21,16,21,21],[21,22,21,27],[21,28,21,33],[24,0,24,8],[24,9,24,26],[24,27,24,36],[24,37,24,57],[22,0,22,57],[23,0,23,4],[23,5,23,26],[23,27,23,37],[23,38,23,57],[21,34,21,39],[21,40,21,45],[25,0,25,5],[25,6,25,37],[25,38,25,48],[25,49,25,57],[26,38,26,48],[26,49,26,57],[27,0,27,4],[27,5,27,18],[27,19,27,26],[27,27,27,37],[27,38,27,45],[29,40,29,45],[29,46,29,51],[32,52,33,57],[32,16,33,51],[33,0,33,15],[27,46,27,57],[26,0,26,8],[26,9,26,18],[26,19,26,25],[26,26,26,37],[32,0,32,15],[28,16,28,21],[28,22,28,27],[28,28,28,33],[30,16,30,21],[30,22,30,27],[30,28,30,33],[29,28,29,33],[28,34,28,39],[18,46,18,51],[18,52,18,57],[31,34,31,39],[31,40,31,45],[31,46,31,51],[31,52,31,57],[31,0,31,15],[31,16,31,21],[31,22,31,27],[31,28,31,33],[30,34,30,39],[30,40,30,45],[30,46,30,51],[30,52,30,57],[30,0,30,15],[29,52,29,57],[29,0,29,15],[29,16,29,21],[29,22,29,27],[28,40,28,45],[28,46,28,51],[28,52,28,57],[28,0,28,15],[29,34,29,39],[40,26,40,40],[40,41,40,42],[40,43,40,57],[34,0,34,57],[35,0,35,57],[36,0,36,57],[37,0,37,57],[41,0,41,6],[41,7,41,23],[41,24,41,40],[41,41,41,57],[38,0,38,57],[39,0,39,57],[40,0,40,6],[40,7,40,8],[40,9,40,23],[40,24,40,25],[43,0,43,6],[43,7,43,23],[43,24,43,40],[43,41,43,57],[42,0,42,6],[42,7,42,23],[42,24,42,40],[42,41,42,57],[44,0,44,57],[53,0,53,57],[55,0,55,8],[56,0,56,8],[55,9,55,14],[56,9,56,14],[55,21,55,26],[56,21,56,26],[52,0,52,26],[52,27,52,57]]}
["Kentucky Transportation Cabinet",null,null,null,null,null,null,null,null,null,null,null,null,null,null,null,"DRAINAGE DESIGN SUMMARY         TC 61-100",null,null,null,null,null,null,null,null,null,null,null,null,null,null,null,null,null,null,null,null,null,null,null,null,null,null,null,null,null,null,null,null,null,null,null,"1 of 2",null,null,null,null,null,null,null,null,null,null,null,null,null,null,null,null,null,null,null,null,null,null,null,null,null,null,null,null,null,null,null,null,null,null,"COUNTY"]
["Division of Highway Design  3-09",null,null,null,null,null,null,null,null,null,null,null,null,null,null,null,null,null,null,null,null,null,null,null,null,null,null,null,null,null,null,null,null,null,null,null,null,null,null,null,null,null,null,null,null,null,null,null,null,null,null,null,null,null,null,null,null,null,null,null,null,null,null,null,null,null,null,null,null,null,null,null,null,null,null,null,null,null,null,null,null,null,null,null,null,null,null,"ADAIR"]
["County :",null,null,null,null,"MARION",null,null,null,null,null,null,null,null,null,null,null,null,null,null,null,null,null,null,null,"Route :",null,null,null,null,"KY 100",null,null,null,null,null,null,null,null,null,null,null,null,null,null,null,"Item # :",null,null,null,null,"3-8503",null,null,null,null,null,null,null,null,null,null,null,null,null,null,null,null,null,null,null,null,null,null,"Low",null,null,null,null,null,null,null,null,null,null,null,null,"ALLEN"]
["UPN :",null,null,null,null,null,null,null,null,null,null,null,null,null,null,null,null,null,null,null,null,null,null,null,null,"FPN :",null,null,null,null,null,null,null,null,null,null,null,null,null,null,null,null,null,null,null,null,"Station :",null,null,null,null,null,null,null,null,null,null,null,null,null,null,null,null,null,null,null,null,null,null,null,null,null,null,null,"Medium",null,null,null,null,null,null,null,null,null,null,null,null,"ANDERSON"]
["EXISTING CONDITIONS",null,null,null,null,null,null,null,null,null,null,null,null,null,null,null,null,null,null,null,null,null,null,null,null,null,null,null,null,null,null,null,null,null,null,null,null,null,null,null,null,null,null,null,null,null,null,null,null,null,null,null,null,null,null,null,null,null,null,null,null,null,null,null,null,null,null,null,null,null,null,null,null,null,"High",null,null,null,null,null,null,null,null,null,null,null,null,"BALLARD"]
["Stream :",null,null,null,null,null,"West Bays Fork",null,null,null,null,null,null,null,null,null,null,null,null,null,null,null,null,null,null,null,null,null,null,"Drainage Area :",null,null,null,null,null,null,null,null,null,{"$f":"Regional!E9","v":0.64},null,null,null,{"$f":"Regional!E5","v":"(sq.mi.)"},null,null,null,"Slope :",null,null,null,null,null,null,null,null,null,null,null,null,null,null,null,null,null,null,null,null,null,null,null,null,null,null,null,null,null,null,null,null,null,null,null,null,null,null,null,"BARREN"]
["OHW Elev. :",null,null,null,null,null,null,null,null,null,null,null,null,null,null,null,"Drift :",null,null,null,null,null,null,null,null,null,null,null,null,"Bed Material :",null,null,null,null,null,null,null,null,null,null,null,null,null,null,null,null,null,"D50(mm) :",null,null,null,null,null,null,null,null,null,null,null,null,null,null,null,null,null,null,null,null,null,null,null,null,null,null,null,null,null,null,null,null,null,null,null,null,null,null,null,"BATH"]
["Abrasion Level :",null,null,null,null,null,null,null,null,null,null,null,null,null,null,null,null,"pH :",null,null,null,null,null,null,null,null,null,null,"Resistivity :",null,null,null,null,null,null,null,null,null,null,null,null,null,null,"Date Taken :",null,null,null,null,null,null,null,null,null,null,null,null,null,null,null,null,null,null,null,null,null,null,null,null,null,null,null,null,null,null,null,null,null,null,null,null,null,null,null,null,null,null,null,"BELL"]
["Return Interval (years)",null,null,null,null,null,null,null,null,null,null,null,null,null,null,null,2,null,null,null,null,null,5,null,null,null,null,null,10,null,null,null,null,null,25,null,null,null,null,null,50,null,null,null,null,null,100,null,null,null,null,null,500,null,null,null,null,null,null,null,null,null,null,null,null,null,null,null,null,null,null,null,null,null,null,null,null,null,null,null,null,null,null,null,null,null,null,"BOONE"]
["Discharge (cfs)",null,null,null,null,null,null,null,null,null,{"$f":"IF('Gaged Flow'!K7:O7>0,\"Qg\",IF(OR(Regional!E23=\"Qr\",Regional!E23=\"\")+OR(Regional!J23=\"Qr\",Regional!J23=\"\")+OR(Regional!O23=\"Qr\",Regional!O23=\"\")=3,\"Qr\",IF(OR(Regional!E23=\"Qu3\",Regional!E23=\"\")+OR(Regional!J23=\"Qu3\",Regional!J23=\"\")+OR(Regional!O23=\"Qu3\",Regional!O23=\"\")=3,\"Qu3\",IF(OR(Regional!E23=\"Qu7\",Regional!E23=\"\")+OR(Regional!J23=\"Qu7\",Regional!J23=\"\")+OR(Regional!O23=\"Qu7\",Regional!O23=\"\")=3,\"Qu7\",IF(OR(Regional!E23=\"Quj\",Regional!E23=\"\")+OR(Regional!J23=\"Quj\",Regional!J23=\"\")+OR(Regional!O23=\"Quj\",Regional!O23=\"\")=3,\"Quj\",\"Mix Method\")))))","v":"Qr"},null,null,null,null,null,{"$f":"IF('Gaged Flow'!$K7>0,'Gaged Flow'!$K7,Regional!$T$24)","v":374.658362850674},null,null,null,null,null,{"$f":"IF('Gaged Flow'!$K8>0,'Gaged Flow'!$K8,Regional!$T$25)","v":588.47710551326497},null,null,null,null,null,{"$f":"IF('Gaged Flow'!$K9>0,'Gaged Flow'!$K9,Regional!$T$26)","v":847.97710255508696},null,null,null,null,null,{"$f":"IF('Gaged Flow'!$K10>0,'Gaged Flow'!$K10,Regional!$T$27)","v":1100.2733247697499},null,null,null,null,null,{"$f":"IF('Gaged Flow'!$K11>0,'Gaged Flow'!$K11,Regional!$T$28)","v":1299.42375937405},null,null,null,null,null,{"$f":"IF('Gaged Flow'!$K12>0,'Gaged Flow'!$K12,Regional!$T$29)","v":1500.8445054316901},null,null,null,null,null,{"$f":"IF('Gaged Flow'!$K13>0,'Gaged Flow'!$K13,Regional!$T$30)","v":2010.0477925110299},null,null,null,null,null,null,null,null,null,null,null,null,null,null,null,null,null,null,null,null,null,null,null,null,null,null,null,null,null,null,null,null,null,null,"BOURBON"]
["Flow Depth ; Tailwater (ft)",null,null,null,null,null,null,null,null,null,null,null,null,null,null,null,null,null,null,null,null,null,null,null,null,null,null,null,null,null,null,null,null,null,null,null,null,null,null,null,null,null,null,null,null,null,null,null,null,null,null,null,null,null,null,null,null,null,null,null,null,null,null,null,null,null,null,null,null,null,null,null,null,null,null,null,null,null,null,null,null,null,null,null,null,null,null,"BOYD"]
["Velocity (ft/s)",null,null,null,null,null,null,null,null,null,null,null,null,null,null,null,null,null,null,null,null,null,null,null,null,null,null,null,null,null,null,null,null,null,null,null,null,null,null,null,null,null,null,null,null,null,null,null,null,null,null,null,null,null,null,null,null,null,null,null,null,null,null,null,null,null,null,null,null,null,null,null,null,null,null,null,null,null,null,null,null,null,null,null,null,null,null,"BOYLE"]
["PROPOSED STRUCTURE",null,null,null,null,null,null,null,null,null,null,null,null,null,null,null,null,null,null,null,null,null,null,null,null,null,null,null,null,null,null,null,null,null,null,null,null,null,null,null,null,null,null,null,null,null,null,null,null,null,null,null,null,null,null,null,null,null,null,null,null,null,null,null,null,null,null,null,null,null,null,null,null,null,null,null,null,null,null,null,null,null,null,null,null,null,null,"BRACKEN"]
["Type :",null,null,null,null,"36” Storm Sewer Pipe",null,null,null,null,null,null,null,null,null,null,null,null,null,null,null,null,null,null,null,null,null,"Geometry, Skew :",null,null,null,null,null,null,null,null,null,null,"231 L.F. @ 0° Skew",null,null,null,null,null,null,null,null,null,null,null,null,null,null,null,null,null,null,null,null,null,null,null,null,null,null,null,null,null,null,null,null,null,null,null,null,null,null,null,null,null,null,null,null,null,null,null,null,"BREATHITT"]
["Lt. Abut. / Inlet :",null,null,null,null,null,null,null,null,"36” S & F Box Inlet - Outlet",null,null,null,null,null,null,null,null,null,null,null,null,null,null,null,null,null,"Rt. Abut. / Outlet :",null,null,null,null,null,null,null,null,null,null,"36” S & F Box Inlet - Outlet",null,null,null,null,null,null,null,null,null,null,null,null,null,null,null,null,null,null,null,null,null,null,null,null,null,null,null,null,null,null,null,null,null,null,null,null,null,null,null,null,null,null,null,null,null,null,null,null,"BRECKINRIDGE"]
["Coating :",null,null,null,null,null,"Bituminous",null,null,null,null,null,null,null,null,null,null,null,null,null,null,null,null,null,null,null,null,null,null,null,null,null,null,null,null,null,null,null,"Low Road Elev. :",null,null,null,null,null,null,null,null,null,null,510,null,null,null,null,null,null,null,null,null,null,null,null,null,null,null,null,null,null,null,null,null,null,null,null,null,null,null,null,null,null,null,null,null,null,null,null,null,"BULLITT"]
["Net Opening :",null,null,null,null,null,null,null,null,"36 sq. ft.",null,null,null,null,null,null,null,null,null,"Inlet Elev. :",null,null,null,null,null,null,500,null,null,null,null,null,null,null,null,null,null,null,"Low Beam Elev. :",null,null,null,null,null,null,null,null,null,null,508,null,null,null,null,null,null,null,null,null,null,null,null,null,null,null,null,null,null,null,null,null,null,null,null,null,null,null,null,null,null,null,null,null,null,null,null,null,"BUTLER"]
["Slope :",null,null,null,null,"0.78% / 0.5%",null,null,null,null,null,null,null,null,null,null,null,null,null,"Outlet Elev. :",null,null,null,null,null,null,null,499,null,null,null,null,null,null,null,null,null,null,"Grate Elev. :",null,null,null,null,null,null,null,502,null,null,null,null,null,null,null,null,null,null,null,null,null,null,null,null,null,null,null,null,null,null,null,null,null,null,null,null,null,null,null,null,null,null,null,null,null,null,null,null,"CALDWELL"]
["WSEL with Structure",null,null,null,null,null,null,null,null,null,null,null,null,null,null,null,null,null,null,null,null,null,null,null,null,null,null,null,null,null,null,null,null,null,null,null,null,null,null,null,null,null,null,null,null,null,null,null,null,null,null,null,null,null,null,null,null,null,null,null,null,null,null,null,null,null,null,null,null,null,null,null,null,null,null,null,null,null,null,null,null,null,null,null,null,null,null,"CALLOWAY"]
["WSEL without Structure",null,null,null,null,null,null,null,null,null,null,null,null,null,null,null,null,null,null,null,null,null,null,null,null,null,null,null,null,null,null,null,null,null,null,null,null,null,null,null,null,null,null,null,null,null,null,null,null,null,null,null,null,null,null,null,null,null,null,null,null,null,null,null,null,null,null,null,null,null,null,null,null,null,null,null,null,null,null,null,null,null,null,null,null,null,null,"CAMPBELL"]
["Vel. with Structure (ft/sec)",null,null,null,null,null,null,null,null,null,null,null,null,null,null,null,null,null,null,null,null,null,null,null,null,null,null,null,null,null,null,null,null,null,null,null,null,null,null,null,null,null,null,null,null,null,null,null,null,null,null,null,null,null,null,null,null,null,null,null,null,null,null,null,null,null,null,null,null,null,null,null,null,null,null,null,null,null,null,null,null,null,null,null,null,null,null,"CARLISLE"]
["Q over Road",null,null,null,null,null,null,null,null,null,null,null,null,null,null,null,null,null,null,null,null,null,null,null,null,null,null,null,null,null,null,null,null,null,null,null,null,null,null,null,null,null,null,null,null,null,null,null,null,null,null,null,null,null,null,null,null,null,null,null,null,null,null,null,null,null,null,null,null,null,null,null,null,null,null,null,null,null,null,null,null,null,null,null,null,null,null,"CARROLL"]
["EXISTING STRUCTURE",null,null,null,null,null,null,null,null,null,null,null,null,null,null,null,null,null,null,null,null,null,null,null,null,null,null,null,null,null,null,null,null,null,null,null,null,null,null,null,null,null,null,null,null,null,null,null,null,null,null,null,null,null,null,null,null,null,null,null,null,null,null,null,null,null,null,null,null,null,null,null,null,null,null,null,null,null,null,null,null,null,null,null,null,null,null,"CARTER"]
["Type :",null,null,null,null,null,null,null,null,null,null,null,null,null,null,null,null,null,null,null,null,null,null,null,null,null,null,"Geometry, Skew :",null,null,null,null,null,null,null,null,null,null,null,null,null,null,null,null,null,null,null,null,null,null,null,null,null,null,null,null,null,null,null,null,null,null,null,null,null,null,null,null,null,null,null,null,null,null,null,null,null,null,null,null,null,null,null,null,null,null,null,"CASEY"]
["Lt. Abut. / Inlet :",null,null,null,null,null,null,null,null,null,null,null,null,null,null,null,null,null,null,null,null,null,null,null,null,null,null,"Rt. Abut./ Outlet :",null,null,null,null,null,null,null,null,null,null,null,null,null,null,null,null,null,null,null,null,null,null,null,null,null,null,null,null,null,null,null,null,null,null,null,null,null,null,null,null,null,null,null,null,null,null,null,null,null,null,null,null,null,null,null,null,null,null,null,"CHRISTIAN"]
["Coating :",null,null,null,null,null,null,null,null,null,null,null,null,null,null,null,null,null,null,null,null,null,null,null,null,null,null,null,null,null,null,null,null,null,null,null,null,null,"Low Road Elev. :",null,null,null,null,null,null,null,null,null,null,null,null,null,null,null,null,null,null,null,null,null,null,null,null,null,null,null,null,null,null,null,null,null,null,null,null,null,null,null,null,null,null,null,null,null,null,null,null,"CLARK"]
["Net Opening :",null,null,null,null,null,null,null,null,null,null,null,null,null,null,null,null,null,null,"Inlet Elev. :",null,null,null,null,null,null,null,null,null,null,null,null,null,null,null,null,null,null,"Low Beam Elev. :",null,null,null,null,null,null,null,null,null,null,null,null,null,null,null,null,null,null,null,null,null,null,null,null,null,null,null,null,null,null,null,null,null,null,null,null,null,null,null,null,null,null,null,null,null,null,null,null,"CLAY"]
["Slope :",null,null,null,null,null,null,null,null,null,null,null,null,null,null,null,null,null,null,"Outlet Elev. :",null,null,null,null,null,null,null,null,null,null,null,null,null,null,null,null,null,null,"Grate Elev. :",null,null,null,null,null,null,null,null,null,null,null,null,null,null,null,null,null,null,null,null,null,null,null,null,null,null,null,null,null,null,null,null,null,null,null,null,null,null,null,null,null,null,null,null,null,null,null,null,"CLINTON"]
["WSEL with Structure",null,null,null,null,null,null,null,null,null,null,null,null,null,null,null,null,null,null,null,null,null,null,null,null,null,null,null,null,null,null,null,null,null,null,null,null,null,null,null,null,null,null,null,null,null,null,null,null,null,null,null,null,null,null,null,null,null,null,null,null,null,null,null,null,null,null,null,null,null,null,null,null,null,null,null,null,null,null,null,null,null,null,null,null,null,null,"CRITTENDEN"]
["WSEL without Structure",null,null,null,null,null,null,null,null,null,null,null,null,null,null,null,null,null,null,null,null,null,null,null,null,null,null,null,null,null,null,null,null,null,null,null,null,null,null,null,null,null,null,null,null,null,null,null,null,null,null,null,null,null,null,null,null,null,null,null,null,null,null,null,null,null,null,null,null,null,null,null,null,null,null,null,null,null,null,null,null,null,null,null,null,null,null,"CUMBERLAND"]
["Vel. with Structure (ft/sec)",null,null,null,null,null,null,null,null,null,null,null,null,null,null,null,null,null,null,null,null,null,null,null,null,null,null,null,null,null,null,null,null,null,null,null,null,null,null,null,null,null,null,null,null,null,null,null,null,null,null,null,null,null,null,null,null,null,null,null,null,null,null,null,null,null,null,null,null,null,null,null,null,null,null,null,null,null,null,null,null,null,null,null,null,null,null,"DAVIESS"]
["Q over Road",null,null,null,null,null,null,null,null,null,null,null,null,null,null,null,null,null,null,null,null,null,null,null,null,null,null,null,null,null,null,null,null,null,null,null,null,null,null,null,null,null,null,null,null,null,null,null,null,null,null,null,null,null,null,null,null,null,null,null,null,null,null,null,null,null,null,null,null,null,null,null,null,null,null,null,null,null,null,null,null,null,null,null,null,null,null,"EDMONSON"]
["Kentucky Transportation Cabinet",null,null,null,null,null,null,null,null,null,null,null,null,null,null,null,"DRAINAGE DESIGN SUMMARY         TC 61-100",null,null,null,null,null,null,null,null,null,null,null,null,null,null,null,null,null,null,null,null,null,null,null,null,null,null,null,null,null,null,null,null,null,null,null,"2 of 2",null,null,null,null,null,null,null,null,null,null,null,null,null,null,null,null,null,null,null,null,null,null,null,null,null,null,null,null,null,null,null,null,null,null,"ELLIOTT"]
["Division of Highway Design  7-07",null,null,null,null,null,null,null,null,null,null,null,null,null,null,null,null,null,null,null,null,null,null,null,null,null,null,null,null,null,null,null,null,null,null,null,null,null,null,null,null,null,null,null,null,null,null,null,null,null,null,null,null,null,null,null,null,null,null,null,null,null,null,null,null,null,null,null,null,null,null,null,null,null,null,null,null,null,null,null,null,null,null,null,null,null,null,"ESTILL"]
["REMARKS  and / or  CONTROLS",null,null,null,null,null,null,null,null,null,null,null,null,null,null,null,null,null,null,null,null,null,null,null,null,null,null,null,null,null,null,null,null,null,null,null,null,null,null,null,null,null,null,null,null,null,null,null,null,null,null,null,null,null,null,null,null,null,null,null,null,null,null,null,null,null,null,null,null,null,null,null,null,null,null,null,null,null,null,null,null,null,null,null,null,null,null,"FAYETTE"]
["HW / DIAMETER < 1.2 (CONTROL)",null,null,null,null,null,null,null,null,null,null,null,null,null,null,null,null,null,null,null,null,null,null,null,null,null,null,null,null,null,null,null,null,null,null,null,null,null,null,null,null,null,null,null,null,null,null,null,null,null,null,null,null,null,null,null,null,null,null,null,null,null,null,null,null,null,null,null,null,null,null,null,null,null,null,null,null,null,null,null,null,null,null,null,null,null,null,"FLEMING"]
["100 YEAR FLOOD ELEVATION EXCEEDS THE RIGHT OF WAY LIMIT",null,null,null,null,null,null,null,null,null,null,null,null,null,null,null,null,null,null,null,null,null,null,null,null,null,null,null,null,null,null,null,null,null,null,null,null,null,null,null,null,null,null,null,null,null,null,null,null,null,null,null,null,null,null,null,null,null,null,null,null,null,null,null,null,null,null,null,null,null,null,null,null,null,null,null,null,null,null,null,null,null,null,null,null,null,null,"FLOYD"]
["DRAINAGE EASEMENT REQUIRED",null,null,null,null,null,null,null,null,null,null,null,null,null,null,null,null,null,null,null,null,null,null,null,null,null,null,null,null,null,null,null,null,null,null,null,null,null,null,null,null,null,null,null,null,null,null,null,null,null,null,null,null,null,null,null,null,null,null,null,null,null,null,null,null,null,null,null,null,null,null,null,null,null,null,null,null,null,null,null,null,null,null,null,null,null,null,"FRANKLIN"]
[null,null,null,null,null,null,null,null,null,null,null,null,null,null,null,null,null,null,null,null,null,null,null,null,null,null,null,null,null,null,null,null,null,null,null,null,null,null,null,null,null,null,null,null,null,null,null,null,null,null,null,null,null,null,null,null,null,null,null,null,null,null,null,null,null,null,null,null,null,null,null,null,null,null,null,null,null,null,null,null,null,null,null,null,null,null,null,"FULTON"]
["RECORD  HIGHWATER  DATA",null,null,null,null,null,null,null,null,null,null,null,null,null,null,null,null,null,null,null,null,null,null,null,null,null,null,null,null,null,null,null,null,null,null,null,null,null,null,null,null,null,null,null,null,null,null,null,null,null,null,null,null,null,null,null,null,null,null,null,null,null,null,null,null,null,null,null,null,null,null,null,null,null,null,null,null,null,null,null,null,null,null,null,null,null,null,"GALLATIN"]
["Source",null,null,null,null,null,null,"1:",null,null,null,null,null,null,null,null,null,null,null,null,null,null,null,null,"2:",null,null,null,null,null,null,null,null,null,null,null,null,null,null,null,null,"3:",null,null,null,null,null,null,null,null,null,null,null,null,null,null,null,null,null,null,null,null,null,null,null,null,null,null,null,null,null,null,null,null,null,null,null,null,null,null,null,null,null,null,null,null,null,"GARRARD"]
["Elevation",null,null,null,null,null,null,null,null,null,null,null,null,null,null,null,null,null,null,null,null,null,null,null,null,null,null,null,null,null,null,null,null,null,null,null,null,null,null,null,null,null,null,null,null,null,null,null,null,null,null,null,null,null,null,null,null,null,null,null,null,null,null,null,null,null,null,null,null,null,null,null,null,null,null,null,null,null,null,null,null,null,null,null,null,null,null,"GRANT"]
["Date",null,null,null,null,null,null,null,null,null,null,null,null,null,null,null,null,null,null,null,null,null,null,null,null,null,null,null,null,null,null,null,null,null,null,null,null,null,null,null,null,null,null,null,null,null,null,null,null,null,null,null,null,null,null,null,null,null,null,null,null,null,null,null,null,null,null,null,null,null,null,null,null,null,null,null,null,null,null,null,null,null,null,null,null,null,null,"GRAVES"]
["Location",null,null,null,null,null,null,null,null,null,null,null,null,null,null,null,null,null,null,null,null,null,null,null,null,null,null,null,null,null,null,null,null,null,null,null,null,null,null,null,null,null,null,null,null,null,null,null,null,null,null,null,null,null,null,null,null,null,null,null,null,null,null,null,null,null,null,null,null,null,null,null,null,null,null,null,null,null,null,null,null,null,null,null,null,null,null,"GRAYSON"]
["PROPOSED CHANNEL LINING",null,null,null,null,null,null,null,null,null,null,null,null,null,null,null,null,null,null,null,null,null,null,null,null,null,null,null,null,null,null,null,null,null,null,null,null,null,null,null,null,null,null,null,null,null,null,null,null,null,null,null,null,null,null,null,null,null,null,null,null,null,null,null,null,null,null,null,null,null,null,null,null,null,null,null,null,null,null,null,null,null,null,null,null,null,null,"GREEN"]
["Location",null,null,null,null,null,null,null,null,null,null,null,"Class",null,null,null,null,null,null,null,"Thickness",null,null,null,null,null,null,null,null,"Depth Protect",null,null,null,null,null,null,null,null,null,null,"Length",null,null,null,null,null,null,null,"Quantity",null,null,null,null,null,null,null,null,null,null,null,null,null,null,null,null,null,null,null,null,null,null,null,null,null,null,null,null,null,null,null,null,null,null,null,null,null,null,"GREENUP"]
["Upstream",null,null,null,null,null,null,null,null,null,null,null,null,null,null,null,null,null,null,null,null,null,null,null,null,null,null,null,null,null,null,null,null,null,null,null,null,null,null,null,null,null,null,null,null,null,null,null,null,null,null,null,null,null,null,null,null,null,null,null,null,null,null,null,null,null,null,null,null,null,null,null,null,null,null,null,null,null,null,null,null,null,null,null,null,null,null,"HANCOCK"]
["Downstream",null,null,null,null,null,null,null,null,null,null,null,"ECB",null,null,null,null,null,null,null,null,null,null,null,null,null,null,null,null,"1.5’",null,null,null,null,null,null,null,null,null,null,"40’",null,null,null,null,null,null,null,"43 S.Y.",null,null,null,null,null,null,null,null,null,null,null,null,null,null,null,null,null,null,null,null,null,null,null,null,null,null,null,null,null,null,null,null,null,null,null,null,null,null,"HARDIN"]
["PROPOSED DIVERSION",null,null,null,null,null,null,null,null,null,null,null,null,null,null,null,null,null,null,null,null,null,null,null,null,null,null,null,null,null,null,null,null,null,null,null,null,null,null,null,null,null,null,null,null,null,null,null,null,null,null,null,null,null,null,null,null,null,null,null,null,null,null,null,null,null,null,null,null,null,null,null,null,null,null,null,null,null,null,null,null,null,null,null,null,null,null,"HARLAN"]
["Flooding",null,null,null,null,null,null,null,null,null,null,null,null,null,null,"Return Interval (yrs)",null,null,null,null,null,null,null,null,null,null,null,null,null,"Discharge (cfs)",null,null,null,null,null,null,null,null,null,null,null,null,null,"Elevation",null,null,null,null,null,null,null,null,null,null,null,null,null,null,null,null,null,null,null,null,null,null,null,null,null,null,null,null,null,null,null,null,null,null,null,null,null,null,null,null,null,null,null,"HARRISON"]
["Design Storm",null,null,null,null,null,null,null,null,null,null,null,null,null,null,null,null,null,null,null,null,null,null,null,null,null,null,null,null,null,null,null,null,null,null,null,null,null,null,null,null,null,null,null,null,null,null,null,null,null,null,null,null,null,null,null,null,null,null,null,null,null,null,null,null,null,null,null,null,null,null,null,null,null,null,null,null,null,null,null,null,null,null,null,null,null,null,"HART"]
["Overtopping Storm",null,null,null,null,null,null,null,null,null,null,null,null,null,null,null,null,null,null,null,null,null,null,null,null,null,null,null,null,null,null,null,null,null,null,null,null,null,null,null,null,null,null,null,null,null,null,null,null,null,null,null,null,null,null,null,null,null,null,null,null,null,null,null,null,null,null,null,null,null,null,null,null,null,null,null,null,null,null,null,null,null,null,null,null,null,null,"HENDERSON"]
["Recommended Size and Type of Opening(s):",null,null,null,null,null,null,null,null,null,null,null,null,null,null,null,null,null,null,null,null,null,null,null,null,null,null,null,null,null,null,null,null,null,null,null,null,null,null,null,null,null,null,null,null,null,null,null,null,null,null,null,null,null,null,null,null,null,null,null,null,null,null,null,null,null,null,null,null,null,null,null,null,null,null,null,null,null,null,null,null,null,null,null,null,null,null,"HENRY"]
["PROPOSED BOX CULVERT OR SPECIAL WING WALLS",null,null,null,null,null,null,null,null,null,null,null,null,null,null,null,null,null,null,null,null,null,null,null,null,null,null,null,null,null,null,null,null,null,null,null,null,null,null,null,null,null,null,null,null,null,null,null,null,null,null,null,null,null,null,null,null,null,null,null,null,null,null,null,null,null,null,null,null,null,null,null,null,null,null,null,null,null,null,null,null,null,null,null,null,null,null,"HICKMAN"]
["Normal End ?",null,null,null,null,null,null,null,null,null,null,null,null,null,null,null,"Skewed End ?",null,null,null,null,null,null,null,null,null,null,null,null,null,null,null,null,null,null,null,null,null,null,null,null,null,null,null,null,null,null,null,null,null,null,null,null,null,null,null,null,null,null,null,null,null,null,null,null,null,null,null,null,null,null,null,null,null,null,null,null,null,null,null,null,null,null,null,null,null,null,"HOPKINS"]
["Location",null,null,null,null,null,null,null,null,1,null,null,null,null,null,2,null,null,null,null,null,3,null,null,null,null,null,4,null,null,null,null,null,null,null,null,null,null,null,null,null,null,null,null,null,null,null,null,null,null,null,null,null,null,null,null,null,null,null,null,null,null,null,null,null,null,null,null,null,null,null,null,null,null,null,null,null,null,null,null,null,null,null,null,null,null,null,"JACKSON"]
["30 Degree",null,null,null,null,null,null,null,null,null,null,null,null,null,null,null,null,null,null,null,null,null,null,null,null,null,null,null,null,null,null,null,null,null,null,null,null,null,null,null,null,null,null,null,null,null,null,null,null,null,null,null,null,null,null,null,null,null,null,null,null,null,null,null,null,null,null,null,null,null,null,null,null,null,null,null,null,null,null,null,null,null,null,null,null,null,null,"JEFFERSON"]
["Skewed",null,null,null,null,null,null,null,null,null,null,null,null,null,null,null,null,null,null,null,null,null,null,null,null,null,null,null,null,null,null,null,null,null,null,null,null,null,null,null,null,null,null,null,null,null,null,null,null,null,null,null,null,null,null,null,null,null,null,null,null,null,null,null,null,null,null,null,null,null,null,null,null,null,null,null,null,null,null,null,null,null,null,null,null,null,null,"JESSAMINE"]
["Special",null,null,null,null,null,null,null,null,null,null,null,null,null,null,null,null,null,null,null,null,null,null,null,null,null,null,null,null,null,null,null,null,null,null,null,null,null,null,null,null,null,null,null,null,null,null,null,null,null,null,null,null,null,null,null,null,null,null,null,null,null,null,null,null,null,null,null,null,null,null,null,null,null,null,null,null,null,null,null,null,null,null,null,null,null,null,"JOHNSON"]
["OTHER SITE SPECIFIC INFORMATION",null,null,null,null,null,null,null,null,null,null,null,null,null,null,null,null,null,null,null,null,null,null,null,null,null,null,null,null,null,null,null,null,null,null,null,null,null,null,null,null,null,null,null,null,null,null,null,null,null,null,null,null,null,null,null,null,null,null,null,null,null,null,null,null,null,null,null,null,null,null,null,null,null,null,null,null,null,null,null,null,null,null,null,null,null,null,"KENTON"]
[null,null,null,null,null,null,null,null,null,null,null,null,null,null,null,null,null,null,null,null,null,null,null,null,null,null,null,null,null,null,null,null,null,null,null,null,null,null,null,null,null,null,null,null,null,null,null,null,null,null,null,null,null,null,null,null,null,null,null,null,null,null,null,null,null,null,null,null,null,null,null,null,null,null,null,null,null,null,null,null,null,null,null,null,null,null,null,"KNOTT"]
[null,null,null,null,null,null,null,null,null,null,null,null,null,null,null,null,null,null,null,null,null,null,null,null,null,null,null,null,null,null,null,null,null,null,null,null,null,null,null,null,null,null,null,null,null,null,null,null,null,null,null,null,null,null,null,null,null,null,null,null,null,null,null,null,null,null,null,null,null,null,null,null,null,null,null,null,null,null,null,null,null,null,null,null,null,null,null,"KNOX"]
[null,null,null,null,null,null,null,null,null,null,null,null,null,null,null,null,null,null,null,null,null,null,null,null,null,null,null,null,null,null,null,null,null,null,null,null,null,null,null,null,null,null,null,null,null,null,null,null,null,null,null,null,null,null,null,null,null,null,null,null,null,null,null,null,null,null,null,null,null,null,null,null,null,null,null,null,null,null,null,null,null,null,null,null,null,null,null,"LARUE"]
[null,null,null,null,null,null,null,null,null,null,null,null,null,null,null,null,null,null,null,null,null,null,null,null,null,null,null,null,null,null,null,null,null,null,null,null,null,null,null,null,null,null,null,null,null,null,null,null,null,null,null,null,null,null,null,null,null,null,null,null,null,null,null,null,null,null,null,null,null,null,null,null,null,null,null,null,null,null,null,null,null,null,null,null,null,null,null,"LAUREL"]
[null,null,null,null,null,null,null,null,null,null,null,null,null,null,null,null,null,null,null,null,null,null,null,null,null,null,null,null,null,null,null,null,null,null,null,null,null,null,null,null,null,null,null,null,null,null,null,null,null,null,null,null,null,null,null,null,null,null,null,null,null,null,null,null,null,null,null,null,null,null,null,null,null,null,null,null,null,null,null,null,null,null,null,null,null,null,null,"LAWRENCE"]
[null,null,null,null,null,null,null,null,null,null,null,null,null,null,null,null,null,null,null,null,null,null,null,null,null,null,null,null,null,null,null,null,null,null,null,null,null,null,null,null,null,null,null,null,null,null,null,null,null,null,null,null,null,null,null,null,null,null,null,null,null,null,null,null,null,null,null,null,null,null,null,null,null,null,null,null,null,null,null,null,null,null,null,null,null,null,null,"LEE"]
[null,null,null,null,null,null,null,null,null,null,null,null,null,null,null,null,null,null,null,null,null,null,null,null,null,null,null,null,null,null,null,null,null,null,null,null,null,null,null,null,null,null,null,null,null,null,null,null,null,null,null,null,null,null,null,null,null,null,null,null,null,null,null,null,null,null,null,null,null,null,null,null,null,null,null,null,null,null,null,null,null,null,null,null,null,null,null,"LESLIE"]
[null,null,null,null,null,null,null,null,null,null,null,null,null,null,null,null,null,null,null,null,null,null,null,null,null,null,null,null,null,null,null,null,null,null,null,null,null,null,null,null,null,null,null,null,null,null,null,null,null,null,null,null,null,null,null,null,null,null,null,null,null,null,null,null,null,null,null,null,null,null,null,null,null,null,null,null,null,null,null,null,null,null,null,null,null,null,null,"LETCHER"]
[null,null,null,null,null,null,null,null,null,null,null,null,null,null,null,null,null,null,null,null,null,null,null,null,null,null,null,null,null,null,null,null,null,null,null,null,null,null,null,null,null,null,null,null,null,null,null,null,null,null,null,null,null,null,null,null,null,null,null,null,null,null,null,null,null,null,null,null,null,null,null,null,null,null,null,null,null,null,null,null,null,null,null,null,null,null,null,"LEWIS"]
[null,null,null,null,null,null,null,null,null,null,null,null,null,null,null,null,null,null,null,null,null,null,null,null,null,null,null,null,null,null,null,null,null,null,null,null,null,null,null,null,null,null,null,null,null,null,null,null,null,null,null,null,null,null,null,null,null,null,null,null,null,null,null,null,null,null,null,null,null,null,null,null,null,null,null,null,null,null,null,null,null,null,null,null,null,null,null,"LINCOLN"]
[null,null,null,null,null,null,null,null,null,null,null,null,null,null,null,null,null,null,null,null,null,null,null,null,null,null,null,null,null,null,null,null,null,null,null,null,null,null,null,null,null,null,null,null,null,null,null,null,null,null,null,null,null,null,null,null,null,null,null,null,null,null,null,null,null,null,null,null,null,null,null,null,null,null,null,null,null,null,null,null,null,null,null,null,null,null,null,"LIVINGSTON"]
[null,null,null,null,null,null,null,null,null,null,null,null,null,null,null,null,null,null,null,null,null,null,null,null,null,null,null,null,null,null,null,null,null,null,null,null,null,null,null,null,null,null,null,null,null,null,null,null,null,null,null,null,null,null,null,null,null,null,null,null,null,null,null,null,null,null,null,null,null,null,null,null,null,null,null,null,null,null,null,null,null,null,null,null,null,null,null,"LOGAN"]
[null,null,null,null,null,null,null,null,null,null,null,null,null,null,null,null,null,null,null,null,null,null,null,null,null,null,null,null,null,null,null,null,null,null,null,null,null,null,null,null,null,null,null,null,null,null,null,null,null,null,null,null,null,null,null,null,null,null,null,null,null,null,null,null,null,null,null,null,null,null,null,null,null,null,null,null,null,null,null,null,null,null,null,null,null,null,null,"LYON"]
[null,null,null,null,null,null,null,null,null,null,null,null,null,null,null,null,null,null,null,null,null,null,null,null,null,null,null,null,null,null,null,null,null,null,null,null,null,null,null,null,null,null,null,null,null,null,null,null,null,null,null,null,null,null,null,null,null,null,null,null,null,null,null,null,null,null,null,null,null,null,null,null,null,null,null,null,null,null,null,null,null,null,null,null,null,null,null,"MCCRACKEN"]
[null,null,null,null,null,null,null,null,null,null,null,null,null,null,null,null,null,null,null,null,null,null,null,null,null,null,null,null,null,null,null,null,null,null,null,null,null,null,null,null,null,null,null,null,null,null,null,null,null,null,null,null,null,null,null,null,null,null,null,null,null,null,null,null,null,null,null,null,null,null,null,null,null,null,null,null,null,null,null,null,null,null,null,null,null,null,null,"MCCREARY"]
[null,null,null,null,null,null,null,null,null,null,null,null,null,null,null,null,null,null,null,null,null,null,null,null,null,null,null,null,null,null,null,null,null,null,null,null,null,null,null,null,null,null,null,null,null,null,null,null,null,null,null,null,null,null,null,null,null,null,null,null,null,null,null,null,null,null,null,null,null,null,null,null,null,null,null,null,null,null,null,null,null,null,null,null,null,null,null,"MCLEAN"]
[null,null,null,null,null,null,null,null,null,null,null,null,null,null,null,null,null,null,null,null,null,null,null,null,null,null,null,null,null,null,null,null,null,null,null,null,null,null,null,null,null,null,null,null,null,null,null,null,null,null,null,null,null,null,null,null,null,null,null,null,null,null,null,null,null,null,null,null,null,null,null,null,null,null,null,null,null,null,null,null,null,null,null,null,null,null,null,"MADISON"]
[null,null,null,null,null,null,null,null,null,null,null,null,null,null,null,null,null,null,null,null,null,null,null,null,null,null,null,null,null,null,null,null,null,null,null,null,null,null,null,null,null,null,null,null,null,null,null,null,null,null,null,null,null,null,null,null,null,null,null,null,null,null,null,null,null,null,null,null,null,null,null,null,null,null,null,null,null,null,null,null,null,null,null,null,null,null,null,"MAGOFFIN"]
[null,null,null,null,null,null,null,null,null,null,null,null,null,null,null,null,null,null,null,null,null,null,null,null,null,null,null,null,null,null,null,null,null,null,null,null,null,null,null,null,null,null,null,null,null,null,null,null,null,null,null,null,null,null,null,null,null,null,null,null,null,null,null,null,null,null,null,null,null,null,null,null,null,null,null,null,null,null,null,null,null,null,null,null,null,null,null,"MARION"]
[null,null,null,null,null,null,null,null,null,null,null,null,null,null,null,null,null,null,null,null,null,null,null,null,null,null,null,null,null,null,null,null,null,null,null,null,null,null,null,null,null,null,null,null,null,null,null,null,null,null,null,null,null,null,null,null,null,null,null,null,null,null,null,null,null,null,null,null,null,null,null,null,null,null,null,null,null,null,null,null,null,null,null,null,null,null,null,"MARSHALL"]
[null,null,null,null,null,null,null,null,null,null,null,null,null,null,null,null,null,null,null,null,null,null,null,null,null,null,null,null,null,null,null,null,null,null,null,null,null,null,null,null,null,null,null,null,null,null,null,null,null,null,null,null,null,null,null,null,null,null,null,null,null,null,null,null,null,null,null,null,null,null,null,null,null,null,null,null,null,null,null,null,null,null,null,null,null,null,null,"MARTIN"]
[null,null,null,null,null,null,null,null,null,null,null,null,null,null,null,null,null,null,null,null,null,null,null,null,null,null,null,null,null,null,null,null,null,null,null,null,null,null,null,null,null,null,null,null,null,null,null,null,null,null,null,null,null,null,null,null,null,null,null,null,null,null,null,null,null,null,null,null,null,null,null,null,null,null,null,null,null,null,null,null,null,null,null,null,null,null,null,"MASON"]
[null,null,null,null,null,null,null,null,null,null,null,null,null,null,null,null,null,null,null,null,null,null,null,null,null,null,null,null,null,null,null,null,null,null,null,null,null,null,null,null,null,null,null,null,null,null,null,null,null,null,null,null,null,null,null,null,null,null,null,null,null,null,null,null,null,null,null,null,null,null,null,null,null,null,null,null,null,null,null,null,null,null,null,null,null,null,null,"MEADE"]
[null,null,null,null,null,null,null,null,null,null,null,null,null,null,null,null,null,null,null,null,null,null,null,null,null,null,null,null,null,null,null,null,null,null,null,null,null,null,null,null,null,null,null,null,null,null,null,null,null,null,null,null,null,null,null,null,null,null,null,null,null,null,null,null,null,null,null,null,null,null,null,null,null,null,null,null,null,null,null,null,null,null,null,null,null,null,null,"MENIFEE"]
[null,null,null,null,null,null,null,null,null,null,null,null,null,null,null,null,null,null,null,null,null,null,null,null,null,null,null,null,null,null,null,null,null,null,null,null,null,null,null,null,null,null,null,null,null,null,null,null,null,null,null,null,null,null,null,null,null,null,null,null,null,null,null,null,null,null,null,null,null,null,null,null,null,null,null,null,null,null,null,null,null,null,null,null,null,null,null,"MERCER"]
[null,null,null,null,null,null,null,null,null,null,null,null,null,null,null,null,null,null,null,null,null,null,null,null,null,null,null,null,null,null,null,null,null,null,null,null,null,null,null,null,null,null,null,null,null,null,null,null,null,null,null,null,null,null,null,null,null,null,null,null,null,null,null,null,null,null,null,null,null,null,null,null,null,null,null,null,null,null,null,null,null,null,null,null,null,null,null,"METCALFE"]
[null,null,null,null,null,null,null,null,null,null,null,null,null,null,null,null,null,null,null,null,null,null,null,null,null,null,null,null,null,null,null,null,null,null,null,null,null,null,null,null,null,null,null,null,null,null,null,null,null,null,null,null,null,null,null,null,null,null,null,null,null,null,null,null,null,null,null,null,null,null,null,null,null,null,null,null,null,null,null,null,null,null,null,null,null,null,null,"MONROE"]
[null,null,null,null,null,null,null,null,null,null,null,null,null,null,null,null,null,null,null,null,null,null,null,null,null,null,null,null,null,null,null,null,null,null,null,null,null,null,null,null,null,null,null,null,null,null,null,null,null,null,null,null,null,null,null,null,null,null,null,null,null,null,null,null,null,null,null,null,null,null,null,null,null,null,null,null,null,null,null,null,null,null,null,null,null,null,null,"MONTGOMERY"]
[null,null,null,null,null,null,null,null,null,null,null,null,null,null,null,null,null,null,null,null,null,null,null,null,null,null,null,null,null,null,null,null,null,null,null,null,null,null,null,null,null,null,null,null,null,null,null,null,null,null,null,null,null,null,null,null,null,null,null,null,null,null,null,null,null,null,null,null,null,null,null,null,null,null,null,null,null,null,null,null,null,null,null,null,null,null,null,"MORGAN"]
[null,null,null,null,null,null,null,null,null,null,null,null,null,null,null,null,null,null,null,null,null,null,null,null,null,null,null,null,null,null,null,null,null,null,null,null,null,null,null,null,null,null,null,null,null,null,null,null,null,null,null,null,null,null,null,null,null,null,null,null,null,null,null,null,null,null,null,null,null,null,null,null,null,null,null,null,null,null,null,null,null,null,null,null,null,null,null,"MUHLENBURG"]
[null,null,null,null,null,null,null,null,null,null,null,null,null,null,null,null,null,null,null,null,null,null,null,null,null,null,null,null,null,null,null,null,null,null,null,null,null,null,null,null,null,null,null,null,null,null,null,null,null,null,null,null,null,null,null,null,null,null,null,null,null,null,null,null,null,null,null,null,null,null,null,null,null,null,null,null,null,null,null,null,null,null,null,null,null,null,null,"NELSON"]
[null,null,null,null,null,null,null,null,null,null,null,null,null,null,null,null,null,null,null,null,null,null,null,null,null,null,null,null,null,null,null,null,null,null,null,null,null,null,null,null,null,null,null,null,null,null,null,null,null,null,null,null,null,null,null,null,null,null,null,null,null,null,null,null,null,null,null,null,null,null,null,null,null,null,null,null,null,null,null,null,null,null,null,null,null,null,null,"NICHOLAS"]
[null,null,null,null,null,null,null,null,null,null,null,null,null,null,null,null,null,null,null,null,null,null,null,null,null,null,null,null,null,null,null,null,null,null,null,null,null,null,null,null,null,null,null,null,null,null,null,null,null,null,null,null,null,null,null,null,null,null,null,null,null,null,null,null,null,null,null,null,null,null,null,null,null,null,null,null,null,null,null,null,null,null,null,null,null,null,null,"OHIO"]
[null,null,null,null,null,null,null,null,null,null,null,null,null,null,null,null,null,null,null,null,null,null,null,null,null,null,null,null,null,null,null,null,null,null,null,null,null,null,null,null,null,null,null,null,null,null,null,null,null,null,null,null,null,null,null,null,null,null,null,null,null,null,null,null,null,null,null,null,null,null,null,null,null,null,null,null,null,null,null,null,null,null,null,null,null,null,null,"OLDHAM"]
[null,null,null,null,null,null,null,null,null,null,null,null,null,null,null,null,null,null,null,null,null,null,null,null,null,null,null,null,null,null,null,null,null,null,null,null,null,null,null,null,null,null,null,null,null,null,null,null,null,null,null,null,null,null,null,null,null,null,null,null,null,null,null,null,null,null,null,null,null,null,null,null,null,null,null,null,null,null,null,null,null,null,null,null,null,null,null,"OWEN"]
[null,null,null,null,null,null,null,null,null,null,null,null,null,null,null,null,null,null,null,null,null,null,null,null,null,null,null,null,null,null,null,null,null,null,null,null,null,null,null,null,null,null,null,null,null,null,null,null,null,null,null,null,null,null,null,null,null,null,null,null,null,null,null,null,null,null,null,null,null,null,null,null,null,null,null,null,null,null,null,null,null,null,null,null,null,null,null,"OWSLEY"]
[null,null,null,null,null,null,null,null,null,null,null,null,null,null,null,null,null,null,null,null,null,null,null,null,null,null,null,null,null,null,null,null,null,null,null,null,null,null,null,null,null,null,null,null,null,null,null,null,null,null,null,null,null,null,null,null,null,null,null,null,null,null,null,null,null,null,null,null,null,null,null,null,null,null,null,null,null,null,null,null,null,null,null,null,null,null,null,"PENDLETON"]
[null,null,null,null,null,null,null,null,null,null,null,null,null,null,null,null,null,null,null,null,null,null,null,null,null,null,null,null,null,null,null,null,null,null,null,null,null,null,null,null,null,null,null,null,null,null,null,null,null,null,null,null,null,null,null,null,null,null,null,null,null,null,null,null,null,null,null,null,null,null,null,null,null,null,null,null,null,null,null,null,null,null,null,null,null,null,null,"PERRY"]
[null,null,null,null,null,null,null,null,null,null,null,null,null,null,null,null,null,null,null,null,null,null,null,null,null,null,null,null,null,null,null,null,null,null,null,null,null,null,null,null,null,null,null,null,null,null,null,null,null,null,null,null,null,null,null,null,null,null,null,null,null,null,null,null,null,null,null,null,null,null,null,null,null,null,null,null,null,null,null,null,null,null,null,null,null,null,null,"PIKE"]
[null,null,null,null,null,null,null,null,null,null,null,null,null,null,null,null,null,null,null,null,null,null,null,null,null,null,null,null,null,null,null,null,null,null,null,null,null,null,null,null,null,null,null,null,null,null,null,null,null,null,null,null,null,null,null,null,null,null,null,null,null,null,null,null,null,null,null,null,null,null,null,null,null,null,null,null,null,null,null,null,null,null,null,null,null,null,null,"POWELL"]
[null,null,null,null,null,null,null,null,null,null,null,null,null,null,null,null,null,null,null,null,null,null,null,null,null,null,null,null,null,null,null,null,null,null,null,null,null,null,null,null,null,null,null,null,null,null,null,null,null,null,null,null,null,null,null,null,null,null,null,null,null,null,null,null,null,null,null,null,null,null,null,null,null,null,null,null,null,null,null,null,null,null,null,null,null,null,null,"PULASKI"]
[null,null,null,null,null,null,null,null,null,null,null,null,null,null,null,null,null,null,null,null,null,null,null,null,null,null,null,null,null,null,null,null,null,null,null,null,null,null,null,null,null,null,null,null,null,null,null,null,null,null,null,null,null,null,null,null,null,null,null,null,null,null,null,null,null,null,null,null,null,null,null,null,null,null,null,null,null,null,null,null,null,null,null,null,null,null,null,"ROBERTSON"]
[null,null,null,null,null,null,null,null,null,null,null,null,null,null,null,null,null,null,null,null,null,null,null,null,null,null,null,null,null,null,null,null,null,null,null,null,null,null,null,null,null,null,null,null,null,null,null,null,null,null,null,null,null,null,null,null,null,null,null,null,null,null,null,null,null,null,null,null,null,null,null,null,null,null,null,null,null,null,null,null,null,null,null,null,null,null,null,"ROCKCASTLE"]
[null,null,null,null,null,null,null,null,null,null,null,null,null,null,null,null,null,null,null,null,null,null,null,null,null,null,null,null,null,null,null,null,null,null,null,null,null,null,null,null,null,null,null,null,null,null,null,null,null,null,null,null,null,null,null,null,null,null,null,null,null,null,null,null,null,null,null,null,null,null,null,null,null,null,null,null,null,null,null,null,null,null,null,null,null,null,null,"ROWAN"]
[null,null,null,null,null,null,null,null,null,null,null,null,null,null,null,null,null,null,null,null,null,null,null,null,null,null,null,null,null,null,null,null,null,null,null,null,null,null,null,null,null,null,null,null,null,null,null,null,null,null,null,null,null,null,null,null,null,null,null,null,null,null,null,null,null,null,null,null,null,null,null,null,null,null,null,null,null,null,null,null,null,null,null,null,null,null,null,"RUSSELL"]
[null,null,null,null,null,null,null,null,null,null,null,null,null,null,null,null,null,null,null,null,null,null,null,null,null,null,null,null,null,null,null,null,null,null,null,null,null,null,null,null,null,null,null,null,null,null,null,null,null,null,null,null,null,null,null,null,null,null,null,null,null,null,null,null,null,null,null,null,null,null,null,null,null,null,null,null,null,null,null,null,null,null,null,null,null,null,null,"SCOTT"]
[null,null,null,null,null,null,null,null,null,null,null,null,null,null,null,null,null,null,null,null,null,null,null,null,null,null,null,null,null,null,null,null,null,null,null,null,null,null,null,null,null,null,null,null,null,null,null,null,null,null,null,null,null,null,null,null,null,null,null,null,null,null,null,null,null,null,null,null,null,null,null,null,null,null,null,null,null,null,null,null,null,null,null,null,null,null,null,"SHELBY"]
[null,null,null,null,null,null,null,null,null,null,null,null,null,null,null,null,null,null,null,null,null,null,null,null,null,null,null,null,null,null,null,null,null,null,null,null,null,null,null,null,null,null,null,null,null,null,null,null,null,null,null,null,null,null,null,null,null,null,null,null,null,null,null,null,null,null,null,null,null,null,null,null,null,null,null,null,null,null,null,null,null,null,null,null,null,null,null,"SIMPSON"]
[null,null,null,null,null,null,null,null,null,null,null,null,null,null,null,null,null,null,null,null,null,null,null,null,null,null,null,null,null,null,null,null,null,null,null,null,null,null,null,null,null,null,null,null,null,null,null,null,null,null,null,null,null,null,null,null,null,null,null,null,null,null,null,null,null,null,null,null,null,null,null,null,null,null,null,null,null,null,null,null,null,null,null,null,null,null,null,"SPENCER"]
[null,null,null,null,null,null,null,null,null,null,null,null,null,null,null,null,null,null,null,null,null,null,null,null,null,null,null,null,null,null,null,null,null,null,null,null,null,null,null,null,null,null,null,null,null,null,null,null,null,null,null,null,null,null,null,null,null,null,null,null,null,null,null,null,null,null,null,null,null,null,null,null,null,null,null,null,null,null,null,null,null,null,null,null,null,null,null,"TAYLOR"]
[null,null,null,null,null,null,null,null,null,null,null,null,null,null,null,null,null,null,null,null,null,null,null,null,null,null,null,null,null,null,null,null,null,null,null,null,null,null,null,null,null,null,null,null,null,null,null,null,null,null,null,null,null,null,null,null,null,null,null,null,null,null,null,null,null,null,null,null,null,null,null,null,null,null,null,null,null,null,null,null,null,null,null,null,null,null,null,"TODD"]
[null,null,null,null,null,null,null,null,null,null,null,null,null,null,null,null,null,null,null,null,null,null,null,null,null,null,null,null,null,null,null,null,null,null,null,null,null,null,null,null,null,null,null,null,null,null,null,null,null,null,null,null,null,null,null,null,null,null,null,null,null,null,null,null,null,null,null,null,null,null,null,null,null,null,null,null,null,null,null,null,null,null,null,null,null,null,null,"TRIGG"]
[null,null,null,null,null,null,null,null,null,null,null,null,null,null,null,null,null,null,null,null,null,null,null,null,null,null,null,null,null,null,null,null,null,null,null,null,null,null,null,null,null,null,null,null,null,null,null,null,null,null,null,null,null,null,null,null,null,null,null,null,null,null,null,null,null,null,null,null,null,null,null,null,null,null,null,null,null,null,null,null,null,null,null,null,null,null,null,"TRIMBLE"]
[null,null,null,null,null,null,null,null,null,null,null,null,null,null,null,null,null,null,null,null,null,null,null,null,null,null,null,null,null,null,null,null,null,null,null,null,null,null,null,null,null,null,null,null,null,null,null,null,null,null,null,null,null,null,null,null,null,null,null,null,null,null,null,null,null,null,null,null,null,null,null,null,null,null,null,null,null,null,null,null,null,null,null,null,null,null,null,"UNION"]
[null,null,null,null,null,null,null,null,null,null,null,null,null,null,null,null,null,null,null,null,null,null,null,null,null,null,null,null,null,null,null,null,null,null,null,null,null,null,null,null,null,null,null,null,null,null,null,null,null,null,null,null,null,null,null,null,null,null,null,null,null,null,null,null,null,null,null,null,null,null,null,null,null,null,null,null,null,null,null,null,null,null,null,null,null,null,null,"WARREN"]
[null,null,null,null,null,null,null,null,null,null,null,null,null,null,null,null,null,null,null,null,null,null,null,null,null,null,null,null,null,null,null,null,null,null,null,null,null,null,null,null,null,null,null,null,null,null,null,null,null,null,null,null,null,null,null,null,null,null,null,null,null,null,null,null,null,null,null,null,null,null,null,null,null,null,null,null,null,null,null,null,null,null,null,null,null,null,null,"WASHINGTON"]
[null,null,null,null,null,null,null,null,null,null,null,null,null,null,null,null,null,null,null,null,null,null,null,null,null,null,null,null,null,null,null,null,null,null,null,null,null,null,null,null,null,null,null,null,null,null,null,null,null,null,null,null,null,null,null,null,null,null,null,null,null,null,null,null,null,null,null,null,null,null,null,null,null,null,null,null,null,null,null,null,null,null,null,null,null,null,null,"WAYNE"]
[null,null,null,null,null,null,null,null,null,null,null,null,null,null,null,null,null,null,null,null,null,null,null,null,null,null,null,null,null,null,null,null,null,null,null,null,null,null,null,null,null,null,null,null,null,null,null,null,null,null,null,null,null,null,null,null,null,null,null,null,null,null,null,null,null,null,null,null,null,null,null,null,null,null,null,null,null,null,null,null,null,null,null,null,null,null,null,"WEBSTER"]
[null,null,null,null,null,null,null,null,null,null,null,null,null,null,null,null,null,null,null,null,null,null,null,null,null,null,null,null,null,null,null,null,null,null,null,null,null,null,null,null,null,null,null,null,null,null,null,null,null,null,null,null,null,null,null,null,null,null,null,null,null,null,null,null,null,null,null,null,null,null,null,null,null,null,null,null,null,null,null,null,null,null,null,null,null,null,null,"WHITLEY"]
[null,null,null,null,null,null,null,null,null,null,null,null,null,null,null,null,null,null,null,null,null,null,null,null,null,null,null,null,null,null,null,null,null,null,null,null,null,null,null,null,null,null,null,null,null,null,null,null,null,null,null,null,null,null,null,null,null,null,null,null,null,null,null,null,null,null,null,null,null,null,null,null,null,null,null,null,null,null,null,null,null,null,null,null,null,null,null,"WOLFE"]
[null,null,null,null,null,null,null,null,null,null,null,null,null,null,null,null,null,null,null,null,null,null,null,null,null,null,null,null,null,null,null,null,null,null,null,null,null,null,null,null,null,null,null,null,null,null,null,null,null,null,null,null,null,null,null,null,null,null,null,null,null,null,null,null,null,null,null,null,null,null,null,null,null,null,null,null,null,null,null,null,null,null,null,null,null,null,null,"WOODFORD"]

{"sheet":"Region1","index":5,"n_rows":0,"n_cols":0,"rows_kept":0,"cut":false,"hidden":false,"merged":[]}

{"sheet":"Region 2","index":6,"n_rows":0,"n_cols":0,"rows_kept":0,"cut":false,"hidden":false,"merged":[]}

{"sheet":"Region 3","index":7,"n_rows":0,"n_cols":0,"rows_kept":0,"cut":false,"hidden":false,"merged":[]}

{"sheet":"Region 4","index":8,"n_rows":0,"n_cols":0,"rows_kept":0,"cut":false,"hidden":false,"merged":[]}

{"sheet":"Region 5","index":9,"n_rows":0,"n_cols":0,"rows_kept":0,"cut":false,"hidden":false,"merged":[]}

{"sheet":"Region 6","index":10,"n_rows":0,"n_cols":0,"rows_kept":0,"cut":false,"hidden":false,"merged":[]}

{"sheet":"Region 7","index":11,"n_rows":0,"n_cols":0,"rows_kept":0,"cut":false,"hidden":false,"merged":[]}

{"sheet":"TN2","index":12,"n_rows":18,"n_cols":1,"rows_kept":18,"cut":false,"hidden":false,"merged":[]}
[]
[]
[]
[]
[]
[]
[]
[]
[]
[]
[]
[]
[]
[]
[]
[]
[]
["NOTE:  TN2 is listed as Hydrologic Area 2 (HA2) in USGS report, WRIR 03-4176 for Tennessee."]

{"sheet":"Coefficients","index":13,"n_rows":45,"n_cols":40,"rows_kept":45,"cut":false,"hidden":false,"merged":[[11,0,11,6],[22,1,22,7],[22,0,23,0],[18,0,18,2],[19,0,19,2],[13,0,13,2],[12,0,12,2],[15,0,15,2],[14,0,14,2],[21,0,21,7],[16,0,16,2],[17,0,17,2],[40,0,40,2],[32,0,32,10],[34,0,34,2],[35,0,35,2],[36,0,36,2],[37,0,37,2],[39,0,39,2],[38,0,38,2],[33,0,33,2]]}
["Region: 1",null,null,null,null,"Region: 2",null,null,null,"Region: 3",null,null,null,"Region: 4",null,null,null,"Region: 5",null,null,null,"Region: 6",null,null,null,"Region: 7",null,null,null,"Region: TN1",null,null,null,"Region: TN2",null,null,null,"Region: TN4"]
["RI","K","a","c",null,"K","a","c",null,"K","a","c",null,"K","a","c",null,"K","a","c",null,"K","a","c",null,"K","a","c",null,"K","a","c",null,"K","a","c",null,"K","a","c"]
[2,312,0.67300000000000004,0,null,152,0.72799999999999998,0,null,187,0.748,0,null,39,0.92300000000000004,0.20399999999999999,null,260,0.70399999999999996,0,null,256,0.6,0,null,293,0.623,0,null,119,0.755,0,null,204,0.72699999999999998,0,null,436,0.52700000000000002,0]
[5,493,0.65100000000000002,0,null,239,0.72099999999999997,0,null,355,0.71199999999999997,0,null,69.8,0.89400000000000002,0.186,null,437,0.69199999999999995,0,null,397,0.58599999999999997,0,null,476,0.61599999999999999,0,null,197,0.74,0,null,340,0.71599999999999997,0,null,618,0.54500000000000004,0]
[10,91.5,0.84299999999999997,0.45100000000000001,null,304,0.71499999999999997,0,null,498,0.69199999999999995,0,null,92.7,0.88200000000000001,0.17799999999999999,null,571,0.68600000000000005,0,null,499,0.57799999999999996,0,null,614,0.61299999999999999,0,null,258,0.73099999999999998,0,null,439,0.71199999999999997,0,null,735,0.55400000000000005,0]
[25,81.2,0.872,0.53500000000000003,null,393,0.70899999999999996,0,null,714,0.67,0,null,121,0.873,0.17299999999999999,null,754,0.68200000000000005,0,null,636,0.56899999999999995,0,null,804,0.61,0,null,342,0.72199999999999998,0,null,573,0.70899999999999996,0,null,878,0.56399999999999995,0]
[50,75.8,0.89,0.58699999999999997,null,464,0.70399999999999996,0,null,897,0.65600000000000003,0,null,140,0.87,0.17299999999999999,null,901,0.67900000000000005,0,null,740,0.56399999999999995,0,null,956,0.61,0,null,411,0.71599999999999997,0,null,677,0.70699999999999996,0,null,981,0.56999999999999995,0]
[100,71.400000000000006,0.90700000000000003,0.63200000000000001,null,538,0.69899999999999995,0,null,1100,0.64300000000000002,0,null,392,0.78,0,null,1060,0.67700000000000005,0,null,846,0.55900000000000005,0,null,1110,0.60899999999999999,0,null,484,0.71,0,null,785,0.70499999999999996,0,null,1080,0.57499999999999996,0]
[500,63.6,0.94099999999999995,0.72199999999999998,null,721,0.69,0,null,1640,0.62,0,null,510,0.77600000000000002,0,null,1450,0.67400000000000004,0,null,1100,0.55100000000000005,0,null,1510,0.61,0,null,672,0.69899999999999995,0,null,1050,0.70199999999999996,0,null,1310,0.58599999999999997,0]
[]
[]
[" Three Variable Urbanization Equation Constants",null,null,null,null,null,null,null,null,"UQR = K (ACM)(QRN) / (13 – BDF)P"]
["Return Interval (yrs)",null,null,"K","M","N","P"]
[2,null,null,13.2,0.21,0.73,0.43,null,null,"where:"]
[5,null,null,10.6,0.17,0.78,0.39,null,null,"  UQR  = regression discharge adjusted for urbanization (cfs)"]
[10,null,null,9.51,0.16,0.79,0.36,null,null,"  AC = contributing drainage area (square miles)"]
[25,null,null,8.68,0.15,0.8,0.34,null,null,"  BDF = basin development factor"]
[50,null,null,8.0399999999999991,0.15,0.81,0.32,null,null,"  QR = regression estimate of rural peak discharge (cfs)"]
[100,null,null,7.7,0.15,0.82,0.32,null,null,"  K, M, N, & P  = constants from the table to the left"]
[500,null,null,7.47,0.16,0.82,0.3]
[]
["Coefficient, b (Area Only)"]
["RI","Region"]
[null,1,2,3,4,5,6,7]
[2,0.67300000000000004,0.72799999999999998,0.748,0.82399999999999995,0.70399999999999996,0.6,0.623]
[5,0.65100000000000002,0.72099999999999997,0.71199999999999997,0.80300000000000005,0.69199999999999995,0.58599999999999997,0.61599999999999999]
[10,0.64200000000000002,0.71499999999999997,0.69199999999999995,0.79400000000000004,0.68600000000000005,0.57799999999999996,0.61299999999999999]
[25,0.63400000000000001,0.70899999999999996,0.67,0.78600000000000003,0.68200000000000005,0.56899999999999995,0.61]
[50,0.629,0.70399999999999996,0.65600000000000003,0.78300000000000003,0.67900000000000005,0.56399999999999995,0.61]
[100,0.625,0.69899999999999995,0.64300000000000002,0.78,0.67700000000000005,0.55900000000000005,0.60899999999999999]
[500,0.61799999999999999,0.69,0.62,0.77600000000000002,0.67400000000000004,0.55100000000000005,0.61]
[]
[" Seven Variable Urbanization Equation Constants"]
["Return Interval (yrs)",null,null,"Co","A","Sl","RI","ST","BDF","IA","RQ"]
[2,null,null,2.35,0.41,0.17,2.04,-0.65,-0.32,0.15,0.47]
[5,null,null,2.7,0.35,0.16,1.86,-0.59,-0.31,0.11,0.54]
[10,null,null,2.99,0.32,0.15,1.75,-0.56999999999999995,-0.3,0.09,0.57999999999999996]
[25,null,null,2.78,0.31,0.15,1.76,-0.55000000000000004,-0.28999999999999998,7.0000000000000007E-2,0.6]
[50,null,null,2.67,0.28999999999999998,0.15,1.74,-0.53,-0.28000000000000003,0.06,0.62]
[100,null,null,2.5,0.28999999999999998,0.15,1.76,-0.52,-0.28000000000000003,0.06,0.63]
[500,null,null,2.27,0.28999999999999998,0.16,1.86,-0.54,-0.27,0.05,0.63]
[]
[null,null,null,null,null,null,null,null,null,"NOTES:"]
[null,null,null,null,null,null,null,null,null,null,"Hydrologic areas 1 and 4 in Tennessee are not utilized in the computations."]
[null,null,null,null,null,null,null,null,null,null,"Other hydrologic regions in adjoining states require manual computations."]

{"sheet":"Table 1","index":14,"n_rows":565,"n_cols":13,"rows_kept":565,"cut":false,"hidden":false,"merged":[[0,2,1,8],[2,10,3,10]]}
[null,null,"Peak flow (cubic feet per second) for given recurrence interval"]
["Station","Code"]
["number",null,2,5,10,25,50,100,500,"Ag","Region"]
[null,null,"years","years","years","years","years","years","years","(sq.mi)"]
[3207965,"G",696,1090,1360,1700,1940,2190,2740,6.2,2]
[null,"R",574,891,1120,1430,1680,1930,2540]
[null,"W",678,1050,1290,1610,1840,2080,2650]
[3208000,"G",1500,1500,1500,"NC",1500,1890,"NC",392,2]
[3209300,"G",19800,29100,37600,"NC",56700,66500,96800,554,2,"N/A"]
[3209500,"G",21600,27400,32700,"NC",51100,60900,88000,1232,2]
[3209575,"G",282,426,538,698,833,982,1390,3.17,2]
[null,"R",352,549,694,891,1050,1210,1600]
[null,"W",295,458,589,776,928,1090,1500]
[3209800,"G",24600,31200,37000,"NC",60600,74400,115000,1702,2,"N/A"]
[3210000,"G",2630,4100,5050,6220,7050,7850,9610,56.3,2]
[null,"R",2860,4370,5430,6850,7920,9000,11600]
[null,"W",2640,4120,5090,6290,7170,8030,9970]
[3211500,"G",2900,3350,3580,3820,3970,"NC","NC",206,2]
[3212000,"G",5200,8920,11500,14900,17500,20000,25800,103,2]
[null,"R",4440,6760,8360,10500,12100,13700,17700]
[null,"W",5150,8680,11100,14000,16200,18400,23400]
[3212500,"G",28900,34600,39000,"NC",53600,61000,82000,2144,2,"N/A"]
[3215000,"G",48800,63800,76000,"NC",104900,118700,152000,3897,2,"N/A"]
[3215500,"G",6010,8890,11100,14200,16800,19700,27300,217,2]
[null,"R",7630,11600,14200,17800,20500,23100,29500]
[null,"W",6060,9010,11300,14500,17200,20100,27600]
[3216000,"G",351000,410000,451000,505000,545000,587000,697000,60750,2,"N/A"]
[3216350,"G",2450,3120,3590,4220,"NC","NC","NC",196,2,"N/A"]
[3216400,"G",2900,3100,3400,"NC",4800,5850,9000,255,2,"N/A"]
[3216500,"G",5900,7500,9300,"NC",14500,16800,22100,400,2]
[3216540,"G",937,1300,1560,1890,2140,2400,3040,12.2,2]
[null,"R",939,1450,1820,2320,2700,3090,4050]
[null,"W",937,1320,1600,1970,2270,2570,3320]
[3216563,"G",192,273,327,395,445,495,613,0.94,2]
[null,"R",145,229,291,376,444,515,691]
[null,"W",185,263,317,389,445,503,646]
[3216564,"G",274,372,435,512,567,621,744,1.61,2]
[null,"R",215,337,427,551,649,751,1000]
[null,"W",263,364,433,526,600,676,861]
[3216600,"G",359000,428000,477000,538000,586000,633000,756000,62000,2,"N/A"]
[3216800,"G",4910,7200,8660,10400,11700,12900,15600,59.6,2]
[null,"R",2980,4550,5650,7130,8250,9370,12100]
[null,"W",4750,6880,8180,9760,10900,12000,14600]
[3216901,"G",192,262,312,379,432,488,632,1.1100000000000001,2]
[null,"R",164,258,328,423,499,579,775]
[null,"W",187,261,317,395,460,528,700]
[3217000,"G",7090,11600,15200,20300,24700,29400,42400,242,2]
[null,"R",8270,12500,15400,19300,22100,24900,31800]
[null,"W",7120,11700,15200,20200,24400,28800,40700]
[3237900,"G",4300,5700,6530,7490,8140,8750,10000,22.4,1]
[null,"R",2530,3730,6030,7850,9280,10800,14600]
[null,"W",4150,5470,6460,7540,8330,9080,10800]
[3238000,"G",373000,447000,494000,558000,604000,654000,775000,70130,1,"N/A"]
[3238030,"G",276,458,602,813,992,1190,1730,1.9,1]
[null,"R",481,749,943,1190,1380,1570,2050]
[null,"W",294,495,665,899,1090,1290,1820]
[3248500,"G",4020,6310,7960,10200,11900,13700,18200,140,1]
[null,"R",5550,8430,10400,13100,15000,17000,21800]
[null,"W",4060,6390,8100,10400,12200,14100,18700]
[3249500,"G",4150,4610,4860,5140,"NC","NC","NC",827,2]
[3250000,"G",6390,10000,12600,15800,18200,20700,26400,47.5,2]
[null,"R",2530,3870,4810,6070,7030,7990,10300]
[null,"W",6040,9190,11100,13500,15200,16900,21000]
[3250080,"G",37,61.7,80.099999999999994,106,126,147,202,0.19,2]
[null,"R",45.4,72.2,92.7,121,144,169,229]
[null,"W",38.1,63.8,83.4,111,132,156,214]
[3250100,"G",6320,8080,9090,10200,11000,11700,13200,84.7,2]
[null,"R",3850,5870,7270,9150,10600,12000,15400]
[null,"W",6110,7820,8810,10000,10900,11800,13700]
[3250150,"G",595,943,1220,1620,1950,2320,3340,2.4300000000000002,2]
[null,"R",290,453,574,738,867,1000,1330]
[null,"W",541,819,1010,1260,1470,1680,2250]
[3250620,"G",87,128,156,192,220,248,315,0.33,2]
[null,"R",67.8,107,138,179,213,248,336]
[null,"W",83.6,123,150,188,217,248,325]
[3251000,"G",5700,7590,8810,10300,11400,12500,15100,119,2]
[null,"R",4930,7500,9270,11600,13400,15200,19500]
[null,"W",5680,7580,8840,10400,11600,12800,15600]
[3251008,"G",82.7,181,269,404,522,655,1020,0.96,2]
[null,"R",148,232,295,382,451,523,701]
[null,"W",91.7,193,277,395,490,590,843]
[3251015,"G",87.1,130,164,212,252,296,416,0.45,2]
[null,"R",85,134,172,223,264,308,416]
[null,"W",86.8,131,166,215,256,300,416]
[3251500,"G",25600,36200,44400,56200,"NC","NC","NC",2326,1,"N/A"]
[3252000,"G",8100,11400,13700,16600,18900,21200,26700,239,2]
[null,"R",8190,12400,15300,19100,21900,24700,31600]
[null,"W",8100,11500,13800,16900,19200,21600,27400]
[3252500,"G",17500,23600,27300,31500,34300,37000,42500,621,2]
[null,"R",16400,24700,30200,37600,42900,48200,61000]
[null,"W",17500,23700,27400,31800,34900,37700,44000]
[3253500,"G",48500,59100,67500,78200,85800,93100,109000,3300,1,"N/A"]
[3254400,"G",2620,4980,7180,10900,14400,18700,32600,13.6,1]
[null,"R",1810,2700,3730,4720,5500,6290,8270]
[null,"W",2550,4650,6460,9230,11700,14700,23900]
[3255000,"G",437000,488000,532000,608000,663000,718000,842000,76580,1,"N/A"]
[3277200,"G",449000,510000,565000,645000,705000,760000,890000,"UNK",1,"N/A"]
[3277185,"G",273,491,657,888,1070,1270,1750,0.68,1]
[null,"R",241,384,731,1000,1230,1460,2070]
[null,"W",268,466,675,921,1120,1330,1850]
[3277200,"G",449000,510000,565000,645000,705000,760000,890000,83170,1]
[3277300,"G",2020,3470,4630,6310,7720,9270,13400,66.400000000000006,2]
[null,"R",3220,4920,6110,7700,8900,10100,13000]
[null,"W",2080,3600,4810,6540,7950,9450,13300]
[3277400,"G",2770,4590,5880,7530,8770,10000,12900,40.9,3]
[null,"R",3000,4990,6490,8580,10200,12000,16400]
[null,"W",2810,4710,6120,8070,9620,11200,15200]
[3277450,"G",664,802,883,"NC","NC","NC","NC",60.6,2]
[3277500,"G",18000,27800,34200,41900,47500,52800,64700,466,3]
[null,"R",14800,22400,27600,34500,39600,44600,57000]
[null,"W",17800,27300,33300,40500,45700,50700,62400]
[3277630,"G",245,388,499,659,792,938,1340,1.32,3]
[null,"R",230,433,603,860,1080,1310,1950]
[null,"W",239,410,558,787,983,1200,1770]
[3278000,"G",243,380,476,603,700,799,1040,2.21,2]
[null,"R",271,423,536,690,811,937,1250]
[null,"W",246,385,486,621,726,834,1100]
[3278500,"G",9280,15300,19400,24500,28300,32000,40400,177,2]
[null,"R",6580,9980,12300,15400,17700,20100,25600]
[null,"W",9120,14700,18400,22900,26200,29300,36600]
[3280000,"G",23800,35700,43600,53400,60600,67700,83900,1101,2]
[null,"R",28200,42000,51200,63300,72100,80700,102000]
[null,"W",23900,36100,44200,54600,62300,70000,87500]
[3280600,"G",12600,21900,29500,40600,49900,60200,88400,202,3]
[null,"R",9910,15500,19600,25000,29200,33400,44100]
[null,"W",12100,20200,25800,32500,37500,42600,56600]
[3280700,"G",4500,7580,9940,13300,16000,18900,26600,61.3,3]
[null,"R",4060,6650,8590,11300,13300,15500,21000]
[null,"W",4440,7360,9500,12400,14600,17000,23100]
[3280728,"G",270,432,564,761,931,1120,1670,1.84,3]
[null,"R",295,548,759,1070,1340,1630,2390]
[null,"W",279,485,670,956,1200,1470,2180]
[3280900,"G",4370,5320,5930,6700,"NC","NC","NC",420,3,"N/A"]
[3280935,"G",154,336,516,824,1120,1490,2690,1.57,3]
[null,"R",262,489,680,966,1210,1470,2170]
[null,"W",184,397,597,909,1180,1470,2310]
[3281000,"G",4660,5900,7040,9260,11000,13400,"NC",537,3]
[3281040,"G",11500,16700,20500,25700,29800,34200,45300,155,3]
[null,"R",8130,12900,16300,21000,24500,28200,37400]
[null,"W",10600,15300,18500,22800,26200,29800,39200]
[3281100,"G",8600,13600,17600,23300,28100,33400,48200,163,3]
[null,"R",8440,13300,16900,21700,25400,29100,38600]
[null,"W",8570,13500,17300,22500,26600,30900,41900]
[3281200,"G",20800,31500,38900,48500,55800,63300,81200,486,3]
[null,"R",19100,29000,36000,45100,51900,58700,76000]
[null,"W",20500,30800,37800,46800,53500,60400,77400]
[3281500,"G",22800,34800,43400,54800,63600,72700,95200,722,3]
[null,"R",25700,38500,47400,58700,67300,75800,97100]
[null,"W",22900,35200,44000,55700,64700,73800,95800]
[3282000,"G",53400,69200,79500,94000,105000,116000,142000,2657,3,"N/A"]
[3282198,"G",148,258,343,463,560,663,930,0.59,3]
[null,"R",126,244,346,501,635,784,1180]
[null,"W",140,252,345,485,606,739,1090]
[3282500,"G",2060,3220,4140,5490,6640,7920,11500,65.8,2]
[null,"R",3200,4890,6070,7650,8840,10000,13000]
[null,"W",2090,3290,4260,5680,6870,8170,11700]
[3283000,"G",2090,3700,4930,6660,8040,9510,13200,24,2]
[null,"R",1540,2360,2950,3740,4350,4960,6460]
[null,"W",2050,3540,4620,6040,7130,8260,11100]
[3283305,"G",144,176,198,225,246,266,315,0.57999999999999996,2]
[null,"R",102,161,206,267,316,368,495]
[null,"W",136,173,200,240,272,307,393]
[3283500,"G",8850,13600,16700,20800,23700,26600,33400,362,2]
[null,"R",11100,16700,20500,25600,29400,33100,42000]
[null,"W",8900,13700,17000,21100,24200,27300,34400]
[3283610,"G",49.1,75.900000000000006,94.4,118,136,154,197,0.33,2]
[null,"R",67.8,107,138,179,213,248,336]
[null,"W",51.2,81.2,104,134,159,184,246]
[3284000,"G",58100,69000,76100,85000,91300,97200,109000,3955,3,"N/A"]
[3284300,"G",3040,5290,6940,9130,10800,12600,16700,28.6,3]
[null,"R",2300,3870,5070,6750,8090,9500,13100]
[null,"W",2820,4690,5950,7600,8910,10300,13900]
[3284310,"G",3550,5860,7680,10300,12500,14900,21500,53.4,3]
[null,"R",3660,6030,7810,10300,12200,14200,19300]
[null,"W",3580,5910,7730,10300,12300,14400,19800]
[3284340,"G",297,502,668,913,1120,1360,2010,1.83,3]
[null,"R",294,546,757,1070,1330,1620,2390]
[null,"W",296,522,715,1010,1260,1540,2270]
[3284500,"G",62300,79900,89600,100000,107000,113000,126000,4414,3,"N/A"]
[3285000,"G",14000,21000,26000,32900,38400,44200,58900,318,3]
[null,"R",13900,21500,26800,33900,39300,44700,58400]
[null,"W",14000,21000,26200,33200,38700,44400,58500]
[3285500,"G",20300,26500,30500,35500,39100,42700,51200,395,3]
[null,"R",16400,25100,31200,39200,45300,51400,66800]
[null,"W",18900,25800,30900,38000,43600,49500,63600]
[3287000,"G",68800,83100,93200,106200,116000,125000,145000,5102,2,"N/A"]
[3287128,"G",161,292,402,570,717,884,1360,1.26,2]
[null,"R",180,282,359,463,546,632,846]
[null,"W",164,290,391,534,652,779,1110]
[3287500,"G",68800,80000,88200,98200,105600,111800,126000,5411,2,"N/A"]
[3287534,"G",520,670,764,877,958,1040,1210,4.47,2]
[null,"R",452,704,887,1140,1330,1530,2030]
[null,"W",512,676,789,941,1060,1180,1470]
[3288000,"G",4470,6280,7570,9300,10700,12100,15700,119,2]
[null,"R",4930,7500,9270,11600,13400,15200,19500]
[null,"W",4480,6330,7670,9490,10900,12400,16200]
[3288500,"G",113,208,288,408,513,630,962,2.5299999999999998,2]
[null,"R",299,467,590,759,892,1030,1370]
[null,"W",120,224,314,451,569,698,1050]
[3289000,"G",974,1480,1830,2310,2680,3060,4000,24,2]
[null,"R",1540,2360,2950,3740,4350,4960,6460]
[null,"W",991,1520,1910,2430,2850,3280,4340]
[3289300,"G",3590,6070,8020,10800,13200,15800,22800,95,2]
[null,"R",4180,6370,7890,9920,11500,13000,16700]
[null,"W",3630,6100,8000,10600,12800,15000,20700]
[3289500,"G",12400,17100,20600,25200,28900,32800,42800,473,2]
[null,"R",13500,20300,24900,31000,35500,39900,50500]
[null,"W",12400,17200,20800,25600,29400,33400,43500]
[3290000,"G",2000,3230,4200,5600,6780,8080,11600,5.63,1]
[null,"R",998,1520,2070,2630,3070,3510,4620]
[null,"W",1950,3090,3950,5180,6190,7320,10400]
[3290500,"G",71200,84200,92700,103600,111000,118000,132000,6180,1,"N/A"]
[3290580,"G",405,687,914,1250,1530,1840,2710,5.62,1]
[null,"R",997,1520,2000,2530,2940,3360,4390]
[null,"W",449,782,1090,1510,1850,2210,3150]
[3291000,"G",4260,5770,6810,8180,9250,10400,13100,42.9,1]
[null,"R",3920,5700,5860,6980,7810,8660,10700]
[null,"W",4250,5760,6760,8100,9140,10200,12900]
[3291050,"G",216,303,366,453,522,596,788,0.57999999999999996,1]
[null,"R",216,346,402,505,583,661,851]
[null,"W",216,310,375,467,540,616,807]
[3291500,"G",21200,29600,35400,43000,48900,54900,69800,437,1]
[null,"R",18700,25800,27000,31800,35300,39100,47900]
[null,"W",21200,29500,35200,42600,48300,54200,68800]
[3292200,"G",437,601,718,876,1000,1130,1460,0.87,1]
[null,"R",284,450,753,1010,1210,1420,1970]
[null,"W",409,565,728,916,1070,1230,1630]
[3292460,"G",3640,4660,5280,6020,6550,7050,8170,24.1,1]
[null,"R",2660,3910,4060,4860,5460,6070,7520]
[null,"W",3600,4610,5170,5890,6420,6930,8090]
[3292472,"G",227,420,578,813,1010,1240,1840,0.97,1]
[null,"R",306,483,740,973,1160,1350,1830]
[null,"W",235,430,611,853,1050,1270,1840]
[3294500,"G",494000,553000,605000,686000,750000,812000,952000,91170,1,"N/A"]
[3295000,"G",3180,4790,6050,7880,9410,11100,15800,41.4,2]
[null,"R",2290,3500,4360,5510,6380,7260,9410]
[null,"W",3130,4680,5860,7510,8860,10300,14200]
[3295500,"G",8930,12100,14000,16300,17900,19400,22700,196,2]
[null,"R",7090,10700,13200,16600,19100,21500,27500]
[null,"W",8880,12000,14000,16300,18000,19600,23200]
[3295845,"G",257,573,886,1430,1960,2610,4730,1.36,1]
[null,"R",384,602,832,1070,1260,1450,1920]
[null,"W",270,578,872,1310,1700,2150,3510]
[3295890,"G",12100,19700,25800,34700,42400,50900,74700,259,1]
[null,"R",13100,18400,22200,27000,30500,34300,43300]
[null,"W",12100,19600,25400,33600,40500,48000,68800]
[3296500,"G",2890,4210,5080,6160,6960,7740,9550,19.100000000000001,1]
[null,"R",2270,3360,3700,4490,5080,5680,7130]
[null,"W",2860,4150,4940,5950,6700,7450,9190]
[3297000,"G",1440,2350,3100,4220,5180,6260,9340,5.15,1]
[null,"R",940,1430,2170,2810,3320,3840,5160]
[null,"W",1400,2270,2990,4000,4870,5830,8540]
[3297500,"G",5850,8590,10400,12600,14300,15900,19500,31.8,1]
[null,"R",3200,4690,5730,7060,8070,9110,11600]
[null,"W",5690,8240,9780,11700,13200,14600,18100]
[3297845,"G",3890,4890,5560,6430,7080,7750,9380,46.7,1]
[null,"R",4150,6020,6250,7440,8340,9250,11400]
[null,"W",3910,5010,5670,6620,7340,8070,9820]
[3298000,"G",9270,14000,17800,23600,28700,34500,51400,138,1]
[null,"R",8600,12200,12600,14800,16500,18300,22500]
[null,"W",9260,13900,17600,23200,28000,33400,49200]
[3298500,"G",23100,32900,40500,51500,61000,71700,102000,1197,1,"N/A","solid"]
[3298535,"G",139,292,442,701,955,1270,2320,0.68,1]
[null,"R",241,384,595,786,939,1090,1490]
[null,"W",151,309,479,727,949,1200,1980]
[3299000,"G",14900,22300,27400,34200,39400,44700,57700,239,5]
[null,"R",12300,19300,24400,31600,37100,43200,58100]
[null,"W",14800,22100,27200,34000,39200,44500,57700]
[3300000,"G",5240,7210,8550,10300,11600,12900,16100,85.9,2]
[null,"R",3890,5930,7340,9240,10700,12100,15600]
[null,"W",5170,7110,8420,10100,11400,12800,16000]
[3300065,"G",608,791,899,1020,1110,1190,1370,1.71,2]
[null,"R",225,352,446,575,677,783,1040]
[null,"W",532,674,753,853,932,1010,1220]
[3300400,"G",16500,22600,27000,32800,37400,42300,54800,436,2]
[null,"R",12700,19100,23400,29200,33500,37700,47800]
[null,"W",16300,22300,26600,32300,36800,41500,53200]
[3300990,"G",57.6,86.4,108,137,160,184,248,0.32,2]
[null,"R",66.3,105,135,175,208,243,328]
[null,"W",58.7,89.7,114,148,175,204,279]
[3301000,"G",20000,27200,31600,36800,40500,43900,51400,669,2]
[null,"R",17300,26000,31800,39600,45200,50800,64200]
[null,"W",19900,27200,31600,37100,40900,44700,53100]
[3301500,"G",27100,38600,46800,57800,66500,75500,98300,1299,5]
[null,"R",40500,62400,78100,100000,117000,136000,182000]
[null,"W",27600,39600,48200,59800,68900,78400,102000]
[3302085,"G",189,241,270,304,326,347,390,0.9,5]
[null,"R",241,406,531,702,839,987,1350]
[null,"W",202,281,335,402,452,500,598]
[3303280,"G",526000,586000,640000,733000,800000,865000,1010000,97000,6,"N/A"]
[3304500,"G",368,735,1040,1470,1840,2220,3240,2.14,5]
[null,"R",444,740,962,1270,1510,1770,2420]
[null,"W",376,736,1030,1440,1780,2150,3090]
[3305000,"G",3990,8230,11800,17300,22000,27100,41100,22.4,5]
[null,"R",2320,3760,4820,6280,7440,8700,11800]
[null,"W",3790,7560,10700,15200,19000,23200,34600]
[3305500,"G",5080,8960,11900,16100,19400,23000,32100,36.299999999999997,5]
[null,"R",3260,5250,6710,8730,10300,12100,16300]
[null,"W",4860,8440,11100,14800,17800,21000,29100]
[3305559,"G",386,547,654,787,885,982,1210,0.88,5]
[null,"R",238,400,523,691,826,972,1330]
[null,"W",340,500,610,754,865,977,1250]
[3305835,"G",240,336,405,497,569,644,836,0.71,5]
[null,"R",204,345,451,597,714,841,1150]
[null,"W",231,339,418,525,610,700,926]
[3306000,"G",6070,7390,8210,9200,"NC","NC","NC",682,5,"N/A"]
[3306640,"G",222,607,1000,1670,2300,3050,5300,0.5,5]
[null,"R",160,270,355,470,563,663,909]
[null,"W",204,481,726,1100,1430,1810,2890]
[3307000,"G",8790,14700,19500,26700,33000,40100,60300,188,5]
[null,"R",10400,16400,20700,26800,31500,36700,49400]
[null,"W",8870,14800,19600,26700,32900,39800,59400]
[3307100,"G",11400,21800,31600,47900,63600,82800,145000,265,5]
[null,"R",13200,20800,26200,33900,39800,46300,62300]
[null,"W",11700,21600,30500,44800,58000,73700,123000]
[3307500,"G",1780,2650,3340,4380,5270,6280,9180,18.3,5]
[null,"R",2010,3270,4190,5470,6490,7590,10300]
[null,"W",1800,2700,3420,4480,5390,6410,9290]
[3308500,"G",23600,30500,37500,48800,57100,66500,92900,1673,6,"N/A"]
[3309500,"G",860,1500,2000,2740,3350,4020,5830,5.34,5]
[null,"R",846,1390,1800,2360,2810,3290,4480]
[null,"W",859,1480,1970,2680,3260,3900,5600]
[3310000,"G",4250,6790,8530,10800,12400,14100,17900,36.4,5]
[null,"R",3270,5260,6720,8750,10300,12100,16400]
[null,"W",4160,6640,8340,10500,12200,13800,17700]
[3310300,"G",7400,11800,15200,20100,24200,28800,41100,357,6]
[null,"R",14900,23200,29100,37300,43600,50600,67500]
[null,"W",7760,12400,16100,21400,25700,30500,43400]
[3310385,"G",200,350,462,613,732,854,1160,0.56000000000000005,6]
[null,"R",181,283,357,457,534,612,799]
[null,"W",198,337,436,564,662,763,1010]
[3310400,"G",1660,3080,4210,5820,7140,8560,12300,85.4,6]
[null,"R",3690,5380,6520,7990,9090,10200,12800]
[null,"W",1710,3170,4340,6000,7340,8750,12300]
[3310500,"G",9130,13000,15600,18600,20900,23100,28000,600,6]
[null,"R",17600,26500,32800,41300,47900,54900,72000]
[null,"W",9620,14000,17000,20800,23600,26500,32800]
[3310880,"G",104,174,229,311,380,456,665,0.31,6]
[null,"R",127,200,254,327,382,440,577]
[null,"W",107,179,236,316,381,449,626]
[3311000,"G",7380,9610,11000,12600,13700,"NC","NC",703,6]
[3311500,"G",28700,35900,42700,53700,62700,73000,102000,2762,6,"N/A"]
[3311600,"G",1440,2420,3170,4240,5130,6080,8600,10.9,6]
[null,"R",1070,1610,1980,2480,2850,3220,4100]
[null,"W",1410,2300,2940,3800,4470,5180,7030]
[3312000,"G",4670,6140,7050,8140,8910,9650,11300,30.8,6]
[null,"R",2000,2960,3620,4470,5110,5750,7270]
[null,"W",4460,5760,6510,7410,8070,8720,10300]
[3312500,"G",19000,33100,44800,62500,77800,95100,144000,531,5]
[null,"R",21500,33600,42300,54400,63800,74200,99600]
[null,"W",19300,33200,44500,61200,75500,91400,136000]
[3312795,"G",162,246,308,393,462,534,723,0.89,5]
[null,"R",240,403,527,696,832,980,1340]
[null,"W",180,283,362,472,560,653,894]
[3313000,"G",4790,5860,6590,7510,8210,"NC","NC",942,6,"N/A"]
[3313020,"G",86.5,136,172,218,254,291,379,0.24,5]
[null,"R",95.2,163,215,285,342,403,554]
[null,"W",88.8,144,185,240,283,327,435]
[3313500,"G",1450,2090,2580,3300,3910,4580,6430,7.47,5]
[null,"R",1070,1760,2270,2970,3530,4140,5620]
[null,"W",1400,2040,2540,3250,3840,4500,6280]
[3313700,"G",6170,9730,12500,16400,19600,23100,32500,110,5]
[null,"R",7110,11300,14400,18600,21900,25500,34500]
[null,"W",6270,9920,12700,16700,20000,23500,32900]
[3313800,"G",2080,3780,5200,7340,9200,11300,17200,21.6,5]
[null,"R",2260,3660,4700,6130,7260,8490,11500]
[null,"W",2100,3770,5120,7130,8840,10700,16000]
[3314000,"G",16100,27200,36800,51800,65300,81200,129000,478,5]
[null,"R",20000,31200,39300,50700,59400,69100,92700]
[null,"W",16400,27500,37000,51700,64800,80000,125000]
[3314500,"G",19200,28100,34900,45000,53100,62300,88500,1849,5,"N/A"]
[3314750,"G",207,357,480,663,820,997,1490,0.5,5]
[null,"R",160,270,355,470,563,663,909]
[null,"W",194,331,438,594,725,869,1260]
[3315500,"G",50000,60200,70300,85900,98000,112000,148000,5404,6,"N/A"]
[3316000,"G",5210,7290,8720,10600,12000,13500,17100,90.5,6]
[null,"R",3820,5560,6750,8260,9390,10500,13200]
[null,"W",5160,7200,8570,10400,11700,13100,16500]
[3316500,"G",44100,56900,65800,77500,"NC","NC","NC",6183,6,"N/A"]
[3317000,"G",8790,11900,13700,15900,17400,18700,21700,225,6]
[null,"R",6600,9490,11400,13900,15700,17500,21700]
[null,"W",8670,11700,13500,15600,17100,18500,21700]
[3317500,"G",2000,2840,3380,4060,4550,5030,6140,42,6]
[null,"R",2410,3550,4330,5330,6090,6840,8630]
[null,"W",2020,2880,3470,4210,4750,5300,6530]
[3318000,"G",8920,11600,13200,15000,16200,17200,19600,454,6]
[null,"R",10100,14300,17100,20700,23300,25900,32000]
[null,"W",8990,11800,13600,15800,17300,18800,21800]
[3318200,"G",2940,4480,5650,7330,8720,10200,14400,20.100000000000001,6]
[null,"R",1550,2300,2830,3510,4020,4530,5750]
[null,"W",2830,4190,5150,6440,7480,8590,11600]
[3318500,"G",4120,4810,5680,6900,7570,8360,"NC",504,6,"N/A"]
[3318505,"G",134,209,261,328,378,429,549,0.22,6]
[null,"R",103,163,208,269,315,363,478]
[null,"W",130,200,247,309,356,405,521]
[3318800,"G",5650,7910,9450,11400,13000,14500,18200,124,6]
[null,"R",4620,6690,8090,9880,11200,12500,15700]
[null,"W",5610,7840,9340,11300,12700,14200,17900]
[3319000,"G",7900,10800,13900,17900,21000,24500,34400,757,6,"N/A"]
[3319520,"G",102,150,181,219,248,275,339,0.26,6]
[null,"R",114,180,229,296,346,398,524]
[null,"W",104,154,190,237,273,309,392]
[3320000,"G",48200,55100,62900,73100,80700,88800,110000,7566,6,"N/A"]
[3320500,"G",6990,12400,16800,23300,28800,35000,52000,194,7]
[null,"R",7800,12200,15500,20000,23800,27500,37500]
[null,"W",7010,12400,16700,23000,28400,34300,50200]
[3321465,"G",97.2,159,206,275,331,393,557,0.28999999999999998,6]
[null,"R",122,192,244,314,368,423,556]
[null,"W",100,164,214,284,341,402,556]
[3322000,"G",593000,660000,708000,785000,853000,920000,1080000,107000,6,"N/A"]
[3322360,"G",2230,2650,2870,3100,3250,3380,3650,14.3,6]
[null,"R",1260,1890,2320,2890,3320,3740,4760]
[null,"W",2140,2550,2780,3060,3260,3460,3900]
[3382975,"G",337,628,862,1200,1490,1800,2620,0.91,7]
[null,"R",276,449,580,759,903,1050,1430]
[null,"W",326,584,772,1020,1220,1430,1940]
[3383000,"G",3810,6080,7900,10600,13000,15600,23100,255,7]
[null,"R",9250,14500,18300,23600,28100,32400,44400]
[null,"W",3900,6290,8270,11300,13900,16800,25100]
[3384000,"G",593,847,1010,1210,1350,1480,1790,2.1,7]
[null,"R",465,752,968,1260,1500,1740,2370]
[null,"W",586,840,1010,1210,1370,1530,1900]
[3384500,"G",622000,762000,855000,974000,1057000,1143000,1345000,143900,7,"N/A"]
[3400500,"G",3520,5680,7240,9330,11000,12600,16800,82.3,2]
[null,"R",3770,5750,7120,8960,10400,11700,15100]
[null,"W",3530,5680,7230,9290,10900,12500,16500]
[3400700,"G",5720,9650,12700,17000,20600,24500,34700,82.4,3]
[null,"R",5070,8210,10500,13700,16200,18800,25300]
[null,"W",5570,9160,11700,15100,17700,20500,27600]
[3400800,"G",675,983,1220,1570,"NC","NC","NC",55.8,3,"N/A"]
[3400990,"G",4750,"NC",10400,"NC",16700,19800,27700,222,3,"N/A"]
[3401000,"G","NC","NC",34700,"NC",48700,53200,65800,374,3]
[3401500,"G",3150,4650,5750,7280,8510,9820,13200,35.299999999999997,4]
[null,"R",2810,4160,5090,6280,7190,6320,8100]
[null,"W",3120,4590,5640,7070,8230,8900,11900]
[3402000,"G",4180,6260,7780,9870,11500,13300,17900,60.6,4]
[null,"R",4150,6100,7450,9180,10500,9630,12300]
[null,"W",4180,6240,7740,9760,11400,12600,16800]
[3402020,"G",517,723,851,1000,1110,1210,1430,2.96,4]
[null,"R",349,545,682,857,988,914,1180]
[null,"W",468,648,766,923,1040,1040,1290]
[3402900,"G","NC","NC",56300,"NC",71100,76000,84800,770,4]
[3403500,"G","NC","NC",47000,"NC",61800,66200,74700,960,4]
[3403910,"G",11100,16200,19600,24000,27200,30400,38000,331,4]
[null,"R",14400,20800,25200,30800,35000,36200,46000]
[null,"W",11400,17000,20800,25700,29400,31900,40000]
[3404000,"G","NC","NC",41900,"NC",54300,57400,65000,1607,4,"N/A"]
[3404500,"G","NC","NC",51100,"NC",66700,71100,80600,1977,4,"N/A"]
[3404820,"G",4950,7920,10200,13200,15800,18400,25300,140,4]
[null,"R",4870,7380,9140,11300,12900,18500,23600]
[null,"W",4940,7830,9910,12700,14900,18400,24800]
[3404867,"G",34,49.5,59.5,71.599999999999994,80.3,88.7,107,0.31,4]
[null,"R",33.700000000000003,57.5,74.7,96.3,112,157,206]
[null,"W",33.9,52.8,66.7,84.4,97.3,123,158]
[3404900,"G",2220,3470,4460,5920,7160,8540,12400,53.8,4]
[null,"R",2480,3800,4720,5870,6720,8780,11200]
[null,"W",2250,3520,4520,5910,7040,8610,12100]
[3405000,"G",6620,10300,13000,16700,19500,22400,29800,201,4]
[null,"R",7460,11100,13600,16800,19100,24500,31300]
[null,"W",6690,10500,13200,16700,19400,23000,30200]
[3405854,"G",523,1000,1380,1920,2370,2840,4060,1.91,3]
[null,"R",303,563,779,1100,1370,1670,2450]
[null,"W",426,757,996,1330,1620,1930,2780]
[3406000,"G",304,468,572,695,780,860,1030,3.89,4]
[null,"R",303,485,615,777,896,1130,1460]
[null,"W",304,472,582,718,816,931,1150]
[3406500,"G",21500,30700,36700,44100,49400,54600,66300,604,4]
[null,"R",19200,28100,34300,42100,47900,59200,75300]
[null,"W",21300,30500,36400,43700,49100,55400,68100]
[3407100,"G",80.7,157,221,317,400,491,744,0.67,4]
[null,"R",79.900000000000006,131,168,214,248,287,374]
[null,"W",80.599999999999994,151,205,279,340,416,596]
[3407200,"G",39.5,64.2,82.9,109,130,152,211,0.26,4]
[null,"R",32.700000000000003,55.4,71.7,92.2,107,137,179]
[null,"W",38.6,62.2,79.7,103,122,148,200]
[3407300,"G",51.3,104,145,202,247,294,407,0.85,4]
[null,"R",101,165,210,268,310,345,450]
[null,"W",55.9,115,160,221,267,308,421]
[3407500,"G",9230,14200,17500,21700,24800,27800,34900,165,4]
[null,"R",6960,10300,12600,15600,17700,21000,26800]
[null,"W",9040,13600,16500,20100,22900,26200,33000]
[3410500,"G",44200,61000,72000,85600,95600,106000,128000,954,5]
[null,"R",32600,50400,63200,81200,95000,110000,148000]
[null,"W",43500,60400,71500,85300,95600,106000,130000]
[3411000,"G",50100,72200,87200,106000,121000,135000,170000,1271,5]
[null,"R",39800,61500,76900,98700,115000,134000,179000]
[null,"W",49200,71300,86200,106000,120000,135000,171000]
[3412500,"G",2070,2730,3120,3590,3910,4210,4860,31.3,4]
[null,"R",1750,2680,3330,4150,4750,5750,7380]
[null,"W",2030,2720,3170,3750,4170,4610,5500]
[3413200,"G",2680,4400,5760,7730,9390,11200,16200,43.4,5]
[null,"R",3700,5940,7580,9870,11700,13600,18400]
[null,"W",2790,4580,6000,8030,9730,11600,16600]
[3413202,"G",137,279,416,649,875,1150,2070,0.56999999999999995,5]
[null,"R",175,296,388,514,615,724,993]
[null,"W",145,283,408,606,787,999,1630]
[3413425,"G",158,193,215,240,258,276,315,0.76,5]
[null,"R",214,361,473,625,748,880,1210]
[null,"W",170,228,268,320,359,396,485]
[3414000,"G","NC","NC",40000,"NC",42500,50000,90000,5790,5,"N/A"]
[3414102,"G",537,986,1360,1910,2380,2900,4340,3.52,5]
[null,"R",631,1040,1350,1780,2120,2480,3390]
[null,"W",558,1000,1360,1870,2290,2760,4010]
[3435140,"G",3250,4950,6230,8010,9450,11000,15100,20.8,7]
[null,"R",1940,3090,3950,5120,6090,7050,9620]
[null,"W",3130,4720,5860,7390,8610,9910,13300]
[3437490,"G",256,430,560,741,886,1040,1430,2.62,7]
[null,"R",534,862,1110,1450,1720,2000,2720]
[null,"W",283,489,660,910,1120,1340,1910]
[3437500,"G",2770,4380,5610,7360,8800,10400,14500,46.5,7]
[null,"R",3200,5070,6460,8360,9940,11500,15700]
[null,"W",2790,4420,5680,7470,8950,10500,14800]
[3438000,"G",6520,10500,13700,18700,23100,28100,42700,244,7]
[null,"R",9000,14100,17900,23000,27300,31600,43200]
[null,"W",6570,10600,13900,18900,23400,28400,42800]
[3438070,"G",3530,4560,5280,6210,6940,7700,9570,30.5,7]
[null,"R",2460,3910,4990,6470,7690,8900,12100]
[null,"W",3430,4480,5230,6260,7100,8000,10300]
[3438120,"G",21.7,31.3,38.200000000000003,47.4,54.8,62.5,82,0.1,7]
[null,"R",69.8,115,150,197,235,273,371]
[null,"W",24.7,38.4,50.4,68.7,84.5,102,147]
[3438220,"G","NC","NC",165000,"NC",230000,260000,325000,17600,7,"N/A"]
[3610000,"G",5830,10600,14700,21300,27200,34200,55300,89.7,7]
[null,"R",4820,7590,9670,12500,14800,17200,23500]
[null,"W",5780,10400,14200,20100,25200,30900,47400]
[3610200,"G",9380,14100,17600,22300,26000,30000,40200,134,7]
[null,"R",6200,9730,12400,16000,19000,21900,30000]
[null,"W",9100,13600,16700,21000,24300,27800,36900]
[3610470,"G",358,575,731,939,1100,1270,1670,0.96,7]
[null,"R",286,464,599,784,932,1080,1470]
[null,"W",350,558,705,900,1050,1210,1600]
[3610500,"G",9850,16800,22200,29700,35900,42400,59500]
[null,"R",8600,13500,17100,22000,26200,30200,41300]
[null,"W",9810,16700,21900,29100,34900,41000,56800]
[3610503,"G",729,1100,1340,1650,1870,2090,2590,0.82,7]
[null,"R",259,421,544,712,847,984,1340]
[null,"W",644,936,1100,1310,1450,1600,1980]
[3610545,"G",5100,7720,9480,11700,13300,14900,18500,68.7,7]
[null,"R",4090,6440,8210,10600,12600,14600,19900]
[null,"W",5030,7610,9320,11500,13200,14800,18900]
[3610820,"G",71.400000000000006,138,200,301,396,509,863,0.13,7]
[null,"R",82.2,135,176,232,275,320,435]
[null,"W",72.8,138,194,278,349,427,638]
[3611260,"G",1980,3260,4240,5630,6770,8010,11300,14.6,7]
[null,"R",1560,2480,3180,4130,4910,5680,7750]
[null,"W",1960,3190,4120,5410,6450,7550,10400]
[7022500,"G",676,1060,1360,1770,2100,2460,3400,1.72,7]
[null,"R",411,665,856,1120,1330,1540,2100]
[null,"W",661,1030,1300,1670,1970,2280,3090]
[7023000,"G",6820,9810,12000,15100,17600,20200,27200,212,7]
[null,"R",8240,12900,16400,21100,25100,29000,39600]
[null,"W",6870,9930,12300,15500,18200,21100,28800]
[7023040,"G",193,277,338,419,483,549,718,0.53,7]
[null,"R",197,322,416,546,649,754,1030]
[null,"W",193,284,352,449,528,612,826]
[7023500,"G",3780,4950,5670,6530,7140,7730,9040,36.799999999999997,7]
[null,"R",2770,4390,5600,7250,8620,9980,13600]
[null,"W",3730,4910,5660,6610,7320,8050,9780]
[7023935,"G",104,157,192,237,270,303,379,0.23,7]
[null,"R",117,193,249,328,390,454,616]
[null,"W",105,162,203,258,301,346,457]
[7024000,"G",3180,4690,5700,6950,7880,8790,10900,68.7,7]
[null,"R",4090,6440,8210,10600,12600,14600,19900]
[null,"W",3200,4750,5800,7150,8170,9210,11700]
[7024070,"G",996000,1260000,1415000,1587000,1719000,1798000,"NC",922500,"N/A","N/A"]

{"sheet":"P2,2","index":15,"n_rows":124,"n_cols":2,"rows_kept":124,"cut":false,"hidden":true,"merged":[]}
["COUNTY","P2,2"]
["ADAIR",1.8]
["ALLEN",1.8]
["ANDERSON",1.7]
["BALLARD",1.9]
["BARREN",1.8]
["BATH",1.6]
["BELL",1.7]
["BOONE",1.7]
["BOURBON",1.7]
["BOYD",1.6]
["BOYLE",1.7]
["BRACKEN",1.6]
["BREATHITT",1.7]
["BRECKINRIDGE",1.8]
["BULLITT",1.8]
["BUTLER",1.8]
["CALDWELL",1.9]
["CALLOWAY",1.9]
["CAMPBELL",1.6]
["CARLISLE",1.9]
["CARROLL",1.7]
["CARTER",1.6]
["CASEY",1.7]
["CHRISTIAN",1.9]
["CLARK",1.7]
["CLAY",1.7]
["CLINTON",1.8]
["CRITTENDEN",1.9]
["CUMBERLAND",1.8]
["DAVIESS",1.8]
["EDMONSON",1.8]
["ELLIOTT",1.6]
["ESTILL",1.7]
["FAYETTE",1.7]
["FLEMING",1.6]
["FLOYD",1.6]
["FRANKLIN",1.7]
["FULTON",1.9]
["GALLATIN",1.7]
["GARRARD",1.7]
["GRANT",1.7]
["GRAVES",1.9]
["GRAYSON",1.8]
["GREEN",1.8]
["GREENUP",1.6]
["HANCOCK",1.8]
["HARDIN",1.8]
["HARLAN",1.7]
["HARRISON",1.7]
["HART",1.8]
["HENDERSON",1.8]
["HENRY",1.7]
["HICKMAN",1.9]
["HOPKINS",1.9]
["JACKSON",1.7]
["JEFFERSON",1.7]
["JESSAMINE",1.7]
["JOHNSON",1.6]
["KENTON",1.6]
["KNOTT",1.7]
["KNOX",1.7]
["LARUE",1.8]
["LAUREL",1.7]
["LAWRENCE",1.6]
["LEE",1.7]
["LESLIE",1.7]
["LETCHER",1.7]
["LEWIS",1.6]
["LINCOLN",1.7]
["LIVINGSTON",1.9]
["LOGAN",1.8]
["LYON",1.9]
["MCCRACKEN",1.9]
["MCCREARY",1.8]
["MCLEAN",1.8]
["MADISON",1.7]
["MAGOFFIN",1.7]
["MARION",1.7]
["MARSHALL",1.9]
["MARTIN",1.6]
["MASON",1.6]
["MEADE",1.8]
["MENIFEE",1.7]
["MERCER",1.7]
["METCALFE",1.8]
["MONROE",1.8]
["MONTGOMERY",1.7]
["MORGAN",1.6]
["MUHLENBURG",1.9]
["NELSON",1.8]
["NICHOLAS",1.6]
["OHIO",1.8]
["OLDHAM",1.7]
["OWEN",1.7]
["OWSLEY",1.7]
["PENDLETON",1.7]
["PERRY",1.7]
["PIKE",1.7]
["POWELL",1.7]
["PULASKI",1.7]
["ROBERTSON",1.6]
["ROCKCASTLE",1.7]
["ROWAN",1.6]
["RUSSELL",1.7]
["SCOTT",1.7]
["SHELBY",1.7]
["SIMPSON",1.8]
["SPENCER",1.7]
["TAYLOR",1.8]
["TODD",1.8]
["TRIGG",1.9]
["TRIMBLE",1.7]
["UNION",1.9]
["WARREN",1.8]
["WASHINGTON",1.7]
["WAYNE",1.8]
["WEBSTER",1.9]
["WHITLEY",1.8]
["WOLFE",1.7]
["WOODFORD",1.7]
["ave.",{"$f":"AVERAGE(B2:B121)","v":1.7399999999999991}]
["max",{"$f":"MAX(B2:B121)","v":1.9}]
["min",{"$f":"MIN(B2:B121)","v":1.6}]

{"sheet":"Update Log","index":16,"n_rows":6,"n_cols":2,"rows_kept":6,"cut":false,"hidden":false,"merged":[[3,1,3,18],[0,1,0,18],[4,1,4,18],[5,1,5,18],[17,1,17,18],[6,1,6,18],[7,1,7,18],[8,1,8,18],[9,1,9,18],[10,1,10,18],[11,1,11,18],[12,1,12,18],[13,1,13,18],[14,1,14,18],[15,1,15,18],[16,1,16,18],[38,1,38,18],[39,1,39,18],[30,1,30,18],[31,1,31,18],[32,1,32,18],[33,1,33,18],[34,1,34,18],[35,1,35,18],[37,1,37,18],[28,1,28,18],[2,1,2,18],[1,1,1,18],[1,0,2,0],[36,1,36,18],[29,1,29,18],[18,1,18,18],[19,1,19,18],[20,1,20,18],[21,1,21,18],[22,1,22,18],[23,1,23,18],[24,1,24,18],[25,1,25,18],[26,1,26,18],[27,1,27,18]]}
["Date","Description of Change or Edit"]
[null,"Provided a one-way conversion option for drainage area from acres to sq. miles and flow path length from feet to miles.  Conversion from sq. miles to acres or miles to feet is not provided."]
[null,"If \"sq. miles\" or \"miles\" are selected, no conversion is performed."]
["2016-12-01","Corrected slope calc for regional flow.  Other cosmetic changes."]
["2017-02-17","Corrected all entries to zero out numeric cells and to blank out all alpha cells when area id or area is blank or zero.  Simplified urban spreadsheet."]
["2019-07-02","Corrected label display for Jefferson County urban flows.  Added check for county name in urban calculations for P2,2."]